Department,Entity, Transaction Date, Expense Type, Expense Area, Supplier Name,Transaction number, Amount, Invoice Description
DFID,DFID,01/02/2018,Air fares ,East and Central Africa ,Corporate Travel Provider ,100016-110 ,"3,600.06",
DFID,DFID,01/02/2018,Air fares ,East and Central Africa ,Corporate Travel Provider ,100016-110 ,"1,753.11",
DFID,DFID,01/02/2018,Air fares ,East and Central Africa ,Corporate Travel Provider ,100016-110 ,547.00,
DFID,DFID,01/02/2018,Air fares ,East and Central Africa ,Corporate Travel Provider ,100016-110 ,"2,108.51",
DFID,DFID,01/02/2018,Air fares ,East and Central Africa ,Corporate Travel Provider ,100016-110 ,"1,754.50",
DFID,DFID,01/02/2018,Air fares ,East and Central Africa ,Corporate Travel Provider ,100016-110 ,822.21,
DFID,DFID,01/02/2018,Air fares ,Research and Evidence Division ,Corporate Travel Provider ,100039-108 ,551.70,
DFID,DFID,01/02/2018,Hotels - Accommodation only ,Research and Evidence Division ,Corporate Travel Provider ,100039-110 ,"1,351.15",
DFID,DFID,01/02/2018,Air fares ,Research and Evidence Division ,Corporate Travel Provider ,100039-110 ,604.35,
DFID,DFID,01/02/2018,Air fares ,Research and Evidence Division ,Corporate Travel Provider ,100039-111 ,535.41,
DFID,DFID,01/02/2018,Hotels - Accommodation only ,Conflict  Humanitarian  Security & Stabilisation Division ,Corporate Travel Provider ,100049-133 ,633.00,
DFID,DFID,01/02/2018,Air fares ,Conflict  Humanitarian  Security & Stabilisation Division ,Corporate Travel Provider ,100049-133 ,555.30,
DFID,DFID,01/02/2018,Air fares ,Conflict  Humanitarian  Security & Stabilisation Division ,Corporate Travel Provider ,100049-102 ,519.71,
DFID,DFID,01/02/2018,Air fares ,Asia  Caribbean and Overseas Territories ,Corporate Travel Provider ,100084-101 ,570.07,
DFID,DFID,01/02/2018,Air fares ,Asia  Caribbean and Overseas Territories ,Corporate Travel Provider ,100084-101 ,546.81,
DFID,DFID,01/02/2018,Air fares ,Asia  Caribbean and Overseas Territories ,Corporate Travel Provider ,100084-101 ,980.42,
DFID,DFID,01/02/2018,Air fares ,Asia  Caribbean and Overseas Territories ,Corporate Travel Provider ,100084-101 ,646.31,
DFID,DFID,01/02/2018,Air fares ,Asia  Caribbean and Overseas Territories ,Corporate Travel Provider ,100084-101 ,690.00,
DFID,DFID,01/02/2018,Air fares ,Economic Development Division ,Corporate Travel Provider ,100086-101 ,562.41,
DFID,DFID,01/02/2018,Air fares ,Economic Development Division ,Corporate Travel Provider ,100086-101 ,799.51,
DFID,DFID,01/02/2018,Office Supplies ,Group Operations ,Banner Office Supplies,100106-101 ,719.58,
DFID,DFID,01/02/2018,Air fares ,International Relations Division ,Corporate Travel Provider ,100111-101 ,712.90,
DFID,DFID,01/02/2018,Hotels - Accommodation only ,International Relations Division ,Corporate Travel Provider ,100111-101 ,774.08,
DFID,DFID,01/02/2018,Air fares ,International Relations Division ,Corporate Travel Provider ,100111-101 ,814.61,
DFID,DFID,01/02/2018,Air fares ,Internal Audit ,Corporate Travel Provider ,100121-101 ,651.40,
DFID,DFID,01/02/2018,Air fares ,Internal Audit ,Corporate Travel Provider ,100121-101 ,894.45,
DFID,DFID,01/02/2018,Air fares ,Internal Audit ,Corporate Travel Provider ,100121-101 ,894.45,
DFID,DFID,01/02/2018,Hotels - Accommodation only ,Economic Development Division ,Corporate Travel Provider ,100124-101 ,808.20,
DFID,DFID,01/02/2018,Air fares ,Economic Development Division ,Corporate Travel Provider ,100124-101 ,651.41,
DFID,DFID,01/02/2018,Air fares ,Economic Development Division ,Corporate Travel Provider ,100124-101 ,802.30,
DFID,DFID,01/02/2018,Air fares ,Communications Division ,Corporate Travel Provider ,100138-101 ,"1,768.11",
DFID,DFID,01/02/2018,Air fares ,Policy Division ,Corporate Travel Provider ,100191-101 ,612.81,
DFID,DFID,01/02/2018,Air fares ,Communications Division ,Corporate Travel Provider ,100197-101 ,806.51,
DFID,DFID,01/02/2018,Air fares ,Communications Division ,Corporate Travel Provider ,100197-101 ,"1,037.00",
DFID,DFID,01/02/2018,Air fares ,Communications Division ,Corporate Travel Provider ,100197-101 ,806.51,
DFID,DFID,01/02/2018,Air fares ,Communications Division ,Corporate Travel Provider ,100197-101 ,694.91,
DFID,DFID,01/02/2018,Air fares ,Communications Division ,Corporate Travel Provider ,100197-101 ,640.20,
DFID,DFID,01/02/2018,Subscriptions ,Communications Division ,Adobe,100197-101 ,708.00,
DFID,DFID,01/02/2018,Subscriptions ,Communications Division ,Adobe,100197-101 ,708.00,
DFID,DFID,01/02/2018,Conferences  Seminars & Meeting/Event Resource ,Finance and Corporate Performance Division ,The Studio Venue Company Limited ,100201-101 ,578.00,
DFID,DFID,01/02/2018,Conferences  Seminars & Meeting/Event Resource ,Finance and Corporate Performance Division ,The Studio Venue Company Limited ,100201-101 ,"1,000.00",
DFID,DFID,01/02/2018,Hotels - Accommodation only ,Finance and Corporate Performance Division ,Corporate Travel Provider ,100201-101 ,509.00,
DFID,DFID,01/02/2018,Air fares ,Finance and Corporate Performance Division ,Corporate Travel Provider ,100201-101 ,514.56,
DFID,DFID,01/02/2018,Air fares ,Finance and Corporate Performance Division ,Corporate Travel Provider ,100201-101 ,636.91,
DFID,DFID,01/02/2018,Air fares ,East and Central Africa ,Corporate Travel Provider ,100212-101 ,"1,024.62",
DFID,DFID,01/02/2018,Hotels - Accommodation only ,East and Central Africa ,Corporate Travel Provider ,100212-101 ,750.75,
DFID,DFID,01/02/2018,Air fares ,East and Central Africa ,Corporate Travel Provider ,100227-101 ,544.80,
DFID,DFID,01/02/2018,Air fares ,Top Management Group ,Corporate Travel Provider ,100232-102 ,"3,461.20",
DFID,DFID,01/02/2018,Air fares ,Top Management Group ,Corporate Travel Provider ,100232-102 ,"1,714.20",
DFID,DFID,01/02/2018,Air fares ,Top Management Group ,Corporate Travel Provider ,100232-102 ,"1,754.40",
DFID,DFID,01/02/2018,Air fares ,Top Management Group ,Corporate Travel Provider ,100232-102 ,"2,108.51",
DFID,DFID,01/02/2018,Air fares ,Top Management Group ,Corporate Travel Provider ,100232-102 ,"1,754.40",
DFID,DFID,01/02/2018,Air fares ,Top Management Group ,Corporate Travel Provider ,100232-102 ,"2,108.51",
DFID,DFID,01/02/2018,Air fares ,Top Management Group ,Corporate Travel Provider ,100232-104 ,"2,306.41",
DFID,DFID,01/02/2018,Air fares ,Top Management Group ,Corporate Travel Provider ,100232-104 ,"1,802.90",
DFID,DFID,01/02/2018,Air fares ,Top Management Group ,Corporate Travel Provider ,100232-104 ,"2,306.41",
DFID,DFID,01/02/2018,Air fares ,Top Management Group ,Corporate Travel Provider ,100232-104 ,"1,802.90",
DFID,DFID,01/02/2018,Air fares ,Top Management Group ,Corporate Travel Provider ,100232-105 ,"3,276.11",
DFID,DFID,01/02/2018,Air fares ,Top Management Group ,Corporate Travel Provider ,100232-105 ,"2,463.51",
DFID,DFID,01/02/2018,Air fares ,Top Management Group ,Corporate Travel Provider ,100232-105 ,"2,875.11",
DFID,DFID,01/02/2018,Air fares ,Top Management Group ,Corporate Travel Provider ,100232-108 ,"5,429.71",
DFID,DFID,01/02/2018,Air fares ,Top Management Group ,Corporate Travel Provider ,100232-108 ,"5,429.71",
DFID,DFID,01/02/2018,Air fares ,International Relations Division ,Corporate Travel Provider ,100240-101 ,664.99,
DFID,DFID,01/02/2018,Air fares ,International Relations Division ,Corporate Travel Provider ,100240-101 ,768.36,
DFID,DFID,27/02/2018,Telephone Usage & services ,West and Southern Africa ,Foreign & Commonwealth Office ,100254-101 ,966.89,
DFID,DFID,01/02/2018,Air fares ,International Relations Division ,Corporate Travel Provider ,100262-101 ,"1,080.61",
DFID,DFID,01/02/2018,Air fares ,International Relations Division ,Corporate Travel Provider ,100262-101 ,"1,080.61",
DFID,DFID,21/02/2018,Hotels - Accommodation only ,Group Operations ,Foreign & Commonwealth Office ,100270-103 ,"2,658.65",
DFID,DFID,01/02/2018,Air fares ,Policy Division ,Corporate Travel Provider ,100274-111 ,"3,232.91",
DFID,DFID,01/02/2018,Air fares ,Economic Development Division ,Corporate Travel Provider ,100275-101 ,"1,958.31",
DFID,DFID,01/02/2018,Air fares ,Economic Development Division ,Corporate Travel Provider ,100275-101 ,740.82,
DFID,DFID,01/02/2018,Air fares ,Economic Development Division ,Corporate Travel Provider ,100275-101 ,"1,184.61",
DFID,DFID,01/02/2018,Air fares ,Economic Development Division ,Corporate Travel Provider ,100275-101 ,"1,044.00",
DFID,DFID,01/02/2018,Air fares ,Economic Development Division ,Corporate Travel Provider ,100276-101 ,591.16,
DFID,DFID,01/02/2018,Air fares ,Economic Development Division ,Corporate Travel Provider ,100276-101 ,601.10,
DFID,DFID,01/02/2018,Hotels - Accommodation only ,Economic Development Division ,Corporate Travel Provider ,100276-101 ,636.75,
DFID,DFID,01/02/2018,Air fares ,Economic Development Division ,Corporate Travel Provider ,100276-101 ,747.66,
DFID,DFID,01/02/2018,Air fares ,Policy Division ,Corporate Travel Provider ,100277-101 ,597.02,
DFID,DFID,01/02/2018,Air fares ,Middle East and North Africa Division ,Corporate Travel Provider ,100307-101 ,611.00,
DFID,DFID,01/02/2018,Air fares ,Middle East and North Africa Division ,Corporate Travel Provider ,100307-101 ,744.51,
DFID,DFID,01/02/2018,Air fares ,Asia  Caribbean and Overseas Territories ,Corporate Travel Provider ,101601-110 ,"1,362.30",
DFID,DFID,01/02/2018,Air fares ,Asia  Caribbean and Overseas Territories ,Corporate Travel Provider ,101601-110 ,"2,224.20",
DFID,DFID,01/02/2018,Air fares ,Asia  Caribbean and Overseas Territories ,Corporate Travel Provider ,101601-110 ,610.46,
DFID,DFID,01/02/2018,Air fares ,Asia  Caribbean and Overseas Territories ,Corporate Travel Provider ,101601-110 ,758.14,
DFID,DFID,01/02/2018,Air fares ,Asia  Caribbean and Overseas Territories ,Corporate Travel Provider ,101601-110 ,795.62,
DFID,DFID,01/02/2018,Air fares ,Asia  Caribbean and Overseas Territories ,Corporate Travel Provider ,101601-110 ,"1,278.54",
DFID,DFID,01/02/2018,Air fares ,Asia  Caribbean and Overseas Territories ,Corporate Travel Provider ,101601-110 ,"1,213.90",
DFID,DFID,01/02/2018,Air fares ,Asia  Caribbean and Overseas Territories ,Corporate Travel Provider ,101601-110 ,"1,788.81",
DFID,DFID,01/02/2018,Air fares ,Asia  Caribbean and Overseas Territories ,Corporate Travel Provider ,101601-110 ,804.50,
DFID,DFID,01/02/2018,Air fares ,Asia  Caribbean and Overseas Territories ,Corporate Travel Provider ,101601-110 ,"1,370.76",
DFID,DFID,01/02/2018,Air fares ,Asia  Caribbean and Overseas Territories ,Corporate Travel Provider ,101601-110 ,"1,231.10",
DFID,DFID,01/02/2018,Air fares ,Asia  Caribbean and Overseas Territories ,Corporate Travel Provider ,101601-110 ,635.90,
DFID,DFID,27/02/2018,Secure Staff Accommodation ,Asia  Caribbean and Overseas Territories ,Foreign & Commonwealth Office ,101601-110 ,"5,822.05",
DFID,DFID,27/02/2018,Other passenger transport ,Asia  Caribbean and Overseas Territories ,Foreign & Commonwealth Office ,101601-110 ,"1,041.74",
DFID,DFID,08/02/2018,Contract Catering Services ,Asia  Caribbean and Overseas Territories ,Foreign & Commonwealth Office ,101601-110 ,800.24,
DFID,DFID,27/02/2018,Vehicle Hire Charges ,Asia  Caribbean and Overseas Territories ,Foreign & Commonwealth Office ,101603-101 ,"1,674.12",
DFID,DFID,01/02/2018,Air fares ,Asia  Caribbean and Overseas Territories ,Corporate Travel Provider ,101603-101 ,721.80,
DFID,DFID,01/02/2018,Air fares ,Asia  Caribbean and Overseas Territories ,Corporate Travel Provider ,101603-101 ,767.92,
DFID,DFID,01/02/2018,Air fares ,Asia  Caribbean and Overseas Territories ,Corporate Travel Provider ,101603-101 ,799.92,
DFID,DFID,01/02/2018,Air fares ,Asia  Caribbean and Overseas Territories ,Corporate Travel Provider ,101603-101 ,584.41,
DFID,DFID,01/02/2018,Air fares ,Asia  Caribbean and Overseas Territories ,Corporate Travel Provider ,101603-101 ,685.87,
DFID,DFID,14/02/2018,Training - Travel & Subsistence ,Asia  Caribbean and Overseas Territories ,Foreign & Commonwealth Office ,101604-101 ,"1,485.59",
DFID,DFID,14/02/2018,Training - Travel & Subsistence ,Asia  Caribbean and Overseas Territories ,Foreign & Commonwealth Office ,101604-101 ,886.43,
DFID,DFID,26/02/2018,Secure Staff Accommodation ,Asia  Caribbean and Overseas Territories ,Foreign & Commonwealth Office ,101604-101 ,"1,468.14",
DFID,DFID,26/02/2018,Secure Staff Accommodation ,Asia  Caribbean and Overseas Territories ,Foreign & Commonwealth Office ,101604-101 ,802.92,
DFID,DFID,08/02/2018,Conference Travel & Subsistence ,Asia  Caribbean and Overseas Territories ,Foreign & Commonwealth Office ,101604-101 ,576.59,
DFID,DFID,14/02/2018,Conference Travel & Subsistence ,Asia  Caribbean and Overseas Territories ,Foreign & Commonwealth Office ,101604-101 ,"1,075.75",
DFID,DFID,01/02/2018,Air fares ,West and Southern Africa ,Corporate Travel Provider ,101610-101 ,"1,275.71",
DFID,DFID,01/02/2018,Air fares ,West and Southern Africa ,Corporate Travel Provider ,101610-101 ,"1,372.41",
DFID,DFID,01/02/2018,Air fares ,West and Southern Africa ,Corporate Travel Provider ,101610-101 ,572.50,
DFID,DFID,01/02/2018,Air fares ,West and Southern Africa ,Corporate Travel Provider ,101610-101 ,"2,730.30",
DFID,DFID,01/02/2018,Air fares ,West and Southern Africa ,Corporate Travel Provider ,101610-101 ,677.10,
DFID,DFID,01/02/2018,Air fares ,West and Southern Africa ,Corporate Travel Provider ,101610-101 ,626.50,
DFID,DFID,01/02/2018,Air fares ,West and Southern Africa ,Corporate Travel Provider ,101610-101 ,688.90,
DFID,DFID,01/02/2018,Air fares ,West and Southern Africa ,Corporate Travel Provider ,101610-101 ,"1,103.95",
DFID,DFID,01/02/2018,Air fares ,West and Southern Africa ,Corporate Travel Provider ,101610-101 ,623.40,
DFID,DFID,01/02/2018,Air fares ,West and Southern Africa ,Corporate Travel Provider ,101610-101 ,526.41,
DFID,DFID,01/02/2018,Air fares ,West and Southern Africa ,Corporate Travel Provider ,101610-101 ,562.10,
DFID,DFID,01/02/2018,Air fares ,West and Southern Africa ,Corporate Travel Provider ,101610-101 ,587.47,
DFID,DFID,01/02/2018,Air fares ,West and Southern Africa ,Corporate Travel Provider ,101610-101 ,589.20,
DFID,DFID,01/02/2018,Other passenger transport ,West and Southern Africa ,Corporate Travel Provider ,101610-101 ,660.00,
DFID,DFID,01/02/2018,Air fares ,West and Southern Africa ,Corporate Travel Provider ,101610-101 ,694.40,
DFID,DFID,01/02/2018,Air fares ,West and Southern Africa ,Corporate Travel Provider ,101610-101 ,666.80,
DFID,DFID,08/02/2018,Hotels - Accommodation only ,East and Central Africa ,Foreign & Commonwealth Office ,101612-101 ,"1,886.20",
DFID,DFID,08/02/2018,Hotels - Accommodation only ,East and Central Africa ,Foreign & Commonwealth Office ,101612-101 ,"1,886.20",
DFID,DFID,27/02/2018,Legal costs ,East and Central Africa ,Foreign & Commonwealth Office ,101612-101 ,655.56,
DFID,DFID,27/02/2018,Telephone Usage & services ,East and Central Africa ,Foreign & Commonwealth Office ,101612-101 ,"2,001.49",
DFID,DFID,01/02/2018,Air fares ,East and Central Africa ,Corporate Travel Provider ,101612-101 ,547.66,
DFID,DFID,01/02/2018,Air fares ,West and Southern Africa ,Corporate Travel Provider ,101613-101 ,646.70,
DFID,DFID,01/02/2018,Air fares ,West and Southern Africa ,Corporate Travel Provider ,101613-101 ,621.90,
DFID,DFID,01/02/2018,Air fares ,West and Southern Africa ,Corporate Travel Provider ,101613-101 ,"1,171.60",
DFID,DFID,01/02/2018,Air fares ,West and Southern Africa ,Corporate Travel Provider ,101613-101 ,"1,171.60",
DFID,DFID,01/02/2018,Air fares ,West and Southern Africa ,Corporate Travel Provider ,101613-101 ,"1,610.81",
DFID,DFID,27/02/2018,Air fares ,East and Central Africa ,Foreign & Commonwealth Office ,101616-101 ,"2,577.44",
DFID,DFID,08/02/2018,Air fares ,East and Central Africa ,Foreign & Commonwealth Office ,101616-101 ,"2,577.44",
DFID,DFID,08/02/2018,Air fares ,East and Central Africa ,Foreign & Commonwealth Office ,101616-101 ,"2,577.44",
DFID,DFID,01/02/2018,Air fares ,East and Central Africa ,Corporate Travel Provider ,101616-101 ,617.61,
DFID,DFID,01/02/2018,Hotels - Accommodation only ,East and Central Africa ,Corporate Travel Provider ,101616-101 ,653.58,
DFID,DFID,01/02/2018,Air fares ,East and Central Africa ,Corporate Travel Provider ,101616-101 ,654.61,
DFID,DFID,01/02/2018,Air fares ,East and Central Africa ,Corporate Travel Provider ,101616-101 ,521.66,
DFID,DFID,01/02/2018,Air fares ,West and Southern Africa ,Corporate Travel Provider ,101618-101 ,738.81,
DFID,DFID,01/02/2018,Air fares ,West and Southern Africa ,Corporate Travel Provider ,101618-101 ,622.11,
DFID,DFID,01/02/2018,Air fares ,West and Southern Africa ,Corporate Travel Provider ,101618-101 ,747.11,
DFID,DFID,01/02/2018,Air fares ,West and Southern Africa ,Corporate Travel Provider ,101618-101 ,707.51,
DFID,DFID,01/02/2018,Air fares ,West and Southern Africa ,Corporate Travel Provider ,101618-101 ,835.71,
DFID,DFID,01/02/2018,Hotels - Accommodation only ,West and Southern Africa ,Corporate Travel Provider ,101618-101 ,648.00,
DFID,DFID,01/02/2018,Air fares ,West and Southern Africa ,Corporate Travel Provider ,101618-101 ,681.61,
DFID,DFID,01/02/2018,Air fares ,West and Southern Africa ,Corporate Travel Provider ,101618-101 ,607.41,
DFID,DFID,01/02/2018,Air fares ,West and Southern Africa ,Corporate Travel Provider ,101618-101 ,500.60,
DFID,DFID,01/02/2018,Air fares ,West and Southern Africa ,Corporate Travel Provider ,101620-101 ,"1,109.66",
DFID,DFID,01/02/2018,Air fares ,West and Southern Africa ,Corporate Travel Provider ,101620-101 ,938.76,
DFID,DFID,01/02/2018,Air fares ,West and Southern Africa ,Corporate Travel Provider ,101620-101 ,780.11,
DFID,DFID,01/02/2018,Air fares ,West and Southern Africa ,Corporate Travel Provider ,101620-101 ,"1,094.94",
DFID,DFID,01/02/2018,Air fares ,West and Southern Africa ,Corporate Travel Provider ,101620-101 ,"1,564.64",
DFID,DFID,08/02/2018,Mobile telephones & accessories ,West and Southern Africa ,Foreign & Commonwealth Office ,101620-101 ,813.93,
DFID,DFID,08/02/2018,Medical/Health Services ,West and Southern Africa ,Foreign & Commonwealth Office ,101620-101 ,"5,173.58",
DFID,DFID,08/02/2018,Medical/Health Services ,West and Southern Africa ,Foreign & Commonwealth Office ,101620-101 ,"5,173.58",
DFID,DFID,27/02/2018,Secure Staff Accommodation ,West and Southern Africa ,Foreign & Commonwealth Office ,101620-101 ,"1,789.51",
DFID,DFID,27/02/2018,Secure Staff Accommodation ,West and Southern Africa ,Foreign & Commonwealth Office ,101620-101 ,"2,017.24",
DFID,DFID,01/02/2018,Air fares ,West and Southern Africa ,Corporate Travel Provider ,101620-102 ,501.91,
DFID,DFID,01/02/2018,Air fares ,West and Southern Africa ,Corporate Travel Provider ,101620-102 ,763.81,
DFID,DFID,01/02/2018,Air fares ,Asia  Caribbean and Overseas Territories ,Corporate Travel Provider ,101621-101 ,545.71,
DFID,DFID,01/02/2018,Air fares ,Asia  Caribbean and Overseas Territories ,Corporate Travel Provider ,101621-101 ,620.26,
DFID,DFID,01/02/2018,Air fares ,Asia  Caribbean and Overseas Territories ,Corporate Travel Provider ,101621-101 ,686.06,
DFID,DFID,01/02/2018,Air fares ,Asia  Caribbean and Overseas Territories ,Corporate Travel Provider ,101621-101 ,789.61,
DFID,DFID,01/02/2018,Hotels - Accommodation only ,Asia  Caribbean and Overseas Territories ,Corporate Travel Provider ,101621-101 ,595.00,
DFID,DFID,01/02/2018,Air fares ,Asia  Caribbean and Overseas Territories ,Corporate Travel Provider ,101621-108 ,614.31,
DFID,DFID,01/02/2018,Air fares ,Asia  Caribbean and Overseas Territories ,Corporate Travel Provider ,101621-108 ,828.15,
DFID,DFID,01/02/2018,Air fares ,West and Southern Africa ,Supplier Name withheld ,101622-105 ,899.94,
DFID,DFID,01/02/2018,Air fares ,West and Southern Africa ,Supplier Name withheld ,101622-106 ,831.81,
DFID,DFID,01/02/2018,Air fares ,West and Southern Africa ,Supplier Name withheld ,101622-106 ,705.36,
DFID,DFID,01/02/2018,Air fares ,West and Southern Africa ,Supplier Name withheld ,101622-106 ,767.51,
DFID,DFID,01/02/2018,Air fares ,West and Southern Africa ,Supplier Name withheld ,101622-106 ,866.91,
DFID,DFID,01/02/2018,Air fares ,West and Southern Africa ,Supplier Name withheld ,101622-106 ,828.01,
DFID,DFID,01/02/2018,Air fares ,West and Southern Africa ,Supplier Name withheld ,101622-106 ,664.06,
DFID,DFID,01/02/2018,Air fares ,West and Southern Africa ,Supplier Name withheld ,101622-106 ,767.51,
DFID,DFID,08/02/2018,Telephone Usage & services ,Asia  Caribbean and Overseas Territories ,Foreign & Commonwealth Office ,101624-101 ,712.09,
DFID,DFID,01/02/2018,Air fares ,Asia  Caribbean and Overseas Territories ,Corporate Travel Provider ,101624-101 ,575.07,
DFID,DFID,01/02/2018,Air fares ,Asia  Caribbean and Overseas Territories ,Corporate Travel Provider ,101624-101 ,508.76,
DFID,DFID,01/02/2018,Hotels - Accommodation only ,Asia  Caribbean and Overseas Territories ,Corporate Travel Provider ,101624-101 ,544.65,
DFID,DFID,01/02/2018,Hotels - Accommodation only ,Asia  Caribbean and Overseas Territories ,Corporate Travel Provider ,101624-101 ,724.68,
DFID,DFID,01/02/2018,Air fares ,Asia  Caribbean and Overseas Territories ,Corporate Travel Provider ,101624-101 ,508.76,
DFID,DFID,01/02/2018,Air fares ,Asia  Caribbean and Overseas Territories ,Corporate Travel Provider ,101624-101 ,501.61,
DFID,DFID,01/02/2018,Air fares ,Asia  Caribbean and Overseas Territories ,Corporate Travel Provider ,101624-101 ,820.36,
DFID,DFID,01/02/2018,Hotels - Accommodation only ,Asia  Caribbean and Overseas Territories ,Corporate Travel Provider ,101624-101 ,697.50,
DFID,DFID,01/02/2018,Air fares ,East and Central Africa ,Corporate Travel Provider ,101625-113 ,556.22,
DFID,DFID,01/02/2018,Air fares ,East and Central Africa ,Corporate Travel Provider ,101625-113 ,854.80,
DFID,DFID,01/02/2018,Air fares ,East and Central Africa ,Corporate Travel Provider ,101625-113 ,854.80,
DFID,DFID,01/02/2018,Air fares ,East and Central Africa ,Corporate Travel Provider ,101625-114 ,934.21,
DFID,DFID,01/02/2018,Air fares ,East and Central Africa ,Corporate Travel Provider ,101625-110 ,"1,957.10",
DFID,DFID,01/02/2018,Air fares ,East and Central Africa ,Corporate Travel Provider ,101625-110 ,763.10,
DFID,DFID,01/02/2018,Hotels - Accommodation only ,East and Central Africa ,Corporate Travel Provider ,101625-110 ,"7,512.25",
DFID,DFID,01/02/2018,Air fares ,East and Central Africa ,Corporate Travel Provider ,101625-112 ,679.80,
DFID,DFID,01/02/2018,Air fares ,East and Central Africa ,Corporate Travel Provider ,101625-112 ,682.61,
DFID,DFID,01/02/2018,Air fares ,East and Central Africa ,Corporate Travel Provider ,101625-112 ,612.90,
DFID,DFID,01/02/2018,Air fares ,East and Central Africa ,Corporate Travel Provider ,101625-112 ,"1,133.41",
DFID,DFID,01/02/2018,Air fares ,East and Central Africa ,Corporate Travel Provider ,101625-112 ,573.81,
DFID,DFID,01/02/2018,Air fares ,East and Central Africa ,Corporate Travel Provider ,101625-112 ,748.27,
DFID,DFID,01/02/2018,Air fares ,East and Central Africa ,Corporate Travel Provider ,101625-112 ,"1,012.70",
DFID,DFID,01/02/2018,Air fares ,East and Central Africa ,Corporate Travel Provider ,101625-112 ,"1,541.30",
DFID,DFID,01/02/2018,Air fares ,West and Southern Africa ,Corporate Travel Provider ,101629-101 ,"1,333.60",
DFID,DFID,01/02/2018,Air fares ,West and Southern Africa ,Corporate Travel Provider ,101629-101 ,569.51,
DFID,DFID,01/02/2018,Air fares ,West and Southern Africa ,Corporate Travel Provider ,101629-101 ,"1,450.31",
DFID,DFID,01/02/2018,Air fares ,West and Southern Africa ,Corporate Travel Provider ,101629-101 ,637.80,
DFID,DFID,01/02/2018,Air fares ,West and Southern Africa ,Corporate Travel Provider ,101629-101 ,"2,100.70",
DFID,DFID,01/02/2018,Air fares ,West and Southern Africa ,Corporate Travel Provider ,101629-101 ,757.31,
DFID,DFID,01/02/2018,Air fares ,West and Southern Africa ,Corporate Travel Provider ,101629-101 ,612.61,
DFID,DFID,01/02/2018,Air fares ,West and Southern Africa ,Corporate Travel Provider ,101629-101 ,500.52,
DFID,DFID,01/02/2018,Air fares ,West and Southern Africa ,Corporate Travel Provider ,101629-101 ,699.80,
DFID,DFID,01/02/2018,Air fares ,West and Southern Africa ,Corporate Travel Provider ,101629-101 ,535.80,
DFID,DFID,01/02/2018,Air fares ,West and Southern Africa ,Corporate Travel Provider ,101629-101 ,637.80,
DFID,DFID,01/02/2018,Air fares ,East and Central Africa ,Corporate Travel Provider ,101630-101 ,621.71,
DFID,DFID,01/02/2018,Air fares ,East and Central Africa ,Corporate Travel Provider ,101630-101 ,621.71,
DFID,DFID,27/02/2018,Hotels - Accommodation only ,East and Central Africa ,Foreign & Commonwealth Office ,101633-101 ,914.05,
DFID,DFID,01/02/2018,Air fares ,East and Central Africa ,Corporate Travel Provider ,101633-101 ,555.10,
DFID,DFID,01/02/2018,Air fares ,East and Central Africa ,Corporate Travel Provider ,101634-101 ,874.41,
DFID,DFID,01/02/2018,Air fares ,East and Central Africa ,Corporate Travel Provider ,101634-101 ,703.02,
DFID,DFID,01/02/2018,Air fares ,East and Central Africa ,Corporate Travel Provider ,101634-101 ,689.20,
DFID,DFID,01/02/2018,Air fares ,East and Central Africa ,Corporate Travel Provider ,101634-101 ,750.00,
DFID,DFID,01/02/2018,Air fares ,East and Central Africa ,Corporate Travel Provider ,101634-101 ,"1,146.20",
DFID,DFID,01/02/2018,Hotels - Accommodation only ,East and Central Africa ,Corporate Travel Provider ,101634-101 ,905.10,
DFID,DFID,01/02/2018,Air fares ,West and Southern Africa ,Corporate Travel Provider ,101637-101 ,867.16,
DFID,DFID,01/02/2018,Air fares ,West and Southern Africa ,Corporate Travel Provider ,101637-101 ,821.17,
DFID,DFID,01/02/2018,Air fares ,West and Southern Africa ,Corporate Travel Provider ,101637-101 ,858.37,
DFID,DFID,01/02/2018,Air fares ,West and Southern Africa ,Corporate Travel Provider ,101637-101 ,867.16,
DFID,DFID,01/02/2018,Hotels - Accommodation only ,West and Southern Africa ,Corporate Travel Provider ,101638-101 ,779.40,
DFID,DFID,01/02/2018,Air fares ,West and Southern Africa ,Corporate Travel Provider ,101638-101 ,609.91,
DFID,DFID,01/02/2018,Air fares ,West and Southern Africa ,Corporate Travel Provider ,101638-101 ,609.91,
DFID,DFID,01/02/2018,Air fares ,West and Southern Africa ,Corporate Travel Provider ,101638-101 ,534.91,
DFID,DFID,01/02/2018,Air fares ,West and Southern Africa ,Corporate Travel Provider ,101638-101 ,534.91,
DFID,DFID,01/02/2018,Air fares ,West and Southern Africa ,Corporate Travel Provider ,101638-101 ,624.52,
DFID,DFID,01/02/2018,Air fares ,West and Southern Africa ,Corporate Travel Provider ,101638-101 ,596.01,
DFID,DFID,01/02/2018,Air fares ,West and Southern Africa ,Corporate Travel Provider ,101638-101 ,677.16,
DFID,DFID,01/02/2018,Air fares ,West and Southern Africa ,Corporate Travel Provider ,101638-101 ,858.41,
DFID,DFID,01/02/2018,Air fares ,West and Southern Africa ,Corporate Travel Provider ,101638-108 ,972.01,
DFID,DFID,01/02/2018,Training Providers/Facilitation Services ,Business Solutions Division Level ,CBT Nuggets,200001-101 ,612.69,
DFID,DFID,01/02/2018,Hotels - Accommodation only ,Business Solutions Division Level ,Corporate Travel Provider ,200001-101 ,567.25,
DFID,DFID,01/02/2018,Hotels - Accommodation only ,Business Solutions Division Level ,Corporate Travel Provider ,200001-101 ,625.00,
DFID,DFID,01/02/2018,Hotels - Accommodation only ,Business Solutions Division Level ,Corporate Travel Provider ,200001-101 ,586.25,
DFID,DFID,01/02/2018,Computer Software Licenses ,Business Solutions Division Level ,Microsoft ,200001-101 ,603.76,
DFID,DFID,01/02/2018,Computer Software Licenses ,Business Solutions Division Level ,Pluralsight,200001-101 ,"6,168.01",
DFID,DFID,14/02/2018,Data Network - land lines ,Business Solutions Division Level ,Foreign & Commonwealth Office ,200002-121 ,902.46,
DFID,DFID,01/02/2018,Computer Consumables ,Business Solutions Division Level ,Computercentre ,200002-153 ,624.00,
DFID,DFID,01/02/2018,Computer Consumables ,Business Solutions Division Level ,XMA Ltd,200004-103 ,"2,362.80",
DFID,DFID,01/02/2018,Air fares ,West and Southern Africa ,Corporate Travel Provider ,201629-103 ,"1,204.70",
DFID,DFID,01/02/2018,Air fares ,Middle East and North Africa Division ,Corporate Travel Provider ,201701-101 ,646.71,
DFID,DFID,01/02/2018,Air fares ,Middle East and North Africa Division ,Corporate Travel Provider ,201701-101 ,526.11,
DFID,DFID,01/02/2018,Air fares ,Middle East and North Africa Division ,Corporate Travel Provider ,201701-101 ,703.10,
DFID,DFID,01/02/2018,Air fares ,Middle East and North Africa Division ,Corporate Travel Provider ,201701-101 ,928.09,
DFID,DFID,01/02/2018,Hotels - Accommodation only ,Middle East and North Africa Division ,Corporate Travel Provider ,201701-101 ,586.25,
DFID,DFID,01/02/2018,Air fares ,Middle East and North Africa Division ,Corporate Travel Provider ,201701-101 ,615.11,
DFID,DFID,01/02/2018,Air fares ,Middle East and North Africa Division ,Corporate Travel Provider ,201705-101 ,806.30,
DFID,DFID,01/02/2018,Air fares ,Middle East and North Africa Division ,Corporate Travel Provider ,201705-101 ,513.01,
DFID,DFID,01/02/2018,Air fares ,Middle East and North Africa Division ,Corporate Travel Provider ,201705-101 ,513.01,
DFID,DFID,01/02/2018,Air fares ,Middle East and North Africa Division ,Corporate Travel Provider ,201705-101 ,806.30,
DFID,DFID,01/02/2018,Air fares ,International Relations Division ,Corporate Travel Provider ,201711-101 ,"1,568.66",
DFID,DFID,01/02/2018,Air fares ,International Relations Division ,Corporate Travel Provider ,201711-101 ,"1,432.36",
DFID,DFID,14/02/2018,Training - Course Fees ,International Relations Division ,Foreign & Commonwealth Office ,201711-101 ,686.69,
DFID,DFID,01/02/2018,Hotels - Accommodation only ,International Relations Division ,Corporate Travel Provider ,201723-102 ,673.60,
DFID,DFID,01/02/2018,Air fares ,Asia  Caribbean and Overseas Territories ,Corporate Travel Provider ,201724-154 ,799.21,
DFID,DFID,01/02/2018,Air fares ,Economic Development Division ,Corporate Travel Provider ,202259-101 ,"2,025.61",
DFID,DFID,01/02/2018,Air fares ,Economic Development Division ,Corporate Travel Provider ,202259-101 ,"2,074.51",
DFID,DFID,01/02/2018,Air fares ,Research and Evidence Division ,Corporate Travel Provider ,202331-101 ,552.31,
DFID,DFID,01/02/2018,Air fares ,Research and Evidence Division ,Corporate Travel Provider ,202331-101 ,533.26,
DFID,DFID,01/02/2018,Air fares ,Economic Development Division ,Corporate Travel Provider ,202373-101 ,965.26,
DFID,DFID,01/02/2018,Air fares ,Economic Development Division ,Corporate Travel Provider ,202373-101 ,593.50,
DFID,DFID,01/02/2018,Air fares ,Economic Development Division ,Corporate Travel Provider ,202373-101 ,"1,645.32",
DFID,DFID,01/02/2018,Air fares ,Economic Development Division ,Corporate Travel Provider ,202373-101 ,966.71,
DFID,DFID,01/02/2018,Air fares ,Economic Development Division ,Corporate Travel Provider ,202373-101 ,834.42,
DFID,DFID,01/02/2018,Air fares ,Research and Evidence Division ,Corporate Travel Provider ,202392-114 ,975.41,
DFID,DFID,01/02/2018,Hotels - Accommodation only ,Research and Evidence Division ,Corporate Travel Provider ,202392-115 ,505.72,
DFID,DFID,01/02/2018,Air fares ,Research and Evidence Division ,Corporate Travel Provider ,202392-103 ,515.61,
DFID,DFID,01/02/2018,Hotels - Accommodation only ,Research and Evidence Division ,Corporate Travel Provider ,202392-103 ,535.00,
DFID,DFID,01/02/2018,Air fares ,Research and Evidence Division ,Corporate Travel Provider ,202392-103 ,927.70,
DFID,DFID,01/02/2018,Air fares ,Research and Evidence Division ,Corporate Travel Provider ,202392-104 ,888.81,
DFID,DFID,01/02/2018,Air fares ,Research and Evidence Division ,Corporate Travel Provider ,202392-104 ,888.81,
DFID,DFID,01/02/2018,Air fares ,Research and Evidence Division ,Corporate Travel Provider ,202392-104 ,850.60,
DFID,DFID,01/02/2018,Hotels - Accommodation only ,Research and Evidence Division ,Corporate Travel Provider ,202392-105 ,579.35,
DFID,DFID,01/02/2018,Air fares ,Research and Evidence Division ,Corporate Travel Provider ,202392-106 ,640.01,
DFID,DFID,01/02/2018,Air fares ,Research and Evidence Division ,Corporate Travel Provider ,202392-106 ,"1,143.96",
DFID,DFID,01/02/2018,Air fares ,Research and Evidence Division ,Corporate Travel Provider ,202392-106 ,640.36,
DFID,DFID,01/02/2018,Hotels - Accommodation only ,Research and Evidence Division ,Corporate Travel Provider ,202392-110 ,525.12,
DFID,DFID,01/02/2018,Air fares ,Research and Evidence Division ,Corporate Travel Provider ,202392-113 ,551.11,
DFID,DFID,01/02/2018,Hotels - Accommodation only ,Policy Division ,Corporate Travel Provider ,202396-101 ,715.18,
DFID,DFID,01/02/2018,Air fares ,Policy Division ,Corporate Travel Provider ,202396-101 ,767.91,
DFID,DFID,01/02/2018,Air fares ,Policy Division ,Corporate Travel Provider ,202396-101 ,769.01,
DFID,DFID,01/02/2018,Hotels - Accommodation only ,Policy Division ,Corporate Travel Provider ,202402-107 ,535.00,
DFID,DFID,01/02/2018,Hotels - Accommodation only ,Policy Division ,Corporate Travel Provider ,202402-107 ,535.00,
DFID,DFID,01/02/2018,Air fares ,Policy Division ,Corporate Travel Provider ,202402-107 ,527.61,
DFID,DFID,01/02/2018,Air fares ,Policy Division ,Corporate Travel Provider ,202402-107 ,614.61,
DFID,DFID,27/02/2018,Air fares ,Asia  Caribbean and Overseas Territories ,Foreign & Commonwealth Office ,202403-101 ,"5,688.58",
DFID,DFID,27/02/2018,Vehicle Hire Charges ,Asia  Caribbean and Overseas Territories ,Foreign & Commonwealth Office ,202403-101 ,569.31,
DFID,DFID,14/02/2018,Hotels - Accommodation only ,Conflict  Humanitarian  Security & Stabilisation Division ,Foreign & Commonwealth Office ,202410-103 ,"4,337.63",
DFID,DFID,01/02/2018,Air fares ,Conflict  Humanitarian  Security & Stabilisation Division ,Corporate Travel Provider ,202410-103 ,"1,403.30",
DFID,DFID,01/02/2018,Air fares ,Conflict  Humanitarian  Security & Stabilisation Division ,Corporate Travel Provider ,202410-107 ,670.71,
DFID,DFID,01/02/2018,Hotels - Accommodation only ,Conflict  Humanitarian  Security & Stabilisation Division ,Corporate Travel Provider ,202410-108 ,604.14,
DFID,DFID,01/02/2018,Hotels - Accommodation only ,Conflict  Humanitarian  Security & Stabilisation Division ,Corporate Travel Provider ,202410-108 ,726.50,
DFID,DFID,01/02/2018,Air fares ,Policy Division ,Corporate Travel Provider ,202419-101 ,822.45,
DFID,DFID,01/02/2018,Other passenger transport ,Policy Division ,Corporate Travel Provider ,202419-101 ,766.80,
DFID,DFID,01/02/2018,Air fares ,Policy Division ,Corporate Travel Provider ,202419-101 ,526.31,
DFID,DFID,01/02/2018,Air fares ,Economic Development Division ,Corporate Travel Provider ,202432-101 ,927.70,
DFID,DFID,01/02/2018,Air fares ,Economic Development Division ,Corporate Travel Provider ,202432-101 ,626.90,
DFID,DFID,01/02/2018,Air fares ,Economic Development Division ,Corporate Travel Provider ,202432-101 ,533.42,
DFID,DFID,01/02/2018,Air fares ,Economic Development Division ,Corporate Travel Provider ,202432-101 ,730.70,
DFID,DFID,01/02/2018,Air fares ,East and Central Africa ,Corporate Travel Provider ,202594-101 ,606.16,
DFID,DFID,01/02/2018,Air fares ,East and Central Africa ,Corporate Travel Provider ,202594-101 ,"1,654.25",
DFID,DFID,01/02/2018,Air fares ,East and Central Africa ,Corporate Travel Provider ,202594-101 ,655.41,
DFID,DFID,01/02/2018,Air fares ,East and Central Africa ,Corporate Travel Provider ,202594-101 ,692.81,
DFID,DFID,01/02/2018,Air fares ,East and Central Africa ,Corporate Travel Provider ,202594-101 ,668.41,
DFID,DFID,01/02/2018,Air fares ,East and Central Africa ,Corporate Travel Provider ,202594-101 ,912.16,
DFID,DFID,01/02/2018,Air fares ,East and Central Africa ,Corporate Travel Provider ,202594-101 ,"1,950.43",
DFID,DFID,01/02/2018,Air fares ,East and Central Africa ,Corporate Travel Provider ,202594-101 ,511.30,
DFID,DFID,01/02/2018,Air fares ,East and Central Africa ,Corporate Travel Provider ,202594-101 ,675.70,
DFID,DFID,01/02/2018,Air fares ,East and Central Africa ,Corporate Travel Provider ,202594-101 ,580.41,
DFID,DFID,01/02/2018,Air fares ,East and Central Africa ,Corporate Travel Provider ,202594-101 ,680.11,
DFID,DFID,01/02/2018,Air fares ,East and Central Africa ,Corporate Travel Provider ,202594-101 ,552.40,
DFID,DFID,01/02/2018,Air fares ,East and Central Africa ,Corporate Travel Provider ,202594-101 ,"1,482.60",
DFID,DFID,01/02/2018,Air fares ,East and Central Africa ,Corporate Travel Provider ,202594-101 ,580.41,
DFID,DFID,01/02/2018,Air fares ,East and Central Africa ,Corporate Travel Provider ,202594-101 ,795.80,
DFID,DFID,01/02/2018,Air fares ,East and Central Africa ,Corporate Travel Provider ,202594-101 ,511.11,
DFID,DFID,01/02/2018,Air fares ,East and Central Africa ,Corporate Travel Provider ,202594-101 ,737.00,
DFID,DFID,01/02/2018,Air fares ,East and Central Africa ,Corporate Travel Provider ,202594-101 ,580.41,
DFID,DFID,01/02/2018,Air fares ,East and Central Africa ,Corporate Travel Provider ,202594-101 ,619.20,
DFID,DFID,01/02/2018,Air fares ,East and Central Africa ,Corporate Travel Provider ,202594-102 ,643.70,
DFID,DFID,01/02/2018,Hotels - Accommodation only ,International Relations Division ,Corporate Travel Provider ,202617-101 ,584.85,
DFID,DFID,08/02/2018,Project delivery costs – supplier services ,Policy Division ,Foreign & Commonwealth Office ,203146-101 ,"3,031.46",
DFID,DFID,14/02/2018,Data Network - land lines ,Business Solutions Division Level ,Foreign & Commonwealth Office ,203329-102 ,902.45,
DFID,DFID,01/02/2018,Air fares ,Business Solutions Division Level ,Corporate Travel Provider ,203329-104 ,"1,082.92",
DFID,DFID,01/02/2018,Air fares ,Business Solutions Division Level ,Corporate Travel Provider ,203329-104 ,873.26,
DFID,DFID,01/02/2018,Air fares ,Business Solutions Division Level ,Corporate Travel Provider ,203329-104 ,859.31,
DFID,DFID,01/02/2018,Air fares ,Finance and Corporate Performance Division ,Corporate Travel Provider ,203698-102 ,701.71,
DFID,DFID,14/02/2018,Project delivery costs – supplier services ,Conflict  Humanitarian  Security & Stabilisation Division ,Foreign & Commonwealth Office ,203815-106 ,"32,456.71",
DFID,DFID,01/02/2018,Air fares ,Research and Evidence Division ,Corporate Travel Provider ,203874-103 ,731.81,
DFID,DFID,01/02/2018,Air fares ,Research and Evidence Division ,Corporate Travel Provider ,203874-103 ,908.89,
DFID,DFID,01/02/2018,Air fares ,Research and Evidence Division ,Corporate Travel Provider ,203874-103 ,541.81,
DFID,DFID,01/02/2018,Air fares ,Research and Evidence Division ,Corporate Travel Provider ,203874-103 ,908.89,
DFID,DFID,01/02/2018,Air fares ,Research and Evidence Division ,Corporate Travel Provider ,203874-103 ,507.30,
DFID,DFID,01/02/2018,Air fares ,Research and Evidence Division ,Corporate Travel Provider ,203874-103 ,703.34,
DFID,DFID,01/02/2018,Air fares ,Research and Evidence Division ,Corporate Travel Provider ,203874-103 ,507.30,
DFID,DFID,01/02/2018,Air fares ,Research and Evidence Division ,Corporate Travel Provider ,203874-103 ,725.00,
DFID,DFID,01/02/2018,Air fares ,West and Southern Africa ,Corporate Travel Provider ,203981-110 ,759.91,
DFID,DFID,01/02/2018,Air fares ,Asia  Caribbean and Overseas Territories ,Corporate Travel Provider ,204053-101 ,773.12,
DFID,DFID,01/02/2018,Air fares ,Middle East and North Africa Division ,Corporate Travel Provider ,204055-101 ,507.20,
DFID,DFID,01/02/2018,Air fares ,Middle East and North Africa Division ,Corporate Travel Provider ,204055-101 ,524.81,
DFID,DFID,01/02/2018,Hotels - Accommodation only ,Middle East and North Africa Division ,Corporate Travel Provider ,204055-101 ,783.89,
DFID,DFID,01/02/2018,Hotels - Accommodation only ,Middle East and North Africa Division ,Corporate Travel Provider ,204055-101 ,644.08,
DFID,DFID,01/02/2018,Air fares ,Middle East and North Africa Division ,Corporate Travel Provider ,204055-101 ,524.61,
DFID,DFID,14/02/2018,Aid Programme - Humanitarian Material Relief Assistance and Services ,Conflict  Humanitarian  Security & Stabilisation Division ,Foreign & Commonwealth Office ,204273-103 ,514.65,
DFID,DFID,08/02/2018,Project delivery costs – supplier services ,East and Central Africa ,Foreign & Commonwealth Office ,204439-103 ,"14,731.74",
DFID,DFID,27/02/2018,Project delivery costs – supplier services ,East and Central Africa ,Foreign & Commonwealth Office ,204439-103 ,"3,883.20",
DFID,DFID,01/02/2018,Hotels - Accommodation only ,East and Central Africa ,Corporate Travel Provider ,204633-106 ,"1,078.21",
DFID,DFID,01/02/2018,Hotels - Accommodation only ,East and Central Africa ,Corporate Travel Provider ,204641-104 ,556.00,
DFID,DFID,01/02/2018,Hotels - Accommodation only ,East and Central Africa ,Corporate Travel Provider ,204641-104 ,556.00,
DFID,DFID,01/02/2018,Hotels - Accommodation only ,East and Central Africa ,Corporate Travel Provider ,204641-104 ,556.00,
DFID,DFID,01/02/2018,Hotels - Accommodation only ,Country Programmes Cabinet ,Corporate Travel Provider ,204832-101 ,672.00,
DFID,DFID,01/02/2018,Air fares ,Middle East and North Africa Division ,Corporate Travel Provider ,204844-101 ,530.61,
DFID,DFID,01/02/2018,Air fares ,Middle East and North Africa Division ,Corporate Travel Provider ,204844-101 ,749.01,
DFID,DFID,01/02/2018,Air fares ,West and Southern Africa ,Corporate Travel Provider ,204856-102 ,751.20,
DFID,DFID,01/02/2018,Air fares ,Non-Departmental Public Body ,Corporate Travel Provider ,204873-102 ,637.61,
DFID,DFID,01/02/2018,Air fares ,West and Southern Africa ,Corporate Travel Provider ,204939-103 ,809.00,
DFID,DFID,01/02/2018,Air fares ,Asia  Caribbean and Overseas Territories ,Corporate Travel Provider ,204952-103 ,"1,194.76",
DFID,DFID,01/02/2018,Air fares ,Middle East and North Africa Division ,Corporate Travel Provider ,204978-101 ,616.11,
DFID,DFID,01/02/2018,Air fares ,Middle East and North Africa Division ,Corporate Travel Provider ,204981-101 ,694.21,
DFID,DFID,01/02/2018,Air fares ,Middle East and North Africa Division ,Corporate Travel Provider ,204981-101 ,621.81,
DFID,DFID,01/02/2018,Air fares ,Middle East and North Africa Division ,Corporate Travel Provider ,204981-101 ,599.81,
DFID,DFID,01/02/2018,Air fares ,Middle East and North Africa Division ,Corporate Travel Provider ,204981-101 ,606.61,
DFID,DFID,01/02/2018,Air fares ,Middle East and North Africa Division ,Corporate Travel Provider ,204981-101 ,717.80,
DFID,DFID,27/02/2018,Air fares ,Middle East and North Africa Division ,Foreign & Commonwealth Office ,204981-101 ,"1,221.07",
DFID,DFID,01/02/2018,Air fares ,PGP Directorate ,Corporate Travel Provider ,205044-101 ,"2,357.91",
DFID,DFID,01/02/2018,Air fares ,PGP Directorate ,Corporate Travel Provider ,205044-101 ,"2,321.70",
DFID,DFID,14/02/2018,UK Staff overseas - Medical Expenses,Policy Division ,Foreign & Commonwealth Office ,205248-102 ,642.08,
DFID,DFID,01/02/2018,Air fares ,Policy Division ,Corporate Travel Provider ,205248-102 ,577.61,
DFID,DFID,01/02/2018,Air fares ,Policy Division ,Corporate Travel Provider ,205248-102 ,577.61,
DFID,DFID,01/02/2018,Air fares ,Policy Division ,Corporate Travel Provider ,205248-102 ,722.21,
DFID,DFID,01/02/2018,Air fares ,Conflict  Humanitarian  Security & Stabilisation Division ,Corporate Travel Provider ,205279-102 ,515.11,
DFID,DFID,01/02/2018,Air fares ,Economic Development Division ,Corporate Travel Provider ,300002-101 ,525.20,
DFID,DFID,01/02/2018,Air fares ,Policy Division ,Corporate Travel Provider ,300032-101 ,770.61,
DFID,DFID,01/02/2018,Air fares ,Policy Division ,Corporate Travel Provider ,300032-101 ,770.61,
DFID,DFID,01/02/2018,Air fares ,Policy Division ,Corporate Travel Provider ,300032-101 ,641.20,
DFID,DFID,01/02/2018,Air fares ,Policy Division ,Corporate Travel Provider ,300033-101 ,640.80,
DFID,DFID,01/02/2018,Air fares ,Policy Division ,Corporate Travel Provider ,300033-101 ,550.51,
DFID,DFID,01/02/2018,Hotels - Accommodation only ,Conflict  Humanitarian  Security & Stabilisation Division ,Corporate Travel Provider ,300042-101 ,652.88,
DFID,DFID,01/02/2018,Air fares ,Conflict  Humanitarian  Security & Stabilisation Division ,Corporate Travel Provider ,300042-101 ,658.71,
DFID,DFID,01/02/2018,Air fares ,Conflict  Humanitarian  Security & Stabilisation Division ,Corporate Travel Provider ,300042-101 ,658.71,
DFID,DFID,01/02/2018,Hotels - Accommodation only ,Conflict  Humanitarian  Security & Stabilisation Division ,Corporate Travel Provider ,300042-101 ,652.88,
DFID,DFID,01/02/2018,Air fares ,Middle East and North Africa Division ,Corporate Travel Provider ,300078-101 ,669.21,
DFID,DFID,01/02/2018,Air fares ,Middle East and North Africa Division ,Corporate Travel Provider ,300078-101 ,841.91,
DFID,DFID,01/02/2018,Hotels - Accommodation only ,Middle East and North Africa Division ,Corporate Travel Provider ,300078-101 ,583.00,
DFID,DFID,01/02/2018,Air fares ,Middle East and North Africa Division ,Corporate Travel Provider ,300078-101 ,583.90,
DFID,DFID,01/02/2018,Air fares ,Middle East and North Africa Division ,Corporate Travel Provider ,300078-101 ,524.61,
DFID,DFID,01/02/2018,Air fares ,Middle East and North Africa Division ,Corporate Travel Provider ,300078-101 ,593.26,
DFID,DFID,01/02/2018,Air fares ,Middle East and North Africa Division ,Corporate Travel Provider ,300078-101 ,566.36,
DFID,DFID,27/02/2018,Telephone Usage & services ,Middle East and North Africa Division ,Foreign & Commonwealth Office ,300078-101 ,651.03,
DFID,DFID,01/02/2018,Office Equipment - Purchases ,Middle East and North Africa Division ,MADI TECHNOLOGY,300079-101 ,596.44,
DFID,DFID,01/02/2018,Air fares ,East and Central Africa ,Corporate Travel Provider ,300393-102 ,587.31,
DFID,DFID,01/02/2018,Air fares ,East and Central Africa ,Corporate Travel Provider ,300393-102 ,587.31,
DFID,DFID,01/02/2018,Air fares ,Middle East and North Africa Division ,Corporate Travel Provider ,300465-101 ,546.70,
DFID,DFID,15/02/2018,Aid Programme - Accountable Grant Payments ,Research and Evidence Division ,ASSOCIATION OF COMMONWEALTH UNIVER ,201871-103 ,"342,130.00",
DFID,DFID,22/02/2018,Project delivery costs – supplier services ,Asia  Caribbean and Overseas Territories ,ADAM SMITH INTERNATIONAL  LTD ,201367-103 ,"19,906.90",
DFID,DFID,13/02/2018,Project delivery costs – supplier services ,Asia  Caribbean and Overseas Territories ,ADAM SMITH INTERNATIONAL  LTD ,201367-103 ,"34,428.00",
DFID,DFID,27/02/2018,Project delivery costs – supplier services ,Asia  Caribbean and Overseas Territories ,ADAM SMITH INTERNATIONAL  LTD ,202328-102 ,"422,101.97",
DFID,DFID,20/02/2018,Project delivery costs – supplier services ,West and Southern Africa ,ADAM SMITH INTERNATIONAL  LTD ,202584-106 ,"316,575.97",
DFID,DFID,27/02/2018,Project delivery costs – supplier services ,West and Southern Africa ,ADAM SMITH INTERNATIONAL  LTD ,203161-103 ,"738,268.58",
DFID,DFID,16/02/2018,Project delivery costs – supplier services ,West and Southern Africa ,ADAM SMITH INTERNATIONAL  LTD ,203674-102 ,"86,057.10",
DFID,DFID,15/02/2018,Project delivery costs – supplier services ,West and Southern Africa ,ADAM SMITH INTERNATIONAL  LTD ,203824-103 ,"47,689.82",
DFID,DFID,19/02/2018,Project delivery costs – supplier services ,West and Southern Africa ,ADAM SMITH INTERNATIONAL  LTD ,203824-103 ,"22,121.60",
DFID,DFID,21/02/2018,Project delivery costs – supplier services ,East and Central Africa ,ADAM SMITH INTERNATIONAL  LTD ,204456-103 ,"134,320.80",
DFID,DFID,21/02/2018,Project delivery costs – supplier services ,East and Central Africa ,ADAM SMITH INTERNATIONAL  LTD ,204456-103 ,"172,580.00",
DFID,DFID,21/02/2018,Project delivery costs – supplier services ,East and Central Africa ,ADAM SMITH INTERNATIONAL  LTD ,204456-105 ,"18,573.34",
DFID,DFID,23/02/2018,Project delivery costs – supplier services ,Asia  Caribbean and Overseas Territories ,ADAM SMITH INTERNATIONAL  LTD ,204619-104 ,"18,095.00",
DFID,DFID,02/02/2018,Project delivery costs – supplier services ,West and Southern Africa ,ADAM SMITH INTERNATIONAL  LTD ,204659-104 ,"126,062.82",
DFID,DFID,02/02/2018,Project delivery costs – supplier services ,West and Southern Africa ,ADAM SMITH INTERNATIONAL  LTD ,204659-104 ,"188,621.95",
DFID,DFID,02/02/2018,Project delivery costs – supplier services ,West and Southern Africa ,ADAM SMITH INTERNATIONAL  LTD ,204659-104 ,"294,674.97",
DFID,DFID,02/02/2018,Project delivery costs – supplier services ,Middle East and North Africa Division ,ADAM SMITH INTERNATIONAL  LTD ,300011-101 ,"146,513.94",
DFID,DFID,14/02/2018,Aid Programme - Accountable Grant Payments ,Asia  Caribbean and Overseas Territories ,ACTION AGAINST HUNGER UK ,205138-104 ,"13,425.00",
DFID,DFID,23/02/2018,Aid Programme - Accountable Grant Payments ,West and Southern Africa ,ACTION AGAINST HUNGER UK ,300432-107 ,"430,364.00",
DFID,DFID,23/02/2018,Aid Programme - Accountable Grant Payments ,West and Southern Africa ,ACTION AGAINST HUNGER UK ,300432-107 ,"10,631.00",
DFID,DFID,08/02/2018,Project delivery costs – supplier services ,Asia  Caribbean and Overseas Territories ,Supplier Name withheld ,204122-101 ,"92,299.18",
DFID,DFID,08/02/2018,Project delivery costs – supplier services ,Asia  Caribbean and Overseas Territories ,Supplier Name withheld ,204122-104 ,"353,489.43",
DFID,DFID,08/02/2018,Project delivery costs – supplier services ,Asia  Caribbean and Overseas Territories ,Supplier Name withheld ,204122-105 ,"313,471.75",
DFID,DFID,16/02/2018,Encashment of Promissory Notes ,International Relations Division ,AFRICAN  DEVELOPMENT BANK GROUP ,202278-103 ,"12,941,644.00",
DFID,DFID,16/02/2018,Encashment of Promissory Notes ,International Relations Division ,AFRICAN  DEVELOPMENT BANK GROUP ,203546-102 ,"19,568,133.00",
DFID,DFID,16/02/2018,Encashment of Promissory Notes ,International Relations Division ,AFRICAN  DEVELOPMENT BANK GROUP ,204674-101 ,"21,968,404.00",
DFID,DFID,15/02/2018,Professional member subscriptions ,Business Solutions Division Level ,Unit 4 ,200002-107 ,600.00,
DFID,DFID,26/02/2018,Telephone Usage & services ,Asia  Caribbean and Overseas Territories ,Supplier Name withheld ,100025-101 ,534.48,
DFID,DFID,26/02/2018,Telephone Usage & services ,Asia  Caribbean and Overseas Territories ,Supplier Name withheld ,100025-101 ,534.48,
DFID,DFID,06/02/2018,Aid Programme - Accountable Grant Payments ,Policy Division ,BRITISH COUNCIL (UK) ,205033-101 ,"1,810,680.79",
DFID,DFID,19/02/2018,Aid Programme - Accountable Grant Payments ,Policy Division ,BRITISH RED CROSS ,203559-124 ,"375,714.00",
DFID,DFID,27/02/2018,Project delivery costs – supplier services ,Policy Division ,BRITISH COUNCIL ,203166-101 ,"362,676.31",
DFID,DFID,15/02/2018,Project delivery costs – supplier services ,West and Southern Africa ,BRITISH COUNCIL ,203816-102 ,"42,687.06",
DFID,DFID,15/02/2018,Project delivery costs – supplier services ,West and Southern Africa ,BRITISH COUNCIL ,203816-103 ,"25,047.66",
DFID,DFID,12/02/2018,Aid Programme - Accountable Grant Payments ,West and Southern Africa ,CAFOD ,202427-107 ,"55,000.00",
DFID,DFID,23/02/2018,Aid Programme - Accountable Grant Payments ,West and Southern Africa ,CAFOD ,202427-107 ,"52,529.00",
DFID,DFID,05/02/2018,Aid Programme - Accountable Grant Payments ,Policy Division ,CAFOD ,203559-138 ,"461,825.00",
DFID,DFID,06/02/2018,Aid Programme - Accountable Grant Payments ,Policy Division ,CAFOD ,203559-148 ,"678,107.00",
DFID,DFID,01/02/2018,Aid Programme - Accountable Grant Payments ,Policy Division ,CHRISTIAN AID ,203559-149 ,"109,900.00",
DFID,DFID,01/02/2018,Aid Programme - Accountable Grant Payments ,Policy Division ,CHRISTIAN AID ,203559-130 ,"203,088.00",
DFID,DFID,23/02/2018,Project delivery costs – supplier services ,West and Southern Africa ,CHRISTIAN AID ,204657-102 ,"269,172.92",
DFID,DFID,15/02/2018,Aid Programme - Accountable Grant Payments ,West and Southern Africa ,CHRISTIAN AID ,204822-106 ,"91,294.59",
DFID,DFID,06/02/2018,Project delivery costs – supplier services ,West and Southern Africa ,CHRISTIAN AID ,205269-101 ,"274,476.59",
DFID,DFID,19/02/2018,Aid Programme - Core contributions ,Research and Evidence Division ,CAB INTERNATIONAL (Bl) ,200574-103 ,"327,888.00",
DFID,DFID,22/02/2018,Project delivery costs – supplier services ,Policy Division ,Crown Agents. ,200706-102 ,639.00,
DFID,DFID,19/02/2018,Project delivery costs – supplier services ,Policy Division ,Crown Agents. ,200706-102 ,"6,309.07",
DFID,DFID,19/02/2018,Project delivery costs – supplier services ,Policy Division ,Crown Agents. ,200706-102 ,"3,183.95",
DFID,DFID,20/02/2018,Project delivery costs – supplier services ,Policy Division ,Crown Agents. ,200706-102 ,"2,271.62",
DFID,DFID,22/02/2018,Project delivery costs – supplier services ,Policy Division ,Crown Agents. ,200706-102 ,"15,346.81",
DFID,DFID,02/02/2018,Project delivery costs – supplier services ,Policy Division ,Crown Agents. ,200706-102 ,"2,006.95",
DFID,DFID,09/02/2018,Project delivery costs – supplier services ,Policy Division ,Crown Agents. ,200706-102 ,"5,310.22",
DFID,DFID,12/02/2018,Project delivery costs – supplier services ,Policy Division ,Crown Agents. ,200706-102 ,"2,066.92",
DFID,DFID,02/02/2018,Project delivery costs – supplier services ,West and Southern Africa ,Crown Agents. ,202463-103 ,"92,705.36",
DFID,DFID,01/02/2018,Project delivery costs – supplier services ,West and Southern Africa ,Crown Agents. ,202463-103 ,"115,000.00",
DFID,DFID,26/02/2018,Project delivery costs – supplier services ,Conflict  Humanitarian  Security & Stabilisation Division ,Crown Agents. ,203416-102 ,"4,693.70",
DFID,DFID,20/02/2018,Aid Programme - Humanitarian Material Relief Assistance and Services ,East and Central Africa ,Crown Agents. ,203462-102 ,"9,038.26",
DFID,DFID,20/02/2018,DFID Purchased Relief Supplies ,West and Southern Africa ,Crown Agents. ,203674-103 ,"3,678.40",
DFID,DFID,22/02/2018,Aid Programme - Humanitarian Material Relief Assistance and Services ,Middle East and North Africa Division ,Crown Agents. ,204516-102 ,"12,590.40",
DFID,DFID,22/02/2018,Aid Programme - Humanitarian Material Relief Assistance and Services ,Middle East and North Africa Division ,Crown Agents. ,205094-104 ,"8,658.00",
DFID,DFID,22/02/2018,Project delivery costs – supplier services ,Middle East and North Africa Division ,Crown Agents. ,300078-101 ,"4,107.60",
DFID,DFID,22/02/2018,Project delivery costs – supplier services ,Conflict  Humanitarian  Security & Stabilisation Division ,Crown Agents. ,300264-108 ,"23,133.60",
DFID,DFID,02/02/2018,Project delivery costs – supplier services ,Middle East and North Africa Division ,Crown Agents. ,300417-101 ,"8,976.00",
DFID,DFID,16/02/2018,Project delivery costs – supplier services ,Middle East and North Africa Division ,Crown Agents. ,300417-101 ,"13,730.68",
DFID,DFID,26/02/2018,Project delivery costs – supplier services ,Conflict  Humanitarian  Security & Stabilisation Division ,Crown Agents. ,300491-103 ,"3,969.12",
DFID,DFID,26/02/2018,Project delivery costs – supplier services ,Conflict  Humanitarian  Security & Stabilisation Division ,Crown Agents. ,300491-103 ,"187,979.06",
DFID,DFID,20/02/2018,Aid Programme - Accountable Grant Payments ,Policy Division ,CONCERN WORLDWIDE ,203559-150 ,"77,089.00",
DFID,DFID,28/02/2018,Aid Programme - Accountable Grant Payments ,Policy Division ,CONCERN WORLDWIDE ,203559-120 ,"67,421.00",
DFID,DFID,22/02/2018,Aid Programme - Accountable Grant Payments ,East and Central Africa ,CONCERN WORLDWIDE ,300373-102 ,"185,395.00",
DFID,DFID,20/02/2018,Aid Programme - Accountable Grant Payments ,Policy Division ,CARE INTERNATIONAL UK ,203559-159 ,"105,638.60",
DFID,DFID,23/02/2018,Aid Programme - Accountable Grant Payments ,East and Central Africa ,CARE INTERNATIONAL UK ,204142-101 ,"308,213.81",
DFID,DFID,26/02/2018,Aid Programme - Accountable Grant Payments ,Middle East and North Africa Division ,CARE INTERNATIONAL UK ,300348-101 ,"562,989.97",
DFID,DFID,19/02/2018,Aid Programme - Accountable Grant Payments ,Policy Division ,COMIC RELIEF ,202197-101 ,"383,494.00",
DFID,DFID,05/02/2018,Conferences  Seminars & Meeting/Event Resource ,Research and Evidence Division ,COIN STREET COMMUNITY BUILDERS ,202331-101 ,"2,568.00",
DFID,DFID,26/02/2018,Aid Programme - Accountable Grant Payments ,Middle East and North Africa Division ,Supplier Name withheld ,300085-101 ,"4,826,900.26",
DFID,DFID,06/02/2018,Recruitment costs ,Human Resources ,CABINET OFFICE ,100269-109 ,966.00,
DFID,DFID,12/02/2018,Project delivery costs – supplier services ,Asia  Caribbean and Overseas Territories ,Supplier Name withheld ,205013-102 ,"11,195.09",
DFID,DFID,08/02/2018,Training - Course Fees ,Finance and Corporate Performance Division ,City of Glasgow College ,100201-101 ,"21,015.00",
DFID,DFID,15/02/2018,Training - Course Fees ,Human Resources ,Capita  Business Services ,100266-106 ,"2,683.00",
DFID,DFID,13/02/2018,Training Providers/Facilitation Services ,West and Southern Africa ,Capita  Business Services ,101613-101 ,"6,797.56",
DFID,DFID,13/02/2018,Training Providers/Facilitation Services ,West and Southern Africa ,Capita  Business Services ,101613-101 ,"6,797.56",
DFID,DFID,13/02/2018,Training Providers/Facilitation Services ,West and Southern Africa ,Capita  Business Services ,101613-101 ,"1,676.89",
DFID,DFID,23/02/2018,Training Providers/Facilitation Services ,Asia  Caribbean and Overseas Territories ,Capita  Business Services ,101621-101 ,787.74,
DFID,DFID,19/02/2018,Training Providers/Facilitation Services ,Asia  Caribbean and Overseas Territories ,Capita  Business Services ,101624-101 ,"6,817.07",
DFID,DFID,26/02/2018,Training Providers/Facilitation Services ,Finance and Corporate Performance Division ,Capita  Business Services ,204846-101 ,"9,512.20",
DFID,DFID,23/02/2018,Project delivery costs – supplier services ,Asia  Caribbean and Overseas Territories ,CONCERN WORLDWIDE ,203264-102 ,"676,409.08",
DFID,DFID,23/02/2018,Project delivery costs – supplier services ,Asia  Caribbean and Overseas Territories ,CONCERN WORLDWIDE ,203264-102 ,"78,250.89",
DFID,DFID,27/02/2018,Professional member subscriptions ,Human Resources ,ECA INTERNATIONAL ,100269-135 ,"12,834.00",
DFID,DFID,23/02/2018,Project delivery costs – supplier services ,Policy Division ,COFFEY INTERNATIONAL DEVELOPMENT LTD ,201724-145 ,"54,865.92",
DFID,DFID,21/02/2018,Project delivery costs – supplier services ,Policy Division ,COFFEY INTERNATIONAL DEVELOPMENT LTD ,202372-104 ,"43,727.17",
DFID,DFID,05/02/2018,Project delivery costs – supplier services ,West and Southern Africa ,COFFEY INTERNATIONAL DEVELOPMENT LTD ,202455-104 ,"14,066.95",
DFID,DFID,20/02/2018,Project delivery costs – supplier services ,East and Central Africa ,COFFEY INTERNATIONAL DEVELOPMENT LTD ,202509-102 ,"700,000.00",
DFID,DFID,19/02/2018,Project delivery costs – supplier services ,West and Southern Africa ,COFFEY INTERNATIONAL DEVELOPMENT LTD ,203429-105 ,"25,856.00",
DFID,DFID,19/02/2018,Project delivery costs – supplier services ,West and Southern Africa ,COFFEY INTERNATIONAL DEVELOPMENT LTD ,203429-105 ,"37,379.00",
DFID,DFID,12/02/2018,Project delivery costs – supplier services ,East and Central Africa ,COFFEY INTERNATIONAL DEVELOPMENT LTD ,203766-106 ,"105,015.75",
DFID,DFID,07/02/2018,Project delivery costs – supplier services ,Asia  Caribbean and Overseas Territories ,Supplier Name withheld ,204122-102 ,"69,591.00",
DFID,DFID,21/02/2018,Project delivery costs – supplier services ,East and Central Africa ,COFFEY INTERNATIONAL DEVELOPMENT LTD ,204458-115 ,"27,170.68",
DFID,DFID,01/02/2018,Project delivery costs – supplier services ,East and Central Africa ,COFFEY INTERNATIONAL DEVELOPMENT LTD ,204635-104 ,"61,907.49",
DFID,DFID,27/02/2018,Project delivery costs – supplier services ,East and Central Africa ,COFFEY INTERNATIONAL DEVELOPMENT LTD ,204788-104 ,"50,903.48",
DFID,DFID,12/02/2018,FCO shared service charges ,Group Operations ,FCO SERVICES ,203717-101 ,"1,543.95",
DFID,DFID,22/02/2018,Fund monies to be managed and dispersed by the supplier ,Economic Development Division ,AECOM LIMITED ,204715-101 ,"255,787.02",
DFID,DFID,14/02/2018,Fund monies to be managed and dispersed by the supplier ,Economic Development Division ,AECOM LIMITED ,204715-103 ,"93,746.30",
DFID,DFID,06/02/2018,Project delivery costs – supplier services ,International Relations Division ,GBRW LIMITED ,100111-101 ,"4,125.00",
DFID,DFID,12/02/2018,Air fares ,Asia  Caribbean and Overseas Territories ,PALLADIUM ,101603-101 ,"1,037.72",
DFID,DFID,05/02/2018,Project delivery costs – supplier services ,East and Central Africa ,PALLADIUM ,101630-101 ,"15,106.60",
DFID,DFID,21/02/2018,Project delivery costs – supplier services ,Policy Division ,PALLADIUM ,201724-155 ,"53,378.46",
DFID,DFID,08/02/2018,Project delivery costs – supplier services ,West and Southern Africa ,PALLADIUM ,202098-101 ,"258,634.59",
DFID,DFID,01/02/2018,Project delivery costs – supplier services ,West and Southern Africa ,PALLADIUM ,202352-102 ,"298,022.31",
DFID,DFID,20/02/2018,Project delivery costs – supplier services ,East and Central Africa ,PALLADIUM ,202900-108 ,"38,256.74",
DFID,DFID,19/02/2018,Project delivery costs – supplier services ,Asia  Caribbean and Overseas Territories ,PALLADIUM ,203427-105 ,"49,858.65",
DFID,DFID,02/02/2018,Project delivery costs – supplier services ,East and Central Africa ,PALLADIUM ,204012-106 ,"172,100.38",
DFID,DFID,20/02/2018,Project delivery costs – supplier services ,East and Central Africa ,PALLADIUM ,204439-103 ,"19,826.17",
DFID,DFID,26/02/2018,Project delivery costs – supplier services ,East and Central Africa ,PALLADIUM ,204439-103 ,"17,214.47",
DFID,DFID,22/02/2018,Aid Programme - Humanitarian Material Relief Assistance and Services ,Middle East and North Africa Division ,PALLADIUM ,204516-102 ,"35,751.40",
DFID,DFID,19/02/2018,Project delivery costs – supplier services ,Asia  Caribbean and Overseas Territories ,PALLADIUM ,204613-101 ,"79,824.45",
DFID,DFID,20/02/2018,Aid Programme - Humanitarian Material Relief Assistance and Services ,Middle East and North Africa Division ,PALLADIUM ,205094-104 ,"18,620.70",
DFID,DFID,26/02/2018,Aid Programme - Humanitarian Material Relief Assistance and Services ,Middle East and North Africa Division ,PALLADIUM ,205094-104 ,944.90,
DFID,DFID,02/02/2018,Project delivery costs – supplier services ,Asia  Caribbean and Overseas Territories ,PALLADIUM ,205138-103 ,"16,096.79",
DFID,DFID,14/02/2018,Project delivery costs – supplier services ,Conflict  Humanitarian  Security & Stabilisation Division ,PALLADIUM ,205176-103 ,"5,134.85",
DFID,DFID,14/02/2018,Project delivery costs – supplier services ,Conflict  Humanitarian  Security & Stabilisation Division ,PALLADIUM ,205176-104 ,"38,210.14",
DFID,DFID,14/02/2018,Project delivery costs – supplier services ,Conflict  Humanitarian  Security & Stabilisation Division ,PALLADIUM ,205176-105 ,"122,088.06",
DFID,DFID,20/02/2018,Project delivery costs – supplier services ,Conflict  Humanitarian  Security & Stabilisation Division ,PALLADIUM ,205176-101 ,"337,179.70",
DFID,DFID,05/02/2018,Project delivery costs – supplier services ,Asia  Caribbean and Overseas Territories ,PALLADIUM ,205268-110 ,"2,432.42",
DFID,DFID,05/02/2018,Project delivery costs – supplier services ,Asia  Caribbean and Overseas Territories ,PALLADIUM ,205268-110 ,"12,396.52",
DFID,DFID,26/02/2018,Project delivery costs – supplier services ,East and Central Africa ,PALLADIUM ,205286-105 ,"10,036.64",
DFID,DFID,09/02/2018,Project delivery costs – supplier services ,Middle East and North Africa Division ,PALLADIUM ,300045-102 ,817.20,
DFID,DFID,20/02/2018,Project delivery costs – supplier services ,Middle East and North Africa Division ,PALLADIUM ,300060-101 ,"32,849.74",
DFID,DFID,01/02/2018,Project delivery costs – supplier services ,Middle East and North Africa Division ,PALLADIUM ,300231-103 ,"4,453.25",
DFID,DFID,09/02/2018,Project delivery costs – supplier services ,Conflict  Humanitarian  Security & Stabilisation Division ,PALLADIUM ,300264-108 ,"29,644.10",
DFID,DFID,01/02/2018,Project delivery costs – supplier services ,East and Central Africa ,PALLADIUM ,300363-107 ,"9,766.03",
DFID,DFID,22/02/2018,Project delivery costs – supplier services ,Middle East and North Africa Division ,PALLADIUM ,300417-101 ,"25,458.08",
DFID,DFID,15/02/2018,Project delivery costs – supplier services ,Conflict  Humanitarian  Security & Stabilisation Division ,PALLADIUM ,300491-101 ,"38,625.02",
DFID,DFID,26/02/2018,Project delivery costs – supplier services ,Conflict  Humanitarian  Security & Stabilisation Division ,PALLADIUM ,300491-103 ,"8,079.35",
DFID,DFID,20/02/2018,Aid Programme - Humanitarian Material Relief Assistance and Services ,Conflict  Humanitarian  Security & Stabilisation Division ,PALLADIUM ,300491-103 ,"8,543.30",
DFID,DFID,26/02/2018,Aid Programme - Accountable Grant Payments ,Research and Evidence Division ,Energy 4 Impact ,203705-123 ,"572,721.00",
DFID,DFID,05/02/2018,Project delivery costs – supplier services ,Conflict  Humanitarian  Security & Stabilisation Division ,THE HALO TRUST ,203243-126 ,"2,196,310.15",
DFID,DFID,12/02/2018,Project delivery costs – supplier services ,West and Southern Africa ,HEALTH PARTNERS INTERNATIONAL ,202694-101 ,"149,541.43",
DFID,DFID,16/02/2018,Project delivery costs – supplier services ,West and Southern Africa ,HEALTH PARTNERS INTERNATIONAL ,202694-101 ,"300,769.58",
DFID,DFID,22/02/2018,Project delivery costs – supplier services ,Asia  Caribbean and Overseas Territories ,HTSPE LTD ,204984-101 ,"50,086.20",
DFID,DFID,22/02/2018,Project delivery costs – supplier services ,Asia  Caribbean and Overseas Territories ,HTSPE LTD ,204984-101 ,"119,525.60",
DFID,DFID,26/02/2018,Aid Programme - Humanitarian Material Relief Assistance and Services ,Conflict  Humanitarian  Security & Stabilisation Division ,HANDICAP INTERNATIONAL UK ,202878-103 ,"70,550.75",
DFID,DFID,07/02/2018,Aid Programme - Accountable Grant Payments ,East and Central Africa ,HANDICAP INTERNATIONAL UK ,203383-113 ,"34,976.00",
DFID,DFID,14/02/2018,Aid Programme - Accountable Grant Payments ,Research and Evidence Division ,HANDICAP INTERNATIONAL UK ,203706-115 ,"87,039.00",
DFID,DFID,19/02/2018,Aid Programme - Accountable Grant Payments ,Middle East and North Africa Division ,HANDICAP INTERNATIONAL UK ,300229-101 ,"428,248.00",
DFID,DFID,22/02/2018,Contract & Agency Staff ,Business Solutions Division Level ,Hays Specialist Recruitment Ltd ,200002-240 ,"1,502.28",
DFID,DFID,09/02/2018,Contract & Agency Staff ,Business Solutions Division Level ,Hays Specialist Recruitment Ltd ,200002-240 ,"1,502.28",
DFID,DFID,01/02/2018,Contract & Agency Staff ,Business Solutions Division Level ,Hays Specialist Recruitment Ltd ,200002-240 ,"1,502.28",
DFID,DFID,15/02/2018,Contract & Agency Staff ,Business Solutions Division Level ,Hays Specialist Recruitment Ltd ,200002-240 ,"1,502.28",
DFID,DFID,05/02/2018,Contract & Agency Staff ,Finance and Corporate Performance Division ,HUDSON GLOBAL RESOURCES LTD ,202437-101 ,"3,355.97",
DFID,DFID,23/02/2018,Contract & Agency Staff ,Finance and Corporate Performance Division ,HUDSON GLOBAL RESOURCES LTD ,202437-101 ,"4,118.69",
DFID,DFID,19/02/2018,Aid Programme - Accountable Grant Payments ,Policy Division ,HOPE & HOMES FOR CHILDREN ,203559-125 ,"201,554.00",
DFID,DFID,22/02/2018,Project delivery costs – supplier services ,Research and Evidence Division ,ITAD LTD ,203778-103 ,"91,531.50",
DFID,DFID,15/02/2018,Project delivery costs – supplier services ,Research and Evidence Division ,ITAD LTD ,203778-103 ,"48,638.25",
DFID,DFID,13/02/2018,Training - Course Fees ,Internal Audit ,INSTITUTE OF INTERNAL AUDITORS-UK ,100121-101 ,680.00,
DFID,DFID,05/02/2018,Training - Course Fees ,Internal Audit ,INSTITUTE OF INTERNAL AUDITORS-UK ,100121-101 ,585.00,
DFID,DFID,07/02/2018,Training - Course Fees ,Internal Audit ,INSTITUTE OF INTERNAL AUDITORS-UK ,100121-101 ,585.00,
DFID,DFID,20/02/2018,Project delivery costs – supplier services ,Policy Division ,INTERN DEVEL EDUC ASSOC OF SCOTLAND ,201469-105 ,"103,702.00",
DFID,DFID,08/02/2018,Research and development costs - supplier services ,Research and Evidence Division ,THE UNIVERSITY OF MANCHESTER ,201010-105 ,"213,831.38",
DFID,DFID,21/02/2018,Aid Programme - Trust Funds contributions ,Research and Evidence Division ,IBRD HSBC T ,201884-110 ,"500,000.00",
DFID,DFID,07/02/2018,Aid Programme - Trust Funds contributions ,Research and Evidence Division ,IBRD HSBC T ,203050-103 ,"800,000.00",
DFID,DFID,27/02/2018,Aid Programme - Trust Funds contributions ,Policy Division ,IBRD HSBC T ,300486-101 ,"4,000,000.00",
DFID,DFID,08/02/2018,Project delivery costs – supplier services ,Asia  Caribbean and Overseas Territories ,IOD PARC ,204984-106 ,"35,578.53",
DFID,DFID,09/02/2018,Project delivery costs – supplier services ,Research and Evidence Division ,IOD PARC ,205109-101 ,"69,035.59",
DFID,DFID,08/02/2018,Aid Programme - Trust Funds contributions ,Research and Evidence Division ,IBRD (HSBC)  C/O THE WORLD BANK ,203196-101 ,"795,000.00",
DFID,DFID,05/02/2018,Aid Programme - Trust Funds contributions ,Economic Development Division ,IBRD (HSBC)  C/O THE WORLD BANK ,203564-103 ,"500,000.00",
DFID,DFID,06/02/2018,Aid Programme - Trust Funds contributions ,East and Central Africa ,IBRD (HSBC)  C/O THE WORLD BANK ,204313-103 ,"476,376.00",
DFID,DFID,07/02/2018,Aid Programme - Joint programme contribution ,Asia  Caribbean and Overseas Territories ,INTERNATIONAL TRADE CENTRE ,205226-105 ,"298,596.00",
DFID,DFID,07/02/2018,Aid Programme - Joint programme contribution ,Economic Development Division ,INTERNATIONAL TRADE CENTRE ,205226-102 ,"132,494.00",
DFID,DFID,21/02/2018,Project delivery costs – supplier services ,Policy Division ,IMPERIAL COLLEGE LONDON ,200706-101 ,"805,449.02",
DFID,DFID,05/02/2018,Training - Course Fees ,Research and Evidence Division ,IMPERIAL COLLEGE LONDON ,202392-106 ,"1,574.00",
DFID,DFID,21/02/2018,Hostile Environment Training ,Conflict  Humanitarian  Security & Stabilisation Division ,KELLOGG BROWN & ROOT LIMITED ,100049-102 ,655.00,
DFID,DFID,28/02/2018,Hostile Environment Training ,Conflict  Humanitarian  Security & Stabilisation Division ,KELLOGG BROWN & ROOT LIMITED ,100049-101 ,655.00,
DFID,DFID,20/02/2018,Hostile Environment Training ,Internal Audit ,KELLOGG BROWN & ROOT LIMITED ,100121-101 ,583.00,
DFID,DFID,19/02/2018,Hostile Environment Training ,Communications Division ,KELLOGG BROWN & ROOT LIMITED ,100138-101 ,553.38,
DFID,DFID,15/02/2018,Hostile Environment Training ,Communications Division ,KELLOGG BROWN & ROOT LIMITED ,100138-101 ,553.38,
DFID,DFID,26/02/2018,Hostile Environment Training ,Top Management Group ,KELLOGG BROWN & ROOT LIMITED ,100232-102 ,655.00,
DFID,DFID,15/02/2018,Hostile Environment Training ,Policy Division ,KELLOGG BROWN & ROOT LIMITED ,100274-111 ,606.00,
DFID,DFID,16/02/2018,Hostile Environment Training ,Economic Development Division ,KELLOGG BROWN & ROOT LIMITED ,100276-101 ,583.00,
DFID,DFID,18/02/2018,Hostile Environment Training ,Asia  Caribbean and Overseas Territories ,Supplier Name withheld ,101601-110 ,583.00,
DFID,DFID,19/02/2018,Hostile Environment Training ,Asia  Caribbean and Overseas Territories ,KELLOGG BROWN & ROOT LIMITED ,101603-102 ,583.00,
DFID,DFID,14/02/2018,Hostile Environment Training ,Business Solutions Division Level ,KELLOGG BROWN & ROOT LIMITED ,200001-101 ,583.00,
DFID,DFID,14/02/2018,Hostile Environment Training ,Business Solutions Division Level ,KELLOGG BROWN & ROOT LIMITED ,200001-101 ,583.00,
DFID,DFID,19/02/2018,Hostile Environment Training ,Business Solutions Division Level ,KELLOGG BROWN & ROOT LIMITED ,200001-101 ,583.00,
DFID,DFID,15/02/2018,Hostile Environment Training ,Economic Development Division ,KELLOGG BROWN & ROOT LIMITED ,202259-101 ,583.00,
DFID,DFID,19/02/2018,Hostile Environment Training ,Economic Development Division ,KELLOGG BROWN & ROOT LIMITED ,202259-101 ,583.00,
DFID,DFID,28/02/2018,Hostile Environment Training ,Economic Development Division ,KELLOGG BROWN & ROOT LIMITED ,202373-101 ,583.00,
DFID,DFID,20/02/2018,Hostile Environment Training ,Economic Development Division ,KELLOGG BROWN & ROOT LIMITED ,202432-101 ,545.83,
DFID,DFID,23/02/2018,Hostile Environment Training ,East and Central Africa ,KELLOGG BROWN & ROOT LIMITED ,202594-101 ,655.00,
DFID,DFID,26/02/2018,Hostile Environment Training ,East and Central Africa ,KELLOGG BROWN & ROOT LIMITED ,202594-101 ,655.00,
DFID,DFID,26/02/2018,Hostile Environment Training ,Middle East and North Africa Division ,KELLOGG BROWN & ROOT LIMITED ,204055-101 ,655.00,
DFID,DFID,14/02/2018,Hostile Environment Training ,Country Programmes Cabinet ,KELLOGG BROWN & ROOT LIMITED ,204832-101 ,583.00,
DFID,DFID,20/02/2018,Hostile Environment Training ,Middle East and North Africa Division ,KELLOGG BROWN & ROOT LIMITED ,204844-101 ,583.00,
DFID,DFID,26/02/2018,Hostile Environment Training ,Conflict  Humanitarian  Security & Stabilisation Division ,KELLOGG BROWN & ROOT LIMITED ,205280-102 ,655.00,
DFID,DFID,02/02/2018,Research and development costs - supplier services ,Research and Evidence Division ,LIVERPOOL SCHOOL OF TROPICAL MEDICINE ,201400-103 ,"240,427.04",
DFID,DFID,02/02/2018,Research and development costs - supplier services ,Research and Evidence Division ,LIVERPOOL SCHOOL OF TROPICAL MEDICINE ,201401-103 ,"154,163.83",
DFID,DFID,15/02/2018,Aid Programme - Accountable Grant Payments ,East and Central Africa ,LIVERPOOL SCHOOL OF TROPICAL MEDICINE ,202549-104 ,"364,011.00",
DFID,DFID,07/02/2018,Research and development costs - supplier services ,Research and Evidence Division ,LIVERPOOL SCHOOL OF TROPICAL MEDICINE ,203089-103 ,"473,209.48",
DFID,DFID,23/02/2018,Research and development costs - supplier services ,Research and Evidence Division ,London School of Hygiene and Tropical Medicine ,201447-104 ,"321,780.03",
DFID,DFID,27/02/2018,Aid Programme - Accountable Grant Payments ,Research and Evidence Division ,London School of Hygiene and Tropical Medicine ,204046-102 ,"282,519.00",
DFID,DFID,09/02/2018,Research and development costs - supplier services ,Research and Evidence Division ,London School of Hygiene and Tropical Medicine ,300342-101 ,"149,687.00",
DFID,DFID,12/02/2018,Aid Programme - Accountable Grant Payments ,Research and Evidence Division ,LOUGHBOROUGH UNIVERSITY ,204867-108 ,"161,996.76",
DFID,DFID,27/02/2018,Project delivery costs – supplier services ,Asia  Caribbean and Overseas Territories ,MOTT MACDONALD LTD ,202488-107 ,"171,923.15",
DFID,DFID,27/02/2018,Project delivery costs – supplier services ,West and Southern Africa ,MOTT MACDONALD LTD ,202678-101 ,"100,387.52",
DFID,DFID,28/02/2018,Project delivery costs – supplier services ,West and Southern Africa ,MOTT MACDONALD LTD ,202678-101 ,"114,162.70",
DFID,DFID,05/02/2018,Project delivery costs – supplier services ,West and Southern Africa ,MOTT MACDONALD LTD ,202678-101 ,"105,268.77",
DFID,DFID,01/02/2018,Project delivery costs – supplier services ,East and Central Africa ,MOTT MACDONALD LTD ,202893-102 ,"45,379.36",
DFID,DFID,27/02/2018,Project delivery costs – supplier services ,West and Southern Africa ,MOTT MACDONALD LTD ,203154-103 ,"200,000.00",
DFID,DFID,21/02/2018,Project delivery costs – supplier services ,East and Central Africa ,MOTT MACDONALD LTD ,203363-103 ,"322,538.02",
DFID,DFID,09/02/2018,Project delivery costs – supplier services ,East and Central Africa ,MOTT MACDONALD LTD ,203641-103 ,"109,429.83",
DFID,DFID,21/02/2018,Project delivery costs – supplier services ,East and Central Africa ,MOTT MACDONALD LTD ,203871-102 ,"50,961.82",
DFID,DFID,28/02/2018,Project delivery costs – supplier services ,Asia  Caribbean and Overseas Territories ,MOTT MACDONALD LTD ,204023-104 ,"174,268.69",
DFID,DFID,23/02/2018,Project delivery costs – supplier services ,Asia  Caribbean and Overseas Territories ,MOTT MACDONALD LTD ,204277-102 ,"95,582.34",
DFID,DFID,23/02/2018,Aid Programme - Challenge Fund payments ,Asia  Caribbean and Overseas Territories ,MOTT MACDONALD LTD ,204277-104 ,"468,451.32",
DFID,DFID,20/02/2018,Project delivery costs – supplier services ,East and Central Africa ,MOTT MACDONALD LTD ,204288-103 ,"185,692.88",
DFID,DFID,23/02/2018,Project delivery costs – supplier services ,West and Southern Africa ,MOTT MACDONALD LTD ,205234-102 ,"350,243.66",
DFID,DFID,21/02/2018,Data Network - land lines ,Business Solutions Division Level ,VODAFONE LIMITED ,200002-185 ,"91,240.00",ECHO - rental charges for telecommunication links in DFID offices outwith European Union for December 2017 Part 2 of 2
DFID,DFID,09/02/2018,Telephone Usage & services ,Business Solutions Division Level ,VODAFONE LIMITED ,200002-168 ,"20,340.80",
DFID,DFID,09/02/2018,Data Network - land lines ,Business Solutions Division Level ,VODAFONE LIMITED ,200002-185 ,"2,219.22",
DFID,DFID,13/02/2018,Telephone Usage & services ,Business Solutions Division Level ,VODAFONE LIMITED ,200002-185 ,"6,823.10",
DFID,DFID,09/02/2018,Data Network - land lines ,Business Solutions Division Level ,VODAFONE LIMITED ,200002-185 ,"7,017.36",
DFID,DFID,09/02/2018,Data Network - land lines ,Business Solutions Division Level ,VODAFONE LIMITED ,203329-103 ,"7,017.37",
DFID,DFID,13/02/2018,Telephone Usage & services ,Business Solutions Division Level ,VODAFONE LIMITED ,203329-103 ,"6,823.10",
DFID,DFID,09/02/2018,Data Network - land lines ,Business Solutions Division Level ,VODAFONE LIMITED ,203329-103 ,"2,219.22",
DFID,DFID,21/02/2018,Data Network - land lines ,Business Solutions Division Level ,VODAFONE LIMITED ,203329-103 ,"130,135.04",ECHO - rental charges for telecommunication links in DFID offices outwith European Union for December 2017 Part 1 of 2
DFID,DFID,28/02/2018,Project delivery costs – supplier services ,East and Central Africa ,MAXWELL STAMP PLC ,204626-101 ,"88,286.88",
DFID,DFID,08/02/2018,Project delivery costs – supplier services ,Asia  Caribbean and Overseas Territories ,MET OFFICE ,203185-101 ,"24,862.50",
DFID,DFID,02/02/2018,Aid Programme - Accountable Grant Payments ,West and Southern Africa ,MERCY CORPS EUROPE ,203445-109 ,"1,139,363.00",
DFID,DFID,21/02/2018,Aid Programme - Humanitarian Material Relief Assistance and Services ,Middle East and North Africa Division ,MERCY CORPS EUROPE ,205094-101 ,"2,719,237.00",
DFID,DFID,14/02/2018,Project delivery costs – supplier services ,Economic Development Division ,NATURAL RESOURCES INSTITUTE ,203535-104 ,"95,183.00",
DFID,DFID,13/02/2018,Project delivery costs – supplier services ,Research and Evidence Division ,OXFAM INSTITUTIONAL INCOME ACCOUNT ,203706-110 ,"66,529.02",
DFID,DFID,05/02/2018,Project delivery costs – supplier services ,West and Southern Africa ,OXFORD POLICY MANAGEMENT ,202978-101 ,"118,339.51",
DFID,DFID,05/02/2018,Project delivery costs – supplier services ,West and Southern Africa ,OXFORD POLICY MANAGEMENT ,202978-101 ,"45,745.03",
DFID,DFID,23/02/2018,Project delivery costs – supplier services ,Research and Evidence Division ,OXFORD POLICY MANAGEMENT ,203051-103 ,"496,258.53",
DFID,DFID,20/02/2018,Project delivery costs – supplier services ,Asia  Caribbean and Overseas Territories ,OXFORD POLICY MANAGEMENT ,203186-105 ,"142,899.37",
DFID,DFID,09/02/2018,Project delivery costs – supplier services ,Research and Evidence Division ,OXFORD POLICY MANAGEMENT ,203339-105 ,"23,288.00",
DFID,DFID,21/02/2018,Project delivery costs – supplier services ,Research and Evidence Division ,OXFORD POLICY MANAGEMENT ,203339-105 ,"6,828.00",
DFID,DFID,20/02/2018,Project delivery costs – supplier services ,West and Southern Africa ,OXFORD POLICY MANAGEMENT ,203536-108 ,"4,851.17",
DFID,DFID,02/02/2018,Project delivery costs – supplier services ,East and Central Africa ,OXFORD POLICY MANAGEMENT ,204012-107 ,"35,138.00",
DFID,DFID,13/02/2018,Project delivery costs – supplier services ,Asia  Caribbean and Overseas Territories ,OXFORD POLICY MANAGEMENT ,204232-110 ,"20,235.00",
DFID,DFID,27/02/2018,Project delivery costs – supplier services ,East and Central Africa ,OXFORD POLICY MANAGEMENT ,204288-104 ,"77,499.68",
DFID,DFID,22/02/2018,Project delivery costs – supplier services ,Research and Evidence Division ,OXFORD POLICY MANAGEMENT ,204322-102 ,"745,652.96",
DFID,DFID,20/02/2018,Project delivery costs – supplier services ,West and Southern Africa ,OXFORD POLICY MANAGEMENT ,204330-103 ,"182,424.46",
DFID,DFID,09/02/2018,Project delivery costs – supplier services ,Research and Evidence Division ,OXFORD POLICY MANAGEMENT ,204584-158 ,"40,572.00",
DFID,DFID,01/02/2018,Project delivery costs – supplier services ,West and Southern Africa ,OXFORD POLICY MANAGEMENT ,205066-101 ,"274,564.50",
DFID,DFID,09/02/2018,Project delivery costs – supplier services ,West and Southern Africa ,OXFORD POLICY MANAGEMENT ,205189-103 ,"60,292.99",
DFID,DFID,07/02/2018,Project delivery costs – supplier services ,Research and Evidence Division ,OXFORD POLICY MANAGEMENT ,205288-101 ,"11,880.00",
DFID,DFID,07/02/2018,Project delivery costs – supplier services ,Asia  Caribbean and Overseas Territories ,OXFORD POLICY MANAGEMENT ,300238-102 ,"48,524.01",
DFID,DFID,22/02/2018,Project delivery costs – supplier services ,Middle East and North Africa Division ,OXFORD POLICY MANAGEMENT ,300239-102 ,"28,011.94",
DFID,DFID,12/02/2018,Project delivery costs – supplier services ,East and Central Africa ,OFFICE FOR NATIONAL STATISTICS ,300406-102 ,"7,065.31",
DFID,DFID,27/02/2018,Aid Programme - Accountable Grant Payments ,Policy Division ,OPPORTUNITY INTERNATIONAL UK ,203559-126 ,"200,379.00",
DFID,DFID,06/02/2018,Project delivery costs – supplier services ,West and Southern Africa ,OPTIONS CONSULTANCY SERVICES LIMITED ,202214-103 ,"165,877.00",
DFID,DFID,26/02/2018,Project delivery costs – supplier services ,Asia  Caribbean and Overseas Territories ,OPTIONS CONSULTANCY SERVICES LIMITED ,203390-104 ,"57,741.10",
DFID,DFID,20/02/2018,Project delivery costs – supplier services ,Asia  Caribbean and Overseas Territories ,OPTIONS CONSULTANCY SERVICES LIMITED ,205145-101 ,"297,799.00",
DFID,DFID,26/02/2018,Project delivery costs – supplier services ,Economic Development Division ,PRICEWATERHOUSECOOPERS ,114178-104 ,"85,018.81",
DFID,DFID,28/02/2018,Project delivery costs – supplier services ,Research and Evidence Division ,PRICEWATERHOUSECOOPERS ,200822-103 ,"30,882.25",
DFID,DFID,28/02/2018,Project delivery costs – supplier services ,Research and Evidence Division ,PRICEWATERHOUSECOOPERS ,200822-103 ,"6,776.27",
DFID,DFID,26/02/2018,Project delivery costs – supplier services ,West and Southern Africa ,PRICEWATERHOUSECOOPERS ,203161-104 ,"351,534.00",
DFID,DFID,28/02/2018,Project delivery costs – supplier services ,Research and Evidence Division ,PRICEWATERHOUSECOOPERS ,203835-104 ,"2,996.04",
DFID,DFID,28/02/2018,Project delivery costs – supplier services ,Research and Evidence Division ,PRICEWATERHOUSECOOPERS ,203835-104 ,"106,311.60",
DFID,DFID,01/02/2018,Project delivery costs – supplier services ,Asia  Caribbean and Overseas Territories ,PRICEWATERHOUSECOOPERS ,205093-103 ,"646,917.00",
DFID,DFID,16/02/2018,Project delivery costs – supplier services ,Asia  Caribbean and Overseas Territories ,PRICEWATERHOUSECOOPERS ,205245-101 ,"63,728.40",
DFID,DFID,05/02/2018,Project delivery costs – supplier services ,Asia  Caribbean and Overseas Territories ,PRICEWATERHOUSECOOPERS ,300109-101 ,"39,391.55",
DFID,DFID,05/02/2018,Project delivery costs – supplier services ,Asia  Caribbean and Overseas Territories ,PRICEWATERHOUSECOOPERS ,300109-102 ,"13,130.55",
DFID,DFID,23/02/2018,Storage & Distribution costs ,International Relations Division ,PICKFORDS LTD ,100262-101 ,657.14,
DFID,DFID,08/02/2018,Storage & Distribution costs ,Asia  Caribbean and Overseas Territories ,Supplier Name withheld ,101601-110 ,685.98,
DFID,DFID,06/02/2018,Storage & Distribution costs ,Asia  Caribbean and Overseas Territories ,PICKFORDS LTD ,101604-101 ,672.71,
DFID,DFID,28/02/2018,Relocation costs ,West and Southern Africa ,PICKFORDS LTD ,101610-101 ,"15,146.01",
DFID,DFID,08/02/2018,Relocation costs ,West and Southern Africa ,PICKFORDS LTD ,101610-101 ,"1,458.69",
DFID,DFID,08/02/2018,Storage & Distribution costs ,Asia  Caribbean and Overseas Territories ,PICKFORDS LTD ,101611-101 ,"1,033.80",
DFID,DFID,05/02/2018,Storage & Distribution costs ,West and Southern Africa ,PICKFORDS LTD ,101618-101 ,"4,981.44",
DFID,DFID,02/02/2018,Storage & Distribution costs ,Asia  Caribbean and Overseas Territories ,PICKFORDS LTD ,101621-101 ,"7,120.89",
DFID,DFID,22/02/2018,Storage & Distribution costs ,Asia  Caribbean and Overseas Territories ,PICKFORDS LTD ,101624-101 ,630.86,
DFID,DFID,22/02/2018,Storage & Distribution costs ,Asia  Caribbean and Overseas Territories ,PICKFORDS LTD ,101624-101 ,630.86,
DFID,DFID,02/02/2018,Storage & Distribution costs ,Asia  Caribbean and Overseas Territories ,PICKFORDS LTD ,101624-101 ,"6,060.42",
DFID,DFID,08/02/2018,Storage & Distribution costs ,Asia  Caribbean and Overseas Territories ,PICKFORDS LTD ,101624-101 ,"2,001.70",
DFID,DFID,27/02/2018,Storage & Distribution costs ,West and Southern Africa ,PICKFORDS LTD ,101629-101 ,"5,664.37",
DFID,DFID,07/02/2018,Relocation costs ,East and Central Africa ,PICKFORDS LTD ,101630-101 ,"4,129.44",
DFID,DFID,07/02/2018,Storage & Distribution costs ,East and Central Africa ,PICKFORDS LTD ,101630-101 ,"1,005.24",
DFID,DFID,26/02/2018,Storage & Distribution costs ,East and Central Africa ,PICKFORDS LTD ,101633-101 ,"1,789.28",
DFID,DFID,05/02/2018,Storage & Distribution costs ,East and Central Africa ,PICKFORDS LTD ,101633-101 ,"4,981.44",
DFID,DFID,27/02/2018,Storage & Distribution costs ,East and Central Africa ,PICKFORDS LTD ,101634-101 ,"2,240.60",
DFID,DFID,07/02/2018,Storage & Distribution costs ,East and Central Africa ,PICKFORDS LTD ,101635-101 ,"1,240.54",
DFID,DFID,08/02/2018,Storage & Distribution costs ,East and Central Africa ,PICKFORDS LTD ,101635-101 ,558.51,
DFID,DFID,08/02/2018,Storage & Distribution costs ,East and Central Africa ,PICKFORDS LTD ,101635-101 ,734.24,
DFID,DFID,05/02/2018,Storage & Distribution costs ,West and Southern Africa ,PICKFORDS LTD ,101638-101 ,"7,748.47",
DFID,DFID,05/02/2018,Storage & Distribution costs ,Asia  Caribbean and Overseas Territories ,PICKFORDS LTD ,202403-101 ,"5,210.36",
DFID,DFID,06/02/2018,Storage & Distribution costs ,East and Central Africa ,PICKFORDS LTD ,202594-101 ,"4,363.85",
DFID,DFID,22/02/2018,Storage & Distribution costs ,East and Central Africa ,PICKFORDS LTD ,203986-103 ,525.71,
DFID,DFID,02/02/2018,Storage & Distribution costs ,East and Central Africa ,PICKFORDS LTD ,204288-103 ,"3,801.68",
DFID,DFID,02/02/2018,Storage & Distribution costs ,East and Central Africa ,PICKFORDS LTD ,204288-103 ,"11,635.75",
DFID,DFID,06/02/2018,Project delivery costs – supplier services ,Policy Division ,PICKFORDS LTD ,205248-102 ,521.43,
DFID,DFID,07/02/2018,Storage & Distribution costs ,East and Central Africa ,PICKFORDS LTD ,300230-108 ,"3,369.00",
DFID,DFID,28/02/2018,Aid Programme - Accountable Grant Payments ,East and Central Africa ,POPULATION  SERVICES INTERNATIONAL ,204903-101 ,"1,100,000.00",
DFID,DFID,12/02/2018,Project delivery costs – supplier services ,East and Central Africa ,POPULATION  SERVICES INTERNATIONAL ,300304-102 ,"140,721.00",
DFID,DFID,12/02/2018,Project delivery costs – supplier services ,East and Central Africa ,THE POLICY PRACTICE LTD ,204809-103 ,"16,130.77",
DFID,DFID,07/02/2018,Aid Programme - Accountable Grant Payments ,Policy Division ,PRACTICAL ACTION (UK) ,203559-106 ,"16,416.00",
DFID,DFID,14/02/2018,Aid Programme - Accountable Grant Payments ,Policy Division ,PRACTICAL ACTION (UK) ,203559-152 ,"203,575.25",
DFID,DFID,19/02/2018,Aid Programme - Accountable Grant Payments ,Policy Division ,SCIAF ,203559-163 ,"130,524.24",
DFID,DFID,07/02/2018,Aid Programme - Accountable Grant Payments ,Policy Division ,THE SAVE THE CHILDREN FUND ,203559-121 ,"255,670.11",
DFID,DFID,05/02/2018,Aid Programme - Accountable Grant Payments ,Conflict  Humanitarian  Security & Stabilisation Division ,SAFERWORLD ,300358-102 ,"193,445.00",
DFID,DFID,05/02/2018,Aid Programme - Accountable Grant Payments ,Policy Division ,SENSE INTERNATIONAL ,203559-144 ,"12,648.00",
DFID,DFID,15/02/2018,Research and development costs - supplier services ,Research and Evidence Division ,SCHOOL OF ORIENTAL & AFRICAN STUDIES (UK) ,204584-153 ,"21,000.00",
DFID,DFID,23/02/2018,Project delivery costs – supplier services ,Policy Division ,Social Development Direct Ltd ,203245-106 ,"18,592.80",
DFID,DFID,01/02/2018,Project delivery costs – supplier services ,West and Southern Africa ,Social Development Direct Ltd ,203823-106 ,"8,193.86",
DFID,DFID,07/02/2018,Project delivery costs – supplier services ,East and Central Africa ,Social Development Direct Ltd ,205144-103 ,"17,116.25",
DFID,DFID,02/02/2018,Project delivery costs – supplier services ,East and Central Africa ,Social Development Direct Ltd ,205144-103 ,"30,523.75",
DFID,DFID,21/02/2018,Aid Programme - Accountable Grant Payments ,West and Southern Africa ,RESTLESS DEVELOPMENT ,205269-102 ,"85,807.00",
DFID,DFID,20/02/2018,Computer hardware maintenance ,Business Solutions Division Level ,SAPPHIRE TECHNOLOGIES LTD ,200005-147 ,"169,420.60",
DFID,DFID,08/02/2018,Aid Programme - Accountable Grant Payments ,Policy Division ,SAVE THE CHILDREN UK ,203559-154 ,"322,752.00",
DFID,DFID,09/02/2018,Aid Programme - Accountable Grant Payments ,Research and Evidence Division ,SAVE THE CHILDREN UK ,203705-128 ,"174,587.00",
DFID,DFID,09/02/2018,Storage & Distribution costs ,Business Solutions Division Level ,TNT Express (UK) Ltd ,200001-101 ,"4,483.23",
DFID,DFID,23/02/2018,Legal costs ,West and Southern Africa ,GOVERNMENT LEGAL DEPARTMENT ,205195-101 ,"5,676.00",
DFID,DFID,06/02/2018,Computer Software Licenses ,Business Solutions Division Level ,TRUSTMARQUE SOLUTIONS LTD ,200002-228 ,"5,892.80",
DFID,DFID,16/02/2018,Aid Programme - Voluntary contributions ,Policy Division ,UNICEF ,204496-101 ,"3,000,000.00",
DFID,DFID,07/02/2018,Aid Programme - Accountable Grant Payments ,Policy Division ,TROCAIRE (Northern Ireland) ,203559-112 ,"4,174.00",
DFID,DFID,14/02/2018,Aid Programme - Accountable Grant Payments ,Policy Division ,TROCAIRE (Northern Ireland) ,203559-165 ,"183,543.00",
DFID,DFID,12/02/2018,Research and development costs - supplier services ,Research and Evidence Division ,TEARFUND ,204584-149 ,"12,487.00",
DFID,DFID,23/02/2018,Research and development costs - supplier services ,Research and Evidence Division ,University Of Sussex ,204584-137 ,"44,493.00",
DFID,DFID,26/02/2018,Aid Programme - Humanitarian Material Relief Assistance and Services ,Middle East and North Africa Division ,UNDP CONTRIBUTIONS ACCOUNT ,205094-102 ,"460,000.00",
DFID,DFID,12/02/2018,Project delivery costs – supplier services ,Research and Evidence Division ,UNIVERSITY COLLEGE LONDON ,204806-105 ,"19,399.00",
DFID,DFID,09/02/2018,Research and development costs - supplier services ,Research and Evidence Division ,UNIVERSITY OF  OXFORD ,200425-103 ,"337,038.98",
DFID,DFID,14/02/2018,Project delivery costs – supplier services ,Research and Evidence Division ,UNIVERSITY OF  OXFORD ,200425-104 ,"120,211.02",
DFID,DFID,15/02/2018,Aid Programme - Core contributions ,East and Central Africa ,UNDP GBP Contributions ,204339-108 ,"67,614.79",
DFID,DFID,23/02/2018,Aid Programme - Voluntary contributions ,West and Southern Africa ,United Nation’s Children Fund (UNICEF) ,202214-126 ,"404,748.00",
DFID,DFID,27/02/2018,Aid Programme - Voluntary contributions ,West and Southern Africa ,United Nation’s Children Fund (UNICEF) ,202214-125 ,"702,176.00",
DFID,DFID,02/02/2018,Aid Programme - Voluntary contributions ,East and Central Africa ,United Nation’s Children Fund (UNICEF) ,204903-103 ,"1,000,000.00",
DFID,DFID,28/02/2018,Aid Programme - Accountable Grant Payments ,Economic Development Division ,VOLUNTARY SERVICE OVERSEAS ,203800-102 ,"61,296.00",
DFID,DFID,16/02/2018,Aid Programme - Accountable Grant Payments ,Policy Division ,VOLUNTARY SERVICE OVERSEAS ,300083-102 ,"6,754,000.00",
DFID,DFID,19/02/2018,Telephone Usage & services ,Business Solutions Division Level ,VODAFONE CORPORATE ,200002-170 ,"27,497.08",UK HQ Mobile rental and call charges for January 2018
DFID,DFID,19/02/2018,Telephone Usage & services ,Business Solutions Division Level ,VODAFONE CORPORATE ,200002-170 ,"9,514.75",
DFID,DFID,16/02/2018,Data Network - land lines ,Business Solutions Division Level ,VERIZON UK LIMITED ,200002-126 ,"12,585.35",
DFID,DFID,26/02/2018,Aid Programme - Accountable Grant Payments ,Policy Division ,WOMANKIND WORLDWIDE (JFS) ,203559-146 ,"34,154.58",
DFID,DFID,06/02/2018,Aid Programme - Accountable Grant Payments ,Policy Division ,WILTON PARK ,203166-108 ,"30,000.00",
DFID,DFID,14/02/2018,Aid Programme - Accountable Grant Payments ,Policy Division ,WATERAID ,203559-116 ,"144,476.00",
DFID,DFID,14/02/2018,Aid Programme - Accountable Grant Payments ,Policy Division ,WATERAID ,203559-157 ,"567,581.00",
DFID,DFID,01/02/2018,Aid Programme - Accountable Grant Payments ,Policy Division ,Y CARE INTERNATIONAL ,203559-147 ,"21,850.58",
DFID,DFID,26/02/2018,Air fares ,Asia  Caribbean and Overseas Territories ,Saimon Overseas Ltd ,101603-102 ,905.57,
DFID,DFID,15/02/2018,other information and communication technologies ,Business Solutions Division Level ,Telekom Networks Malawi ,203329-102 ,"17,385.55",
DFID,DFID,19/02/2018,Aid Programme - Accountable Grant Payments ,Asia  Caribbean and Overseas Territories ,Helvetas Nepal ,204857-103 ,"707,769.85",
DFID,DFID,14/02/2018,Hotels - Accommodation only ,West and Southern Africa ,Sheraton Hotel ,101610-101 ,528.39,
DFID,DFID,14/02/2018,Hotels - Accommodation only ,West and Southern Africa ,Sheraton Hotel ,101610-101 ,660.48,
DFID,DFID,14/02/2018,Hotels - Accommodation only ,West and Southern Africa ,Sheraton Hotel ,101610-101 ,528.38,
DFID,DFID,14/02/2018,Hotels - Accommodation only ,West and Southern Africa ,Sheraton Hotel ,101610-101 ,528.38,
DFID,DFID,14/02/2018,Hotels - Accommodation only ,West and Southern Africa ,Sheraton Hotel ,101610-101 ,703.35,
DFID,DFID,13/02/2018,Hotels - Accommodation only ,East and Central Africa ,Sheraton Hotel ,101612-101 ,529.21,
DFID,DFID,06/02/2018,Hotels - Accommodation only ,East and Central Africa ,Sheraton Hotel ,101635-101 ,521.36,
DFID,DFID,21/02/2018,Data Network - land lines ,Business Solutions Division Level ,INFOCOM LTD ,203329-102 ,"1,799.47",
DFID,DFID,14/02/2018,Air fares ,East and Central Africa ,Simbatravelcare Limited ,101635-101 ,"1,108.15",
DFID,DFID,14/02/2018,Air fares ,East and Central Africa ,Simbatravelcare Limited ,101635-101 ,668.35,
DFID,DFID,14/02/2018,Air fares ,East and Central Africa ,Simbatravelcare Limited ,101635-101 ,"2,036.77",
DFID,DFID,01/02/2018,Air fares ,East and Central Africa ,Simbatravelcare Limited ,101635-101 ,886.46,
DFID,DFID,14/02/2018,Air fares ,East and Central Africa ,Simbatravelcare Limited ,101635-101 ,668.35,
DFID,DFID,05/02/2018,Air fares ,East and Central Africa ,Simbatravelcare Limited ,101635-101 ,584.99,
DFID,DFID,13/02/2018,Air fares ,East and Central Africa ,Simbatravelcare Limited ,101635-101 ,953.76,
DFID,DFID,23/02/2018,Air fares ,East and Central Africa ,WFP Somalia ,101630-101 ,"7,212.64",
DFID,DFID,23/02/2018,Air fares ,East and Central Africa ,WFP Somalia ,101630-101 ,"3,017.24",
DFID,DFID,23/02/2018,Hotels - Accommodation only ,East and Central Africa ,Fairview Hotel ,101616-101 ,954.57,
DFID,DFID,05/02/2018,Hotels - Accommodation only ,East and Central Africa ,Fairview Hotel ,101616-101 ,"1,253.32",
DFID,DFID,16/02/2018,Hotels - Accommodation only ,East and Central Africa ,Fairview Hotel ,101630-102 ,759.29,
DFID,DFID,16/02/2018,Hotels - Accommodation only ,East and Central Africa ,Fairview Hotel ,101630-102 ,632.74,
DFID,DFID,16/02/2018,Hotels - Accommodation only ,East and Central Africa ,Fairview Hotel ,101630-102 ,632.74,
DFID,DFID,23/02/2018,Hotels - Accommodation only ,East and Central Africa ,Fairview Hotel ,101630-101 ,954.57,
DFID,DFID,21/02/2018,Project delivery costs – supplier services ,East and Central Africa , Khulisa Management Services ,204970-107 ,"18,491.00",
DFID,DFID,28/02/2018,Hotels - Accommodation only ,West and Southern Africa ,Supplier Name withheld ,101622-106 ,649.15,
DFID,DFID,01/02/2018,Project delivery costs – supplier services ,Policy Division ,Overseas Development Institute. ,202921-103 ,"987,361.89",
DFID,DFID,22/02/2018,Aid Programme - Accountable Grant Payments ,Economic Development Division ,ISEAL ALLIANCE ,203448-101 ,"391,675.00",
DFID,DFID,21/02/2018,Aid Programme - Accountable Grant Payments ,Conflict  Humanitarian  Security & Stabilisation Division ,BUSINESS IN THE COMMUNITY ,203417-101 ,"38,284.05",
DFID,DFID,02/02/2018,Project delivery costs – supplier services ,Economic Development Division ,ART OF LIVING ,205081-101 ,"1,045.00",
DFID,DFID,02/02/2018,Project delivery costs – supplier services ,Economic Development Division ,ART OF LIVING ,205081-101 ,"7,955.00",
DFID,DFID,12/02/2018,Computer software maintenance ,Business Solutions Division Level ,SOFTWARE BOX LTD (SBL) ,200002-225 ,"9,706.42",
DFID,DFID,06/02/2018,Aid Programme - Voluntary contributions ,East and Central Africa ,FAO ,204019-110 ,"1,702,788.00",
DFID,DFID,14/02/2018,Aid Programme - Voluntary contributions ,East and Central Africa ,FAO ,204888-105 ,"110,578.00",
DFID,DFID,27/02/2018,Aid Programme - Voluntary contributions ,West and Southern Africa ,WFP CONTRIBUTIONS UNIT ,204565-111 ,"8,000,000.00",
DFID,DFID,07/02/2018,Telephone Usage & services ,Business Solutions Division Level ,KUBE NETWORKS LTD ,200002-126 ,"1,081.98",
DFID,DFID,02/02/2018,Project delivery costs – supplier services ,West and Southern Africa ,IPA-International Procurement Agency (BV) ,205182-104 ,"673,656.53",
DFID,DFID,23/02/2018,Aid Programme - Accountable Grant Payments ,Middle East and North Africa Division ,Save the Children Fund UK ,300353-101 ,"1,715,860.00",
DFID,DFID,07/02/2018,Project delivery costs – supplier services ,Policy Division ,KPMG EAST AFRICA LTD ,201724-102 ,"63,282.00",
DFID,DFID,26/02/2018,Aid Programme - Accountable Grant Payments ,East and Central Africa ,LONDON SCHOOL OF ECONOMICS AND POLITICAL SCIENCE ,204803-103 ,"32,490.14",
DFID,DFID,07/02/2018,Project delivery costs – supplier services ,West and Southern Africa ,UPPER QUARTILE ,203816-104 ,"137,416.00",
DFID,DFID,26/02/2018,Aid Programme - Accountable Grant Payments ,Policy Division ,UNITED NATIONS FOUNDATION ,204202-101 ,"724,843.00",
DFID,DFID,15/02/2018,Aid Programme - Accountable Grant Payments ,Policy Division ,UNITED NATIONS FOUNDATION ,204202-103 ,"245,765.00",
DFID,DFID,07/02/2018,Aid Programme - Accountable Grant Payments ,Policy Division ,UNITED NATIONS FOUNDATION ,204333-102 ,"401,809.76",
DFID,DFID,23/02/2018,Aid Programme - Voluntary contributions ,Asia  Caribbean and Overseas Territories ,UNFPA ,300250-104 ,"79,815.00",
DFID,DFID,27/02/2018,Aid Programme - Voluntary contributions ,Policy Division ,UNFPA ,300378-101 ,"887,860.00",
DFID,DFID,26/02/2018,Aid Programme - Voluntary contributions ,Policy Division ,UNFPA ,300487-101 ,"10,000,000.00",
DFID,DFID,27/02/2018,Project delivery costs – supplier services ,Economic Development Division ,KPMG LLP ,204255-101 ,"97,217.33",
DFID,DFID,21/02/2018,Aid Programme - Core contributions ,Research and Evidence Division ,WHO (GENEVA) ,203082-102 ,"500,000.00",
DFID,DFID,09/02/2018,Aid Programme - Voluntary contributions ,Policy Division ,WHO (GENEVA) ,203148-103 ,"1,211,232.00",
DFID,DFID,28/02/2018,Aid Programme - Voluntary contributions ,Policy Division ,WHO (GENEVA) ,204691-101 ,"1,067,716.00",
DFID,DFID,28/02/2018,Aid Programme - Voluntary contributions ,Policy Division ,WHO (GENEVA) ,204691-102 ,"650,000.00",
DFID,DFID,28/02/2018,Aid Programme - Voluntary contributions ,Policy Division ,WHO (GENEVA) ,204691-103 ,"250,000.00",
DFID,DFID,22/02/2018,Subscriptions ,Communications Division ,THE PRESS ASSOCIATION ,100197-101 ,621.23,
DFID,DFID,19/02/2018,Project delivery costs – supplier services ,Middle East and North Africa Division ,CHEMONICS ,205048-101 ,"66,020.00",
DFID,DFID,01/02/2018,Aid Programme - Accountable Grant Payments ,Asia  Caribbean and Overseas Territories ,SEARCH FOR COMMON GROUND ,203274-102 ,"284,557.00",
DFID,DFID,27/02/2018,Aid Programme - Accountable Grant Payments ,Middle East and North Africa Division ,SEARCH FOR COMMON GROUND ,300366-101 ,"246,196.00",
DFID,DFID,28/02/2018,Aid Programme - Humanitarian Material Relief Assistance and Services ,Conflict  Humanitarian  Security & Stabilisation Division ,Air Charter Service Ltd ,300491-103 ,"1,990.00",
DFID,DFID,01/02/2018,Project delivery costs – supplier services ,Asia  Caribbean and Overseas Territories ,IPE Global Ltd. ,204237-101 ,"6,389.50",
DFID,DFID,21/02/2018,Project delivery costs – supplier services ,Asia  Caribbean and Overseas Territories ,IPE Global Ltd. ,204884-105 ,"3,535.76",
DFID,DFID,27/02/2018,Aid Programme - Accountable Grant Payments ,Economic Development Division ,Transparency International Secr ,204252-124 ,"44,223.50",
DFID,DFID,14/02/2018,Aid Programme - Accountable Grant Payments ,East and Central Africa ,MEDAIR ,204019-126 ,"496,646.00",
DFID,DFID,09/02/2018,Aid Programme - Accountable Grant Payments ,West and Southern Africa ,The Carter Center ,105844-107 ,"13,269.00",
DFID,DFID,08/02/2018,Aid Programme - Accountable Grant Payments ,Policy Division ,The Carter Center ,204938-101 ,"1,179,700.00",
DFID,DFID,26/02/2018,Aid Programme - Accountable Grant Payments ,Middle East and North Africa Division ,Supplier Name withheld ,300089-102 ,"417,284.00",
DFID,DFID,26/02/2018,Aid Programme - Accountable Grant Payments ,Middle East and North Africa Division ,Supplier Name withheld ,300089-102 ,"54,582.00",
DFID,DFID,28/02/2018,Aid Programme - Accountable Grant Payments ,West and Southern Africa ,INTERNATIONAL RESCUE COMMITTEE ,300432-110 ,"532,335.00",
DFID,DFID,05/02/2018,Project delivery costs – supplier services ,West and Southern Africa ,United Nassar Motors ,203878-103 ,"12,026.25",
DFID,DFID,09/02/2018,Aid Programme - Core contributions ,Research and Evidence Division ,BILL & MELINDA GATES FOUNDATION (USD) ,205273-102 ,"1,530,428.57",
DFID,DFID,23/02/2018,Aid Programme - Core contributions ,Research and Evidence Division ,BILL & MELINDA GATES FOUNDATION (USD) ,205273-101 ,"5,383,555.81",
DFID,DFID,09/02/2018,Aid Programme - Accountable Grant Payments ,Economic Development Division , WORLD RESOURCES INSTITUTE ,204250-112 ,"579,143.00",
DFID,DFID,05/02/2018,Aid Programme - Accountable Grant Payments ,Economic Development Division , WORLD RESOURCES INSTITUTE ,204250-113 ,"75,142.00",
DFID,DFID,15/02/2018,Project delivery costs – supplier services ,East and Central Africa ,BMB  MOTT  MACDONALD ,202511-102 ,"110,431.59",
DFID,DFID,15/02/2018,Project delivery costs – supplier services ,East and Central Africa ,BMB  MOTT  MACDONALD ,202511-102 ,"570,307.28",
DFID,DFID,21/02/2018,Fund monies to be managed and dispersed by the supplier ,East and Central Africa ,BMB  MOTT  MACDONALD ,203383-101 ,"425,000.00",
DFID,DFID,06/02/2018,Aid Programme - Joint programme contribution ,Research and Evidence Division ,INTERNATIONAL DEVELOPMENT RESEARCH CENTRE ,203506-102 ,"3,852,962.00",
DFID,DFID,23/02/2018,Aid Programme - Core contributions ,Business Change and Strategy Division ,UNOPS ,300333-101 ,612.92,
DFID,DFID,27/02/2018,Aid Programme - Accountable Grant Payments ,Asia  Caribbean and Overseas Territories ,UCEP - Underpriveliged Childrens Education Programs ,203870-104 ,"403,077.00",
DFID,DFID,23/02/2018,Project delivery costs – supplier services ,East and Central Africa ,CARDNO EMERGING MARKETS (UK) LTD ,202551-102 ,"122,128.82",
DFID,DFID,07/02/2018,Fund monies to be managed and dispersed by the supplier ,Research and Evidence Division ,CARDNO EMERGING MARKETS (UK) LTD ,203048-105 ,"427,914.70",
DFID,DFID,07/02/2018,Fund monies to be managed and dispersed by the supplier ,Research and Evidence Division ,CARDNO EMERGING MARKETS (UK) LTD ,203048-106 ,"72,148.18",
DFID,DFID,12/02/2018,Research and development costs - supplier services ,Research and Evidence Division ,CARDNO EMERGING MARKETS (UK) LTD ,203048-107 ,"19,238.00",
DFID,DFID,06/02/2018,Project delivery costs – supplier services ,East and Central Africa ,CARDNO EMERGING MARKETS (UK) LTD ,203596-101 ,"131,859.00",
DFID,DFID,08/02/2018,Project delivery costs – supplier services ,West and Southern Africa ,CARDNO EMERGING MARKETS (UK) LTD ,204179-105 ,"49,984.51",
DFID,DFID,20/02/2018,Project delivery costs – supplier services ,East and Central Africa ,CARDNO EMERGING MARKETS (UK) LTD ,205052-104 ,"11,582.74",
DFID,DFID,12/02/2018,Aid Programme - Accountable Grant Payments ,East and Central Africa ,International Initiative for Impact Evaluation(3ie) ,200795-109 ,"251,337.00",
DFID,DFID,09/02/2018,Aid Programme - Accountable Grant Payments ,Economic Development Division ,International Initiative for Impact Evaluation(3ie) ,203308-118 ,"52,819.00",
DFID,DFID,27/02/2018,Bank Charges/Services ,Finance and Corporate Performance Division ,Government Actuary's Department ,100008-101 ,"4,212.19",
DFID,DFID,15/02/2018,Bank Charges/Services ,Group Operations ,Government Actuary's Department ,100182-101 ,"8,032.61",
DFID,DFID,28/02/2018,Aid Programme - Accountable Grant Payments ,Asia  Caribbean and Overseas Territories ,NATIONAL DEMOCRATIC INSTITUTE (NDI) ,203454-102 ,"60,465.00",
DFID,DFID,21/02/2018,Aid Programme - Accountable Grant Payments ,West and Southern Africa ,NATIONAL DEMOCRATIC INSTITUTE (NDI) ,203851-118 ,"54,327.00",
DFID,DFID,23/02/2018,Project delivery costs – supplier services ,Asia  Caribbean and Overseas Territories ,RURAL RECONSTRUCTION NEPAL ,203764-110 ,"79,728.00",
DFID,DFID,23/02/2018,Project delivery costs – supplier services ,Asia  Caribbean and Overseas Territories ,RURAL RECONSTRUCTION NEPAL ,203764-104 ,"1,054,113.00",
DFID,DFID,28/02/2018,Aid Programme - Accountable Grant Payments ,Asia  Caribbean and Overseas Territories ,Sarhad Rural Support Programme (SRSP) ,202367-106 ,"150,773.53",
DFID,DFID,13/02/2018,Air fares ,Asia  Caribbean and Overseas Territories ,BONDS TRAVEL BUREAU ,101624-101 ,861.26,
DFID,DFID,13/02/2018,Training - Travel & Subsistence ,Asia  Caribbean and Overseas Territories ,BONDS TRAVEL BUREAU ,101624-101 ,543.53,
DFID,DFID,08/02/2018,Training - Travel & Subsistence ,Asia  Caribbean and Overseas Territories ,BONDS TRAVEL BUREAU ,101624-101 ,684.33,
DFID,DFID,08/02/2018,Training - Travel & Subsistence ,Asia  Caribbean and Overseas Territories ,BONDS TRAVEL BUREAU ,101624-101 ,615.95,
DFID,DFID,08/02/2018,Training - Travel & Subsistence ,Asia  Caribbean and Overseas Territories ,BONDS TRAVEL BUREAU ,101624-101 ,584.33,
DFID,DFID,08/02/2018,Training - Travel & Subsistence ,Asia  Caribbean and Overseas Territories ,BONDS TRAVEL BUREAU ,101624-101 ,567.90,
DFID,DFID,08/02/2018,Training - Travel & Subsistence ,Asia  Caribbean and Overseas Territories ,BONDS TRAVEL BUREAU ,101624-101 ,557.05,
DFID,DFID,08/02/2018,Training - Travel & Subsistence ,Asia  Caribbean and Overseas Territories ,BONDS TRAVEL BUREAU ,101624-101 ,550.17,
DFID,DFID,08/02/2018,Data Network - land lines ,Business Solutions Division Level ,NAYATEL (PVT) LTD ,203329-102 ,928.40,
DFID,DFID,13/02/2018,Hotels - Accommodation only ,Asia  Caribbean and Overseas Territories ,Supplier Name withheld ,101624-101 ,677.51,
DFID,DFID,05/02/2018,Hotels - Accommodation only ,Asia  Caribbean and Overseas Territories ,TOURISM PROMOTION SERVICES / FSH ,101624-101 ,"1,189.22",
DFID,DFID,13/02/2018,Hotels - Accommodation only ,Asia  Caribbean and Overseas Territories ,TOURISM PROMOTION SERVICES / FSH ,101624-101 ,"1,455.05",
DFID,DFID,27/02/2018,Medical/Health Services ,West and Southern Africa ,FLIMAS ,100256-102 ,683.57,
DFID,DFID,07/02/2018,Medical/Health Services ,West and Southern Africa ,FLIMAS ,101638-101 ,"4,888.10",
DFID,DFID,27/02/2018,Medical/Health Services ,West and Southern Africa ,FLIMAS ,101638-101 ,"4,187.07",
DFID,DFID,20/02/2018,Hostile Environment Training ,East and Central Africa ,UNDP Somalia ,101630-102 ,716.15,
DFID,DFID,28/02/2018,Aid Programme - Humanitarian Material Relief Assistance and Services ,Asia  Caribbean and Overseas Territories ,International Organization for Migration ,204603-104 ,"376,521.00",
DFID,DFID,28/02/2018,Aid Programme - Humanitarian Material Relief Assistance and Services ,Asia  Caribbean and Overseas Territories ,International Organization for Migration ,204603-115 ,"1,506,086.00",
DFID,DFID,28/02/2018,Aid Programme - Accountable Grant Payments ,Economic Development Division ,Transparency International Berlin ,205181-111 ,"148,843.04",
DFID,DFID,14/02/2018,Aid Programme - Core contributions ,Research and Evidence Division ,The Global Alliance for TB Drug Development ,300341-106 ,"3,000,000.00",
DFID,DFID,08/02/2018,Aid Programme - Core contributions ,Research and Evidence Division ,International Partnership for Microbicides ,300341-101 ,"1,500,000.00",
DFID,DFID,21/02/2018,Project delivery costs – supplier services ,West and Southern Africa ,Cresta Golfview Hotel Lusaka ,203627-102 ,"2,010.71",
DFID,DFID,26/02/2018,Project delivery costs – supplier services ,East and Central Africa ,PALLADIUM INTERNATIONAL ,202547-102 ,"307,090.70",
DFID,DFID,12/02/2018,Project delivery costs – supplier services ,West and Southern Africa ,PALLADIUM INTERNATIONAL ,202992-101 ,"1,675,815.00",
DFID,DFID,22/02/2018,Project delivery costs – supplier services ,West and Southern Africa ,PALLADIUM INTERNATIONAL ,202992-101 ,"872,612.81",
DFID,DFID,21/02/2018,Project delivery costs – supplier services ,West and Southern Africa ,PALLADIUM INTERNATIONAL ,202992-101 ,"424,396.00",
DFID,DFID,27/02/2018,Project delivery costs – supplier services ,West and Southern Africa ,PALLADIUM INTERNATIONAL ,202992-101 ,"544,243.34",
DFID,DFID,08/02/2018,Project delivery costs – supplier services ,West and Southern Africa ,HM REVENUE AND CUSTOMS Acc ,204918-101 ,"8,697.68",
DFID,DFID,01/02/2018,Aid Programme - Accountable Grant Payments ,East and Central Africa ,Basel Institute On Governance ,204437-107 ,"51,365.52",
DFID,DFID,14/02/2018,Aid Programme - Accountable Grant Payments ,West and Southern Africa ,Basel Institute On Governance ,205173-101 ,"262,611.00",
DFID,DFID,05/02/2018,Auditors Remuneration & Expenses - Cash ,West and Southern Africa ,Baker Tilly Nigeria ,203839-101 ,"14,553.42",
DFID,DFID,13/02/2018,Aid Programme - Joint programme contribution ,Asia  Caribbean and Overseas Territories ,DFID-GIZ Risk Management Office  Kathmandu ,300355-101 ,"76,563.00",
DFID,DFID,13/02/2018,Air fares ,East and Central Africa ,Bon Voyage Travel Centre Ltd(USD) ,101634-101 ,515.90,
DFID,DFID,13/02/2018,Air fares ,East and Central Africa ,Bon Voyage Travel Centre Ltd(USD) ,101634-101 ,667.63,
DFID,DFID,13/02/2018,Air fares ,East and Central Africa ,Bon Voyage Travel Centre Ltd(USD) ,101634-101 ,910.40,
DFID,DFID,13/02/2018,Air fares ,East and Central Africa ,Bon Voyage Travel Centre Ltd(USD) ,101634-101 ,820.09,
DFID,DFID,13/02/2018,Air fares ,East and Central Africa ,Bon Voyage Travel Centre Ltd(USD) ,101634-101 ,"1,329.48",
DFID,DFID,13/02/2018,Air fares ,East and Central Africa ,Bon Voyage Travel Centre Ltd(USD) ,101634-101 ,520.23,
DFID,DFID,13/02/2018,Project delivery costs – supplier services ,East and Central Africa ,Bon Voyage Travel Centre Ltd(Tsh) ,101634-101 ,"1,081.89",
DFID,DFID,23/02/2018,Aid Programme - Accountable Grant Payments ,East and Central Africa ,International Institute for Environment and Development (IIED) ,203574-110 ,"149,227.00",
DFID,DFID,19/02/2018,Aid Programme - Programme Contribution ,Research and Evidence Division ,USAID Washington ,203486-104 ,"631,578.00",
DFID,DFID,22/02/2018,Aid Programme - Accountable Grant Payments ,Policy Division ,Program for Appropriate Technology in Health ,300485-101 ,"496,956.61",
DFID,DFID,26/02/2018,Training Providers/Facilitation Services ,Middle East and North Africa Division ,RedR UK ,300078-101 ,"1,219.00",
DFID,DFID,15/02/2018,Aid Programme - Core contributions ,Economic Development Division ,SG HAMBROS BANK & TRUST LTD GBP ,203232-127 ,"10,818,600.00",
DFID,DFID,20/02/2018,Aid Programme - Core contributions ,Economic Development Division ,SG HAMBROS BANK & TRUST LTD GBP ,203232-127 ,"11,061,000.00",
DFID,DFID,13/02/2018,Aid Programme - Core contributions ,Economic Development Division ,SG HAMBROS BANK & TRUST LTD GBP ,203232-101 ,"486,635.00",
DFID,DFID,02/02/2018,Project delivery costs – supplier services ,Human Resources ,BIRCHES GROUP LLC ,100269-135 ,"3,397.84",
DFID,DFID,08/02/2018,Aid Programme - Accountable Grant Payments ,East and Central Africa ,DANISH REFUGEE COUNCIL ,204019-107 ,"22,937.92",
DFID,DFID,14/02/2018,Aid Programme - Accountable Grant Payments ,Middle East and North Africa Division ,DANISH REFUGEE COUNCIL ,300045-104 ,"359,883.02",
DFID,DFID,08/02/2018,Aid Programme - Accountable Grant Payments ,Conflict  Humanitarian  Security & Stabilisation Division ,DANISH REFUGEE COUNCIL ,300264-107 ,"229,698.77",
DFID,DFID,15/02/2018,Aid Programme - Accountable Grant Payments ,Conflict  Humanitarian  Security & Stabilisation Division ,DANISH REFUGEE COUNCIL ,300264-104 ,"331,361.67",
DFID,DFID,21/02/2018,Aid Programme - Humanitarian Material Relief Assistance and Services ,Conflict  Humanitarian  Security & Stabilisation Division ,DANISH REFUGEE COUNCIL ,300491-101 ,"26,597.08",
DFID,DFID,01/02/2018,Aid Programme - Core contributions ,East and Central Africa ,TRADEMARK EAST AFRICA ,204495-101 ,"375,000.00",
DFID,DFID,01/02/2018,Aid Programme - Core contributions ,East and Central Africa ,TRADEMARK EAST AFRICA ,204495-102 ,"125,000.00",
DFID,DFID,21/02/2018,Aid Programme - Pooled/Basket funding ,East and Central Africa ,TRADEMARK EAST AFRICA ,300137-110 ,"4,000,000.00",
DFID,DFID,21/02/2018,Hotels - Accommodation only ,East and Central Africa ,Doubletree by Hilton Dar es Salaam ,101634-101 ,870.09,
DFID,DFID,26/02/2018,Hotels - Accommodation only ,East and Central Africa ,Doubletree by Hilton Dar es Salaam ,101634-101 ,619.90,
DFID,DFID,26/02/2018,Hotels - Accommodation only ,East and Central Africa ,Doubletree by Hilton Dar es Salaam ,101634-101 ,843.95,
DFID,DFID,20/02/2018,Aid Programme - Accountable Grant Payments ,Research and Evidence Division ,Clinton Health Access Initiative ,205105-102 ,"287,325.00",
DFID,DFID,27/02/2018,Aid Programme - Accountable Grant Payments ,Policy Division ,Clinton Health Access Initiative ,300380-101 ,"2,173,751.00",
DFID,DFID,05/02/2018,Aid Programme - Accountable Grant Payments ,Asia  Caribbean and Overseas Territories ,The Asia Foundation (GBP) ,204623-101 ,"95,428.00",
DFID,DFID,27/02/2018,Aid Programme - Accountable Grant Payments ,Economic Development Division ,Columbia University ,204252-119 ,"62,327.93",
DFID,DFID,27/02/2018,Aid Programme - Accountable Grant Payments ,Conflict  Humanitarian  Security & Stabilisation Division ,Norwegian Refugee Council ,203419-105 ,"17,198.09",
DFID,DFID,08/02/2018,Aid Programme - Accountable Grant Payments ,Conflict  Humanitarian  Security & Stabilisation Division ,Norwegian Refugee Council ,203419-105 ,"5,848.84",
DFID,DFID,08/02/2018,Aid Programme - Accountable Grant Payments ,Conflict  Humanitarian  Security & Stabilisation Division ,Norwegian Refugee Council ,203419-105 ,"8,711.77",
DFID,DFID,28/02/2018,Aid Programme - Accountable Grant Payments ,Asia  Caribbean and Overseas Territories ,Supplier Name withheld ,203904-108 ,"918,772.00",
DFID,DFID,15/02/2018,Aid Programme - Humanitarian Material Relief Assistance and Services ,Conflict  Humanitarian  Security & Stabilisation Division ,Norwegian Refugee Council ,204610-102 ,"149,152.00",
DFID,DFID,09/02/2018,Aid Programme - Accountable Grant Payments ,Middle East and North Africa Division ,Norwegian Refugee Council ,300314-101 ,"347,099.00",
DFID,DFID,01/02/2018,Subscriptions ,Research and Evidence Division ,National Bureau of Enonomic Research ,202348-105 ,785.07,
DFID,DFID,26/02/2018,Aid Programme - Accountable Grant Payments ,Asia  Caribbean and Overseas Territories ,Supplier Name withheld ,201000-120 ,"70,530.72",
DFID,DFID,06/02/2018,Training - Travel & Subsistence ,Asia  Caribbean and Overseas Territories ,Gerry's Travel Agency Private Limited ,101624-101 ,549.69,
DFID,DFID,08/02/2018,Training - Travel & Subsistence ,Asia  Caribbean and Overseas Territories ,Gerry's Travel Agency Private Limited ,101624-101 ,623.94,
DFID,DFID,06/02/2018,Training - Travel & Subsistence ,Asia  Caribbean and Overseas Territories ,Gerry's Travel Agency Private Limited ,101624-101 ,831.80,
DFID,DFID,06/02/2018,Training - Travel & Subsistence ,Asia  Caribbean and Overseas Territories ,Gerry's Travel Agency Private Limited ,101624-101 ,899.24,
DFID,DFID,06/02/2018,Training - Travel & Subsistence ,Asia  Caribbean and Overseas Territories ,Gerry's Travel Agency Private Limited ,101624-101 ,950.62,
DFID,DFID,06/02/2018,Training - Travel & Subsistence ,Asia  Caribbean and Overseas Territories ,Gerry's Travel Agency Private Limited ,101624-101 ,950.62,
DFID,DFID,15/02/2018,Subscriptions ,Research and Evidence Division ,AAAS/SCIENCE ,202348-105 ,"3,944.37",
DFID,DFID,02/02/2018,Project delivery costs – supplier services ,Policy Division ,Triple Line Consulting ,203798-103 ,"17,172.46",
DFID,DFID,22/02/2018,Project delivery costs – supplier services ,East and Central Africa ,IMC Worldwide Ltd. ,200221-107 ,"74,833.50",
DFID,DFID,22/02/2018,Project delivery costs – supplier services ,Research and Evidence Division ,IMC Worldwide Ltd. ,201879-106 ,"146,215.28",
DFID,DFID,01/02/2018,Project delivery costs – supplier services ,Asia  Caribbean and Overseas Territories ,IMC Worldwide Ltd. ,202328-106 ,"11,236.00",
DFID,DFID,19/02/2018,Project delivery costs – supplier services ,Asia  Caribbean and Overseas Territories ,IMC Worldwide Ltd. ,202328-107 ,"254,731.42",
DFID,DFID,01/02/2018,Project delivery costs – supplier services ,Asia  Caribbean and Overseas Territories ,IMC Worldwide Ltd. ,202697-104 ,"20,358.00",
DFID,DFID,19/02/2018,Project delivery costs – supplier services ,Asia  Caribbean and Overseas Territories ,IMC Worldwide Ltd. ,202697-111 ,"330,048.00",
DFID,DFID,14/02/2018,Project delivery costs – supplier services ,Asia  Caribbean and Overseas Territories ,IMC Worldwide Ltd. ,203186-103 ,"98,164.50",
DFID,DFID,14/02/2018,Project delivery costs – supplier services ,Asia  Caribbean and Overseas Territories ,IMC Worldwide Ltd. ,203186-110 ,"766,513.53",
DFID,DFID,07/02/2018,Project delivery costs – supplier services ,Asia  Caribbean and Overseas Territories ,IMC Worldwide Ltd. ,203427-109 ,"99,853.65",
DFID,DFID,16/02/2018,Project delivery costs – supplier services ,Asia  Caribbean and Overseas Territories ,IMC Worldwide Ltd. ,203427-109 ,"50,345.86",
DFID,DFID,16/02/2018,Project delivery costs – supplier services ,Asia  Caribbean and Overseas Territories ,IMC Worldwide Ltd. ,203427-110 ,"50,345.86",
DFID,DFID,07/02/2018,Project delivery costs – supplier services ,Asia  Caribbean and Overseas Territories ,IMC Worldwide Ltd. ,203427-110 ,"99,853.66",
DFID,DFID,22/02/2018,Project delivery costs – supplier services ,Economic Development Division ,IMC Worldwide Ltd. ,203444-109 ,"6,015.60",
DFID,DFID,12/02/2018,Project delivery costs – supplier services ,Economic Development Division ,IMC Worldwide Ltd. ,203444-109 ,"6,015.60",
DFID,DFID,07/02/2018,Project delivery costs – supplier services ,West and Southern Africa ,IMC Worldwide Ltd. ,205195-102 ,"884,857.00",
DFID,DFID,16/02/2018,Project delivery costs – supplier services ,Economic Development Division ,IMC Worldwide Ltd. ,205222-107 ,"25,717.20",
DFID,DFID,09/02/2018,Project delivery costs – supplier services ,Economic Development Division ,IMC Worldwide Ltd. ,205226-103 ,"38,874.64",
DFID,DFID,05/02/2018,Project delivery costs – supplier services ,Economic Development Division ,IMC Worldwide Ltd. ,205226-103 ,"8,835.64",
DFID,DFID,27/02/2018,Project delivery costs – supplier services ,West and Southern Africa ,IMC Worldwide Ltd. ,300338-103 ,"11,734.14",
DFID,DFID,21/02/2018,Project delivery costs – supplier services ,East and Central Africa ,Integrity Research and Consultancy ,205067-101 ,"154,196.51",
DFID,DFID,28/02/2018,Project delivery costs – supplier services ,Research and Evidence Division ,DAI Europe ,112082-103 ,"78,546.80",
DFID,DFID,21/02/2018,Project delivery costs – supplier services ,Asia  Caribbean and Overseas Territories ,DAI Europe ,114433-102 ,"285,131.85",
DFID,DFID,02/02/2018,Fund monies to be managed and dispersed by the supplier ,Middle East and North Africa Division ,DAI Europe ,201828-101 ,"256,347.84",
DFID,DFID,14/02/2018,Project delivery costs – supplier services ,West and Southern Africa ,DAI Europe ,201857-105 ,"41,529.55",
DFID,DFID,14/02/2018,Project delivery costs – supplier services ,West and Southern Africa ,DAI Europe ,201857-105 ,"67,084.94",
DFID,DFID,14/02/2018,Project delivery costs – supplier services ,West and Southern Africa ,DAI Europe ,201857-102 ,"80,610.89",
DFID,DFID,14/02/2018,Project delivery costs – supplier services ,West and Southern Africa ,DAI Europe ,201857-102 ,"92,380.73",
DFID,DFID,19/02/2018,Project delivery costs – supplier services ,West and Southern Africa ,DAI Europe ,201980-102 ,"44,823.54",
DFID,DFID,19/02/2018,Project delivery costs – supplier services ,West and Southern Africa ,DAI Europe ,201980-102 ,"13,903.94",
DFID,DFID,27/02/2018,Project delivery costs – supplier services ,East and Central Africa ,DAI Europe ,202580-102 ,"213,940.13",
DFID,DFID,13/02/2018,Project delivery costs – supplier services ,East and Central Africa ,DAI Europe ,202596-105 ,"763,924.40",
DFID,DFID,02/02/2018,Project delivery costs – supplier services ,Asia  Caribbean and Overseas Territories ,DAI Europe ,203035-106 ,"6,615.00",
DFID,DFID,27/02/2018,Project delivery costs – supplier services ,East and Central Africa ,DAI Europe ,203574-109 ,"1,348.80",
DFID,DFID,27/02/2018,Project delivery costs – supplier services ,East and Central Africa ,DAI Europe ,203574-112 ,"32,681.45",
DFID,DFID,02/02/2018,Project delivery costs – supplier services ,East and Central Africa ,DAI Europe ,203574-112 ,"20,397.44",
DFID,DFID,20/02/2018,Project delivery costs – supplier services ,Asia  Caribbean and Overseas Territories ,DAI Europe ,203764-105 ,"12,109.04",
DFID,DFID,22/02/2018,Project delivery costs – supplier services ,West and Southern Africa ,DAI Europe ,203922-101 ,"440,494.01",
DFID,DFID,19/02/2018,Project delivery costs – supplier services ,East and Central Africa ,DAI Europe ,203986-105 ,"211,046.41",
DFID,DFID,02/02/2018,Project delivery costs – supplier services ,East and Central Africa ,DAI Europe ,204157-106 ,"828,830.66",
DFID,DFID,02/02/2018,Project delivery costs – supplier services ,East and Central Africa ,DAI Europe ,204157-108 ,"593,109.00",
DFID,DFID,02/02/2018,Project delivery costs – supplier services ,East and Central Africa ,DAI Europe ,204157-102 ,"199,716.41",
DFID,DFID,02/02/2018,Project delivery costs – supplier services ,East and Central Africa ,DAI Europe ,204157-105 ,"203,018.08",
DFID,DFID,16/02/2018,Project delivery costs – supplier services ,East and Central Africa ,DAI Europe ,204258-101 ,"20,844.01",
DFID,DFID,09/02/2018,Project delivery costs – supplier services ,Middle East and North Africa Division ,DAI Europe ,204325-102 ,"31,970.96",
DFID,DFID,28/02/2018,Project delivery costs – supplier services ,Asia  Caribbean and Overseas Territories ,DAI Europe ,204604-102 ,"228,527.25",
DFID,DFID,01/02/2018,Project delivery costs – supplier services ,Asia  Caribbean and Overseas Territories ,DAI Europe ,204977-103 ,"191,222.77",
DFID,DFID,22/02/2018,Project delivery costs – supplier services ,West and Southern Africa ,WYG International (Formerly Delta Partnership) ,202416-113 ,"158,826.00",
DFID,DFID,26/02/2018,Project delivery costs – supplier services ,Policy Division ,Sightsavers ,203145-101 ,"1,570,393.00",
DFID,DFID,02/02/2018,Project delivery costs – supplier services ,Policy Division ,Sightsavers ,203146-103 ,"260,000.00",
DFID,DFID,21/02/2018,Aid Programme - Accountable Grant Payments ,Policy Division ,Sightsavers ,203559-156 ,"306,747.00",
DFID,DFID,09/02/2018,Project delivery costs – supplier services ,Asia  Caribbean and Overseas Territories ,Deloitte Touche Tohmatsu India Pvt. Ltd. ,202927-107 ,"2,002.72",
DFID,DFID,05/02/2018,Project delivery costs – supplier services ,West and Southern Africa ,Abt Associates ,202342-102 ,"123,133.00",
DFID,DFID,02/02/2018,Research and development costs - supplier services ,Research and Evidence Division ,Abt Associates ,203052-105 ,"45,144.97",
DFID,DFID,01/02/2018,Project delivery costs – supplier services ,Research and Evidence Division ,Abt Associates ,203052-106 ,"95,670.12",
DFID,DFID,06/02/2018,Project delivery costs – supplier services ,Asia  Caribbean and Overseas Territories ,Abt Associates ,205145-107 ,"60,867.00",
DFID,DFID,20/02/2018,Project delivery costs – supplier services ,East and Central Africa ,Marie Stopes International (MSI) ,201518-102 ,"9,473,880.00",
DFID,DFID,26/02/2018,Project delivery costs – supplier services ,East and Central Africa ,Marie Stopes International (MSI) ,202549-105 ,"550,863.00",
DFID,DFID,26/02/2018,Fund monies to be managed and dispersed by the supplier ,East and Central Africa ,Marie Stopes International (MSI) ,202549-105 ,"276,622.40",
DFID,DFID,26/02/2018,Project delivery costs – supplier services ,East and Central Africa ,Marie Stopes International (MSI) ,202549-105 ,"3,540.40",
DFID,DFID,26/02/2018,Project delivery costs – supplier services ,East and Central Africa ,Marie Stopes International (MSI) ,202549-110 ,"178,451.11",
DFID,DFID,28/02/2018,Aid Programme - Accountable Grant Payments ,Asia  Caribbean and Overseas Territories ,Marie Stopes International (MSI) ,203390-103 ,"648,674.82",
DFID,DFID,13/02/2018,Project delivery costs – supplier services ,Policy Division ,PATH ,204954-102 ,"4,619.80",
DFID,DFID,19/02/2018,Project delivery costs – supplier services ,Policy Division ,PATH ,204954-102 ,"1,670.55",
DFID,DFID,19/02/2018,Project delivery costs – supplier services ,Policy Division ,PATH ,204954-102 ,"10,158.75",
DFID,DFID,19/02/2018,Project delivery costs – supplier services ,Policy Division ,PATH ,204954-102 ,"16,329.16",
DFID,DFID,19/02/2018,Project delivery costs – supplier services ,Policy Division ,PATH ,204954-102 ,"9,008.10",
DFID,DFID,28/02/2018,Project delivery costs – supplier services ,Policy Division ,PATH ,204954-102 ,"12,222.49",
DFID,DFID,08/02/2018,Project delivery costs – supplier services ,Policy Division ,PATH ,204954-102 ,"89,728.98",
DFID,DFID,28/02/2018,Project delivery costs – supplier services ,Policy Division ,PATH ,204954-102 ,"89,728.98",
DFID,DFID,19/02/2018,Project delivery costs – supplier services ,Policy Division ,PATH ,204954-102 ,"2,981.99",
DFID,DFID,19/02/2018,Project delivery costs – supplier services ,Policy Division ,PATH ,204954-102 ,"42,079.50",
DFID,DFID,28/02/2018,Research and development costs - supplier services ,Research and Evidence Division ,WYG International ,204563-104 ,"83,685.90",
DFID,DFID,16/02/2018,Project delivery costs – supplier services ,East and Central Africa ,WYG International ,300230-105 ,"321,837.16",
DFID,DFID,19/02/2018,Project delivery costs – supplier services ,West and Southern Africa ,LTS International Ltd. ,201196-108 ,"24,826.20",
DFID,DFID,27/02/2018,Project delivery costs – supplier services ,Asia  Caribbean and Overseas Territories ,LTS International Ltd. ,201724-153 ,"57,717.75",
DFID,DFID,27/02/2018,Project delivery costs – supplier services ,Asia  Caribbean and Overseas Territories ,LTS International Ltd. ,201724-153 ,"37,613.00",
DFID,DFID,05/02/2018,Project delivery costs – supplier services ,Policy Division ,LTS International Ltd. ,201724-135 ,"35,547.92",
DFID,DFID,15/02/2018,Project delivery costs – supplier services ,Policy Division ,LTS International Ltd. ,201724-135 ,"21,851.62",
DFID,DFID,21/02/2018,Project delivery costs – supplier services ,Research and Evidence Division ,LTS International Ltd. ,201878-102 ,"1,281.21",
DFID,DFID,12/02/2018,Project delivery costs – supplier services ,East and Central Africa ,LTS International Ltd. ,203152-102 ,"55,080.00",
DFID,DFID,20/02/2018,Project delivery costs – supplier services ,East and Central Africa ,Mannion Daniels Limited ,202169-103 ,"21,861.68",
DFID,DFID,13/02/2018,Project delivery costs – supplier services ,Policy Division ,Mannion Daniels Limited ,203559-102 ,"3,905.58",
DFID,DFID,26/02/2018,Aid Programme - Programme Contribution ,International Relations Division ,Commonwealth Scholarships Comm ,204043-101 ,"600,667.00",
DFID,DFID,05/02/2018,Project delivery costs – supplier services ,East and Central Africa ,KISAKA & COMPANY CPA ,200795-111 ,"4,364.40",
DFID,DFID,26/02/2018,Project delivery costs – supplier services ,East and Central Africa ,TRANSTEC ,203462-101 ,"36,622.00",
DFID,DFID,21/02/2018,Project delivery costs – supplier services ,Middle East and North Africa Division ,TRANSTEC ,204516-101 ,"285,986.00",
DFID,DFID,02/02/2018,Project delivery costs – supplier services ,Research and Evidence Division ,PA CONSULTING SERVICES LTD ,300124-101 ,"24,000.00",
DFID,DFID,20/02/2018,Aid Programme - Accountable Grant Payments ,Asia  Caribbean and Overseas Territories ,International Foundation for Electoral Systems ,203454-101 ,"133,574.00",
DFID,DFID,01/02/2018,Project delivery costs – supplier services ,Asia  Caribbean and Overseas Territories ,PricewaterhouseCoopers Pvt.Ltd ,203427-103 ,"136,574.00",
DFID,DFID,01/02/2018,Project delivery costs – supplier services ,Asia  Caribbean and Overseas Territories ,PricewaterhouseCoopers Pvt.Ltd ,203427-108 ,"881,877.00",
DFID,DFID,02/02/2018,Research and development costs - supplier services ,Research and Evidence Division ,PricewaterhouseCoopers Limited (KENYA3) ,204570-106 ,"327,658.40",
DFID,DFID,19/02/2018,Project delivery costs – supplier services ,Research and Evidence Division ,PricewaterhouseCoopers Limited (KENYA3) ,204570-106 ,"40,625.52",
DFID,DFID,01/02/2018,Project delivery costs – supplier services ,West and Southern Africa ,Movenpick Ambassador Hotel Accra ,204918-101 ,"1,858.57",
DFID,DFID,28/02/2018,Aid Programme - Accountable Grant Payments ,East and Central Africa ,Act! (Act.Change.Transform) ,203574-111 ,"122,288.00",
DFID,DFID,15/02/2018,Research and development costs - supplier services ,Research and Evidence Division ,University of Cape Town (UCT) ,201446-104 ,"253,549.95",
DFID,DFID,28/02/2018,Aid Programme - Accountable Grant Payments ,Policy Division ,Micronutrient Initiative ,204954-101 ,"427,438.00",
DFID,DFID,21/02/2018,Aid Programme - Accountable Grant Payments ,West and Southern Africa ,The Global Alliance for Improved Nutrition ,203981-105 ,"308,876.00",
DFID,DFID,08/02/2018,Research and development costs - supplier services ,Research and Evidence Division ,JHU Bloomberg School of Public Health ,201888-104 ,"340,761.00",
DFID,DFID,08/02/2018,Research and development costs - supplier services ,Research and Evidence Division ,JHU Bloomberg School of Public Health ,201888-105 ,"73,009.00",
DFID,DFID,08/02/2018,Medical/Health Services ,Middle East and North Africa Division ,CNLR Horizons Limited (Trading as CiC) ,300078-101 ,"1,500.00",
DFID,DFID,26/02/2018,Hostile Environment Training ,Finance and Corporate Performance Division ,KBR ,100201-101 ,655.00,
DFID,DFID,19/02/2018,Hostile Environment Training ,Business Solutions Division Level ,KBR ,200001-101 ,583.00,
DFID,DFID,21/02/2018,Hostile Environment Training ,Business Solutions Division Level ,KBR ,200001-101 ,583.00,
DFID,DFID,20/02/2018,Hostile Environment Training ,Business Solutions Division Level ,KBR ,200001-101 ,583.00,
DFID,DFID,21/02/2018,Hostile Environment Training ,Business Solutions Division Level ,KBR ,200001-101 ,583.00,
DFID,DFID,07/02/2018,Computer software maintenance ,Business Solutions Division Level ,MidlandHR ,200002-241 ,"1,686.50",
DFID,DFID,07/02/2018,Computer Software Licenses ,Business Solutions Division Level ,MidlandHR ,200002-241 ,866.86,
DFID,DFID,15/02/2018,Aid Programme - Joint programme contribution ,Policy Division ,Deutsche Gesellschaft fuer Internationale Zusammenarbeit (GIZ) GmbH ,202957-103 ,"15,449.33",
DFID,DFID,14/02/2018,Aid Programme - Voluntary contributions ,West and Southern Africa ,Deutsche Gesellschaft fuer Internationale Zusammenarbeit (GIZ) GmbH ,300372-102 ,"130,000.00",
DFID,DFID,19/02/2018,Aid Programme - Accountable Grant Payments ,West and Southern Africa ,JHU Center for Communication Programs ,300191-101 ,"347,981.00",
DFID,DFID,12/02/2018,Hotels - Accommodation only ,East and Central Africa ,Supplier Name withheld ,101634-101 ,500.00,
DFID,DFID,12/02/2018,Aid Programme - Accountable Grant Payments ,Research and Evidence Division ,HivosGBP ,204343-105 ,"517,394.00",
DFID,DFID,15/02/2018,Hotels - Accommodation only ,Policy Division ,Police Scotland ,100277-101 ,588.00,
DFID,DFID,14/02/2018,Repairs  Maintenance and Alterations – Other Building Costs ,Group Operations ,Flexiform Business Furniture Limited ,100106-101 ,"2,030.70",
DFID,DFID,28/02/2018,Aid Programme - Humanitarian Material Relief Assistance and Services ,Asia  Caribbean and Overseas Territories ,UK-Med ,205268-110 ,"123,672.00",
DFID,DFID,02/02/2018,Aid Programme - Accountable Grant Payments ,West and Southern Africa ,TechnoServe  Incorporated ,204112-101 ,"207,095.07",
DFID,DFID,14/02/2018,Project delivery costs – supplier services ,Business Solutions Division Level ,Parity Resources ,200004-127 ,"1,681.08",
DFID,DFID,20/02/2018,Project delivery costs – supplier services ,Business Solutions Division Level ,Parity Resources ,200004-127 ,"1,681.08",
DFID,DFID,07/02/2018,Project delivery costs – supplier services ,Business Solutions Division Level ,Parity Resources ,200004-127 ,"1,681.08",
DFID,DFID,14/02/2018,Project delivery costs – supplier services ,Research and Evidence Division ,Carbon Trust ,204867-102 ,"343,390.16",
DFID,DFID,13/02/2018,Aid Programme - Accountable Grant Payments ,Policy Division ,AAUK ,203559-114 ,"36,844.64",
DFID,DFID,13/02/2018,Aid Programme - Accountable Grant Payments ,Policy Division ,AAUK ,203559-169 ,"31,421.20",
DFID,DFID,27/02/2018,Training - Course Fees ,Business Solutions Division Level ,Emergn ,200001-101 ,"5,700.00",
DFID,DFID,08/02/2018,Aid Programme - Accountable Grant Payments ,Policy Division ,Disability Rights Advocacy Fund Inc. ,300311-101 ,"338,270.00",
DFID,DFID,26/02/2018,Postage Costs ,Group Operations ,Royal Mail Courier Services Ltd ,203717-101 ,750.20,
DFID,DFID,02/02/2018,Aid Programme - Accountable Grant Payments ,Policy Division ,SolarAid ,203559-169 ,"36,616.93",
DFID,DFID,09/02/2018,Aid Programme - Accountable Grant Payments ,Policy Division ,SolarAid ,203559-136 ,"18,571.44",
DFID,DFID,06/02/2018,Aid Programme - Accountable Grant Payments ,Policy Division ,SolarAid ,203559-136 ,"42,667.61",
DFID,DFID,20/02/2018,Aid Programme - Other Financial Aid to Government ,Asia  Caribbean and Overseas Territories ,INDECOM Jamaica ,204232-103 ,"282,812.50",
DFID,DFID,07/02/2018,Project delivery costs – supplier services ,Middle East and North Africa Division ,Blumont International  Inc. ,300273-101 ,"364,089.91",
DFID,DFID,27/02/2018,Project delivery costs – supplier services ,Middle East and North Africa Division ,Blumont International  Inc. ,300273-101 ,"80,782.02",
DFID,DFID,13/02/2018,Contract & Agency Staff ,Finance and Corporate Performance Division ,Anderson Knight Ltd ,100201-101 ,"1,436.78",
DFID,DFID,06/02/2018,Contract & Agency Staff ,Finance and Corporate Performance Division ,Anderson Knight Ltd ,100201-101 ,"1,436.78",
DFID,DFID,13/02/2018,Contract & Agency Staff ,Group Operations ,Anderson Knight Ltd ,100270-104 ,725.94,
DFID,DFID,06/02/2018,Contract & Agency Staff ,Group Operations ,Anderson Knight Ltd ,100270-104 ,725.94,
DFID,DFID,20/02/2018,Contract & Agency Staff ,Group Operations ,Anderson Knight Ltd ,100270-104 ,725.94,
DFID,DFID,27/02/2018,Contract & Agency Staff ,Group Operations ,Anderson Knight Ltd ,100270-104 ,725.94,
DFID,DFID,16/02/2018,Project delivery costs – supplier services ,West and Southern Africa ,KPMG GHANA LLP ,202493-106 ,"26,327.63",
DFID,DFID,21/02/2018,Training - Course Fees ,Conflict  Humanitarian  Security & Stabilisation Division ,Language Services Direct Ltd ,100049-102 ,"1,110.60",
DFID,DFID,07/02/2018,Aid Programme - Accountable Grant Payments ,Research and Evidence Division ,Grand Challenges Canada ,203486-103 ,"444,852.00",
DFID,DFID,08/02/2018,Aid Programme - Accountable Grant Payments ,Asia  Caribbean and Overseas Territories ,The Citizens Foundation ,300238-105 ,"61,582.00",
DFID,DFID,09/02/2018,Project delivery costs – supplier services ,West and Southern Africa ,EUROSIS  Consultoria e Formação em Gestão  Lda ,205074-104 ,"16,496.15",
DFID,DFID,01/02/2018,Aid Programme - Strategic Grant Arrangement payments ,Research and Evidence Division ,Partnership for African Social & Governance Research Inc. ,113957-102 ,"285,872.00",
DFID,DFID,16/02/2018,Project delivery costs – supplier services ,West and Southern Africa ,IMA World Health - ASSP ,202732-102 ,"2,236,899.00",
DFID,DFID,16/02/2018,Project delivery costs – supplier services ,West and Southern Africa ,IMA World Health - ASSP ,202732-104 ,"785,425.00",
DFID,DFID,19/02/2018,Air fares ,East and Central Africa ,Phoenix Aviation (KE) ,101630-101 ,"12,914.07",
DFID,DFID,28/02/2018,Aid Programme - Other Financial Aid to Government ,Asia  Caribbean and Overseas Territories ,Pakistan National Cash Transfer Programme ,203029-102 ,"4,875,000.00",
DFID,DFID,28/02/2018,Aid Programme - Other Financial Aid to Government ,Asia  Caribbean and Overseas Territories ,Pakistan National Cash Transfer Programme ,203029-108 ,"625,000.00",
DFID,DFID,14/02/2018,Aid Programme - Accountable Grant Payments ,West and Southern Africa ,THET Zambia ,203543-102 ,"90,452.00",
DFID,DFID,14/02/2018,Aid Programme - Programme Contribution ,East and Central Africa ,National Crime Agency ,205055-102 ,"27,930.87",
DFID,DFID,20/02/2018,Training - Course Fees ,Economic Development Division ,EML Learning Ltd. ,100086-101 ,894.00,
DFID,DFID,20/02/2018,Training - Course Fees ,Economic Development Division ,EML Learning Ltd. ,100086-101 ,882.00,
DFID,DFID,06/02/2018,Aid Programme - Accountable Grant Payments ,Research and Evidence Division ,GSMA Mobile for Development Foundation Inc ,203804-106 ,"2,953,246.93",
DFID,DFID,08/02/2018,Aid Programme - Accountable Grant Payments ,Research and Evidence Division ,GSMA Mobile for Development Foundation Inc ,300446-101 ,"230,705.00",
DFID,DFID,13/02/2018,Aid Programme - Accountable Grant Payments ,Economic Development Division ,International Budget Partnership ,300157-103 ,"74,244.03",
DFID,DFID,12/02/2018,Project delivery costs – supplier services ,Asia  Caribbean and Overseas Territories ,Center for Project Supervision and Management  Ministry of Health ,202708-103 ,"310,135.04",
DFID,DFID,07/02/2018,Aid Programme - Accountable Grant Payments ,West and Southern Africa ,BasicNeeds-GHANA ,203536-105 ,"151,251.58",
DFID,DFID,09/02/2018,Aid Programme - Accountable Grant Payments ,West and Southern Africa ,Deutsche Welthungerhilfe ,300067-107 ,"468,124.00",
DFID,DFID,14/02/2018,Data Network - land lines ,Business Solutions Division Level ,Liquid Telecommunications Rwanda Ltd ,203329-102 ,888.87,
DFID,DFID,28/02/2018,Aid Programme - Other Financial Aid to Government ,West and Southern Africa ,Ministry of Finance  Ghana Health Sector Support Programme ,203536-110 ,"1,229,966.00",
DFID,DFID,28/02/2018,Aid Programme - Other Financial Aid to Government ,West and Southern Africa ,Ministry of Finance  Ghana Health Sector Support Programme ,203536-108 ,"200,000.00",
DFID,DFID,28/02/2018,Aid Programme - Other Financial Aid to Government ,West and Southern Africa ,Ministry of Finance  Ghana Health Sector Support Programme ,203536-108 ,"100,000.00",
DFID,DFID,13/02/2018,Aid Programme - Accountable Grant Payments ,Asia  Caribbean and Overseas Territories ,Infrastructure Development Company Limited (IDCOL) ,202976-107 ,"118,471.24",
DFID,DFID,12/02/2018,Aid Programme - Accountable Grant Payments ,Conflict  Humanitarian  Security & Stabilisation Division ,CANADEM ,203419-105 ,"3,391.78",
DFID,DFID,26/02/2018,Aid Programme - Humanitarian Material Relief Assistance and Services ,Middle East and North Africa Division ,CANADEM ,205094-104 ,"8,213.00",
DFID,DFID,26/02/2018,Aid Programme - Humanitarian Material Relief Assistance and Services ,Middle East and North Africa Division ,CANADEM ,205094-104 ,"17,475.82",
DFID,DFID,06/02/2018,Aid Programme - Refugee Relief Payments ,East and Central Africa ,CANADEM ,300357-107 ,"7,150.00",
DFID,DFID,06/02/2018,Aid Programme - Refugee Relief Payments ,East and Central Africa ,CANADEM ,300357-107 ,"11,922.00",
DFID,DFID,05/02/2018,Aid Programme - Humanitarian Material Relief Assistance and Services ,Conflict  Humanitarian  Security & Stabilisation Division ,CANADEM ,300491-101 ,"15,635.09",
DFID,DFID,28/02/2018,Aid Programme - Accountable Grant Payments ,East and Central Africa ,SAGCOT CENTRE LIMITED ,202844-108 ,"317,449.05",
DFID,DFID,15/02/2018,Aid Programme - Refugee Relief Payments ,East and Central Africa ,RedR Australia ,300357-107 ,"19,818.90",
DFID,DFID,20/02/2018,Training - Course Fees ,West and Southern Africa ,Tchic MULENGA ,101610-101 ,"1,142.04",
DFID,DFID,15/02/2018,Project delivery costs – supplier services ,West and Southern Africa ,RENAN CONSULT LTD ,204918-101 ,"3,698.07",
DFID,DFID,09/02/2018,Data Network - land lines ,Business Solutions Division Level ,(Vodafone)Cable & Wireless Global Networks Ltd ,200002-185 ,"6,317.72",
DFID,DFID,09/02/2018,Data Network - land lines ,Business Solutions Division Level ,(Vodafone)Cable & Wireless Global Networks Ltd ,203329-103 ,"6,317.72",
DFID,DFID,27/02/2018,Aid Programme - Accountable Grant Payments ,Conflict  Humanitarian  Security & Stabilisation Division ,International NGO Safety Organisation ,203978-102 ,"6,155.00",
DFID,DFID,27/02/2018,Aid Programme - Humanitarian Material Relief Assistance and Services ,Middle East and North Africa Division ,International NGO Safety Organisation ,205094-102 ,"125,000.00",
DFID,DFID,15/02/2018,Project delivery costs – supplier services ,Policy Division ,Climate Policy Initiative ,201733-121 ,"36,516.76",
DFID,DFID,06/02/2018,Data Network - land lines ,Business Solutions Division Level ,Keltec Ltd ,200002-124 ,"1,125.00",
DFID,DFID,15/02/2018,Training Providers/Facilitation Services ,Research and Evidence Division ,LSR Training and Development Ltd. ,202331-101 ,"1,350.00",
DFID,DFID,12/02/2018,Project delivery costs – supplier services ,West and Southern Africa ,EY LLP ,203628-104 ,"51,278.45",
DFID,DFID,15/02/2018,Aid Programme - Accountable Grant Payments ,Asia  Caribbean and Overseas Territories ,Pakistan Microfinance Network ,113331-105 ,"144,724.00",
DFID,DFID,15/02/2018,Aid Programme - Accountable Grant Payments ,Asia  Caribbean and Overseas Territories ,Pakistan Microfinance Network ,113331-105 ,"48,405.00",
DFID,DFID,27/02/2018,Project delivery costs – supplier services ,Policy Division ,Gaiasoft ,203516-104 ,"19,870.13",
DFID,DFID,15/02/2018,Project delivery costs – supplier services ,Business Solutions Division Level ,Leidos Innovations UK ,200005-116 ,"24,726.00",
DFID,DFID,15/02/2018,Project delivery costs – supplier services ,Business Solutions Division Level ,Leidos Innovations UK ,200005-116 ,"74,609.75",
DFID,DFID,21/02/2018,Project delivery costs – supplier services ,East and Central Africa ,KPMG Advisory Limited ,204804-103 ,"217,779.11",
DFID,DFID,21/02/2018,Project delivery costs – supplier services ,East and Central Africa ,KPMG Advisory Limited ,204804-102 ,"653,337.35",
DFID,DFID,22/02/2018,Conferences  Seminars & Meeting/Event Resource ,Research and Evidence Division ,Calder Conferences ,202331-102 ,"19,084.99",
DFID,DFID,14/02/2018,Aid Programme - Accountable Grant Payments ,West and Southern Africa ,Heifer International Malawi ,202524-111 ,"256,894.00",
DFID,DFID,20/02/2018,Aid Programme - Accountable Grant Payments ,West and Southern Africa ,Action Aid International Foundation ,204819-105 ,"26,341.00",
DFID,DFID,22/02/2018,Aid Programme - Voluntary contributions ,Asia  Caribbean and Overseas Territories ,UNOPS-HQ ,205268-110 ,"13,719,277.44",
DFID,DFID,22/02/2018,Aid Programme - Voluntary contributions ,West and Southern Africa ,UNOPS-HQ ,300303-101 ,"1,416,100.00",
DFID,DFID,14/02/2018,Aid Programme - Accountable Grant Payments ,Economic Development Division ,Natural Resource Governance Institute - CORE ,203308-119 ,"592,370.00",
DFID,DFID,21/02/2018,Aid Programme - Accountable Grant Payments ,Economic Development Division ,The British Academy ,203448-101 ,"438,537.50",
DFID,DFID,06/02/2018,Project delivery costs – supplier services ,Policy Division ,AECOM Professional Services ,201724-156 ,"8,987.50",
DFID,DFID,06/02/2018,Project delivery costs – supplier services ,Policy Division ,AECOM Professional Services ,201724-156 ,"11,550.00",
DFID,DFID,26/02/2018,Project delivery costs – supplier services ,West and Southern Africa ,AECOM Professional Services ,202214-103 ,"16,375.00",
DFID,DFID,28/02/2018,Project delivery costs – supplier services ,West and Southern Africa ,AECOM Professional Services ,202214-103 ,"20,416.18",
DFID,DFID,27/02/2018,Project delivery costs – supplier services ,East and Central Africa ,AECOM Professional Services ,202900-107 ,"82,829.30",
DFID,DFID,02/02/2018,Project delivery costs – supplier services ,East and Central Africa ,AECOM Professional Services ,202900-107 ,"305,754.46",
DFID,DFID,02/02/2018,DFID Purchased Relief Supplies ,West and Southern Africa ,AECOM Professional Services ,203674-103 ,"41,452.80",
DFID,DFID,21/02/2018,DFID Purchased Relief Supplies ,Asia  Caribbean and Overseas Territories ,AECOM Professional Services ,204023-105 ,"594,151.04",
DFID,DFID,20/02/2018,Project delivery costs – supplier services ,Asia  Caribbean and Overseas Territories ,AECOM Professional Services ,204023-105 ,"2,358.83",
DFID,DFID,20/02/2018,DFID Purchased Relief Supplies ,Asia  Caribbean and Overseas Territories ,AECOM Professional Services ,204023-105 ,"39,313.79",
DFID,DFID,21/02/2018,Project delivery costs – supplier services ,Asia  Caribbean and Overseas Territories ,AECOM Professional Services ,204023-105 ,"35,649.06",
DFID,DFID,26/02/2018,DFID Purchased Relief Supplies ,East and Central Africa ,AECOM Professional Services ,204626-106 ,"5,521.01",
DFID,DFID,14/02/2018,Hotels - Accommodation only ,Business Solutions Division Level ,Golf Course Hotel Ltd ,203329-104 ,"1,153.57",
DFID,DFID,20/02/2018,Fund monies to be managed and dispersed by the supplier ,Policy Division ,KPMG East Africa Limited ,202921-127 ,"3,635,575.00",
DFID,DFID,20/02/2018,Fund monies to be managed and dispersed by the supplier ,Policy Division ,KPMG East Africa Limited ,202921-128 ,"5,173,155.00",
DFID,DFID,01/02/2018,Fund monies to be managed and dispersed by the supplier ,Policy Division ,KPMG East Africa Limited ,202921-128 ,"972,561.00",
DFID,DFID,01/02/2018,Fund monies to be managed and dispersed by the supplier ,Policy Division ,KPMG East Africa Limited ,202921-127 ,"700,000.00",
DFID,DFID,05/02/2018,Aid Programme - Accountable Grant Payments ,Economic Development Division ,Advocates for international Development ,203950-101 ,"163,800.00",
DFID,DFID,16/02/2018,Aid Programme - Accountable Grant Payments ,Asia  Caribbean and Overseas Territories ,Supplier Name withheld ,203904-105 ,"129,941.01",
DFID,DFID,19/02/2018,Hotels - Accommodation only ,East and Central Africa ,HRG Kenya (USD) ,101616-102 ,807.56,
DFID,DFID,19/02/2018,Air fares ,East and Central Africa ,HRG Kenya (USD) ,101616-102 ,"2,095.36",
DFID,DFID,19/02/2018,Air fares ,East and Central Africa ,HRG Kenya (USD) ,101630-101 ,"1,209.91",
DFID,DFID,09/02/2018,Project delivery costs – supplier services ,Asia  Caribbean and Overseas Territories ,Impact Investors Council ,202927-101 ,"6,581.66",
DFID,DFID,02/02/2018,Project delivery costs – supplier services ,Asia  Caribbean and Overseas Territories ,KPMG (Registered) ,204059-102 ,"11,411.00",
DFID,DFID,02/02/2018,Project delivery costs – supplier services ,Asia  Caribbean and Overseas Territories ,KPMG (Registered) ,204059-102 ,"14,799.00",
DFID,DFID,01/02/2018,Hotels - Accommodation only ,Asia  Caribbean and Overseas Territories ,Ascott Palace Ltd ,101603-101 ,"2,989.00",
DFID,DFID,01/02/2018,Hotels - Accommodation only ,Asia  Caribbean and Overseas Territories ,Ascott Palace Ltd ,101603-101 ,"1,394.87",
DFID,DFID,12/02/2018,Hotels - Accommodation only ,Asia  Caribbean and Overseas Territories ,Ascott Palace Ltd ,101603-101 ,715.11,
DFID,DFID,12/02/2018,Hotels - Accommodation only ,Asia  Caribbean and Overseas Territories ,Ascott Palace Ltd ,101603-101 ,"1,225.85",
DFID,DFID,26/02/2018,Hotels - Accommodation only ,Asia  Caribbean and Overseas Territories ,Ascott Palace Ltd ,101603-101 ,707.27,
DFID,DFID,26/02/2018,Hotels - Accommodation only ,Asia  Caribbean and Overseas Territories ,Ascott Palace Ltd ,101603-101 ,505.20,
DFID,DFID,12/02/2018,Aid Programme - Accountable Grant Payments ,Asia  Caribbean and Overseas Territories ,Afghanaid UK ,203904-107 ,"1,447,973.00",
DFID,DFID,20/02/2018,Aid Programme - Accountable Grant Payments ,Policy Division ,Orbis Charitable Trust ,203559-141 ,"52,350.25",
DFID,DFID,09/02/2018,Aid Programme - Accountable Grant Payments ,Policy Division ,SAMARITAN'S PURSE INTERNATIONAL ,203559-143 ,"39,540.85",
DFID,DFID,27/02/2018,Aid Programme - Strategic Grant Arrangement payments ,Economic Development Division ,The Construction Sector Transparency Initiative ,204250-103 ,"850,000.00",
DFID,DFID,27/02/2018,Project delivery costs – supplier services ,West and Southern Africa ,WorleyParsons Europe  Trading as Advisian ,205195-103 ,"35,061.18",
DFID,DFID,05/02/2018,Aid Programme - Accountable Grant Payments ,Asia  Caribbean and Overseas Territories ,Branch office of the International Organization of Open Society Institute Assistance Foundation in Tajikistan ,204977-104 ,"161,972.53",
DFID,DFID,14/02/2018,Project delivery costs – supplier services ,West and Southern Africa ,ATELIER JURIDICO ,203317-104 ,"3,552.75",
DFID,DFID,22/02/2018,Aid Programme - Accountable Grant Payments ,East and Central Africa ,Global Initiative against Transnational Organized Crime ,204227-106 ,"99,399.27",
DFID,DFID,23/02/2018,Fund monies to be managed and dispersed by the supplier ,Policy Division ,Palladium - Client Bank Account ,202745-104 ,"339,600.00",
DFID,DFID,22/02/2018,Aid Programme - Accountable Grant Payments ,Asia  Caribbean and Overseas Territories ,Supplier Name withheld ,201000-109 ,"12,854.52",
DFID,DFID,07/02/2018,Fund monies to be managed and dispersed by the supplier ,Policy Division ,MannionDaniels UK AID Direct ,202035-101 ,"61,083.30",
DFID,DFID,07/02/2018,Fund monies to be managed and dispersed by the supplier ,Policy Division ,MannionDaniels UK AID Direct ,202035-101 ,"14,006.00",
DFID,DFID,07/02/2018,Fund monies to be managed and dispersed by the supplier ,Policy Division ,MannionDaniels UK AID Direct ,202035-101 ,"191,229.78",
DFID,DFID,07/02/2018,Fund monies to be managed and dispersed by the supplier ,Policy Division ,MannionDaniels UK AID Direct ,202035-101 ,"376,949.46",
DFID,DFID,07/02/2018,Fund monies to be managed and dispersed by the supplier ,Policy Division ,MannionDaniels UK AID Direct ,202035-101 ,"5,000.00",
DFID,DFID,07/02/2018,Fund monies to be managed and dispersed by the supplier ,Policy Division ,MannionDaniels UK AID Direct ,202035-102 ,"61,074.48",
DFID,DFID,07/02/2018,Fund monies to be managed and dispersed by the supplier ,Policy Division ,MannionDaniels UK AID Direct ,202035-102 ,"28,887.08",
DFID,DFID,07/02/2018,Fund monies to be managed and dispersed by the supplier ,Policy Division ,MannionDaniels UK AID Direct ,202035-102 ,"1,159,681.09",
DFID,DFID,07/02/2018,Fund monies to be managed and dispersed by the supplier ,Policy Division ,MannionDaniels UK AID Direct ,202035-102 ,"102,551.84",
DFID,DFID,27/02/2018,Project delivery costs – supplier services ,East and Central Africa ,Environmental Health Group  London School of Hygiene and Tropical Medicine ,204033-105 ,"502,870.02",
DFID,DFID,28/02/2018,Project delivery costs – supplier services ,East and Central Africa ,Environmental Health Group  London School of Hygiene and Tropical Medicine ,204033-105 ,"108,807.13",
DFID,DFID,28/02/2018,Project delivery costs – supplier services ,East and Central Africa ,Environmental Health Group  London School of Hygiene and Tropical Medicine ,204033-105 ,"108,807.13",
DFID,DFID,06/02/2018,Project delivery costs – supplier services ,Middle East and North Africa Division ,Management Plus ,300060-102 ,"4,543.39",
DFID,DFID,06/02/2018,Hotels - Accommodation only ,West and Southern Africa ,LA VILLA BOUTIQUE HOTEL (BCO LTD) ,101613-101 ,722.49,
DFID,DFID,01/02/2018,Aid Programme - Accountable Grant Payments ,Policy Division ,SoundSeekers ,203559-134 ,"9,606.00",
DFID,DFID,06/02/2018,Project delivery costs – supplier services ,West and Southern Africa ,Banco BiG Moçambique SA ,204837-104 ,"16,443.66",
DFID,DFID,28/02/2018,Aid Programme - Humanitarian Material Relief Assistance and Services ,Conflict  Humanitarian  Security & Stabilisation Division , MINISTRY OF DEFENCE ,300491-101 ,"296,749.00",
DFID,DFID,28/02/2018,Training Providers/Facilitation Services ,Finance and Corporate Performance Division ,Korn Ferry Hay Group Limited ,100008-106 ,"37,992.80",Design and Delivery costs for the second and third  Senior Civil Service financial training events on  20 -22 June and 12 - 14 September 2017
DFID,DFID,28/02/2018,Training Providers/Facilitation Services ,Finance and Corporate Performance Division ,Korn Ferry Hay Group Limited ,100008-106 ,"51,097.40",Design and Delivery costs for the first Senior Civil Service  financial training event - 21-23 March 2017
DFID,DFID,06/02/2018,Training - Course Fees ,Human Resources ,CSL - KPMG LLP ,100269-155 ,"2,500.00",
DFID,DFID,06/02/2018,Training - Course Fees ,Human Resources ,CSL - KPMG LLP ,100269-155 ,"3,000.00",
DFID,DFID,12/02/2018,Training - Course Fees ,Human Resources ,CSL - KPMG LLP ,100269-155 ,"2,500.00",
DFID,DFID,20/02/2018,Training - Course Fees ,Human Resources ,CSL - KPMG LLP ,100269-155 ,"2,500.00",
DFID,DFID,12/02/2018,Training Providers/Facilitation Services ,Country Programmes Cabinet ,CSL - KPMG LLP ,204832-101 ,"1,607.00",
DFID,DFID,01/02/2018,Aid Programme - Accountable Grant Payments ,West and Southern Africa , CONSERVATION FARMING UNIT ,204842-103 ,"465,036.00",
DFID,DFID,21/02/2018,Project delivery costs – supplier services ,West and Southern Africa ,PAMODZI ,204856-106 ,"2,287.35",
DFID,DFID,21/02/2018,Aid Programme - Accountable Grant Payments ,Economic Development Division ,Shift Project Ltd ,203448-101 ,"122,441.00",
DFID,DFID,05/02/2018,Project delivery costs – supplier services ,Business Solutions Division Level ,Teleperformance Ltd ,200002-169 ,814.32,
DFID,DFID,22/02/2018,Aid Programme - Accountable Grant Payments ,Asia  Caribbean and Overseas Territories ,RESEARCH AND INFORMATION SYSTEM FOR DEVELOPING COUNTRIES ,202765-113 ,"53,552.00",
DFID,DFID,12/02/2018,Repairs  Maintenance and Alterations – Other Building Costs ,Group Operations ,Interserve Facilities Management Limited ,100106-101 ,"1,438.76",
DFID,DFID,12/02/2018,Repairs  Maintenance and Alterations – Other Building Costs ,Group Operations ,Interserve Facilities Management Limited ,100106-101 ,"1,819.04",
DFID,DFID,12/02/2018,Repairs  Maintenance and Alterations – Other Building Costs ,Group Operations ,Interserve Facilities Management Limited ,100106-101 ,597.96,
DFID,DFID,12/02/2018,Repairs  Maintenance and Alterations – Other Building Costs ,Group Operations ,Interserve Facilities Management Limited ,100106-101 ,"1,249.82",
DFID,DFID,12/02/2018,Repairs  Maintenance and Alterations – Other Building Costs ,Group Operations ,Interserve Facilities Management Limited ,100106-101 ,935.62,
DFID,DFID,12/02/2018,Repairs  Maintenance and Alterations – Other Building Costs ,Group Operations ,Interserve Facilities Management Limited ,100106-101 ,"13,360.80",
DFID,DFID,12/02/2018,Repairs  Maintenance and Alterations – Other Building Costs ,Group Operations ,Interserve Facilities Management Limited ,100106-101 ,"1,510.75",
DFID,DFID,12/02/2018,Facilities Management payments ,Group Operations ,Interserve Facilities Management Limited ,100106-101 ,"2,567.27",
DFID,DFID,12/02/2018,Repairs  Maintenance and Alterations – Other Building Costs ,Group Operations ,Interserve Facilities Management Limited ,100106-101 ,686.50,
DFID,DFID,20/02/2018,Facilities Management payments ,Group Operations ,Interserve Facilities Management Limited ,100106-101 ,980.88,
DFID,DFID,20/02/2018,Cleaning Costs ,Group Operations ,Interserve Facilities Management Limited ,100106-101 ,"13,768.67",
DFID,DFID,20/02/2018,Repairs  Maint  Alter - Property & Constrct. Services ,Group Operations ,Interserve Facilities Management Limited ,100106-101 ,"15,580.78",
DFID,DFID,20/02/2018,Repairs  Maint  Alter - Property & Constrct. Services ,Group Operations ,Interserve Facilities Management Limited ,100106-101 ,"10,947.62",
DFID,DFID,20/02/2018,Facilities Management payments ,Group Operations ,Interserve Facilities Management Limited ,100106-101 ,"5,283.45",
DFID,DFID,20/02/2018,Facilities Management payments ,Group Operations ,Interserve Facilities Management Limited ,100106-101 ,"4,511.70",
DFID,DFID,20/02/2018,Facilities Management payments ,Group Operations ,Interserve Facilities Management Limited ,100106-101 ,"3,131.78",
DFID,DFID,12/02/2018,Repairs  Maintenance and Alterations – Other Building Costs ,Group Operations ,Interserve Facilities Management Limited ,100106-101 ,685.33,
DFID,DFID,12/02/2018,Repairs  Maintenance and Alterations – Other Building Costs ,Group Operations ,Interserve Facilities Management Limited ,100106-101 ,517.76,
DFID,DFID,19/02/2018,Contract Catering Services ,Middle East and North Africa Division ,Interserve Facilities Management Limited ,100146-101 ,772.20,
DFID,DFID,20/02/2018,Repairs  Maint  Alter - Property & Constrct. Services ,Group Operations ,Interserve Facilities Management Limited ,203717-101 ,"34,321.27",Monthly maintenance service costs for Whitehall UK HQ �for January 2018
DFID,DFID,20/02/2018,Cleaning Costs ,Group Operations ,Interserve Facilities Management Limited ,203717-101 ,"14,602.68",
DFID,DFID,20/02/2018,Repairs  Maint  Alter - Removal & waste disposal services ,Group Operations ,Interserve Facilities Management Limited ,203717-101 ,"1,381.33",
DFID,DFID,20/02/2018,Facilities Management payments ,Group Operations ,Interserve Facilities Management Limited ,203717-101 ,"4,699.15",
DFID,DFID,20/02/2018,Repairs  Maint  Alter - Property & Constrct. Services ,Group Operations ,Interserve Facilities Management Limited ,203717-101 ,"45,948.28",Monthly maintenance service costs for Whitehall HQ for January 2018
DFID,DFID,20/02/2018,Facilities Management payments ,Group Operations ,Interserve Facilities Management Limited ,203717-101 ,"4,738.60",
DFID,DFID,20/02/2018,Facilities Management payments ,Group Operations ,Interserve Facilities Management Limited ,203717-101 ,"8,317.00",
DFID,DFID,12/02/2018,Repairs  Maint  Alter - Property & Constrct. Services ,Group Operations ,Interserve Facilities Management Limited ,205132-101 ,"3,589.75",
DFID,DFID,13/02/2018,Repairs  Maintenance and Alterations – Other Building Costs ,Group Operations ,Interserve Facilities Management Limited ,205132-101 ,"4,410.01",
DFID,DFID,13/02/2018,Repairs  Maint  Alter - Property & Constrct. Services ,Group Operations ,Interserve Facilities Management Limited ,205132-101 ,"90,968.41",Refurbishment of DFIDs East Kilbride HQ property in order to meet our duty of care obligations and health and safety standards
DFID,DFID,14/02/2018,Aid Programme - Accountable Grant Payments ,Asia  Caribbean and Overseas Territories ,UK India Business Council ,300109-107 ,"43,329.75",
DFID,DFID,14/02/2018,Aid Programme - Accountable Grant Payments ,Asia  Caribbean and Overseas Territories ,UK India Business Council ,300109-107 ,"19,968.75",
DFID,DFID,14/02/2018,Aid Programme - Accountable Grant Payments ,Asia  Caribbean and Overseas Territories ,UK India Business Council ,300109-108 ,"6,656.25",
DFID,DFID,14/02/2018,Aid Programme - Accountable Grant Payments ,Asia  Caribbean and Overseas Territories ,UK India Business Council ,300109-108 ,"14,443.25",
DFID,DFID,06/02/2018,Aid Programme - Accountable Grant Payments ,Economic Development Division ,Fund for the City of New York / Open Contracting Partnership ,300157-104 ,"115,398.00",
DFID,DFID,22/02/2018,Project delivery costs – supplier services ,East and Central Africa ,Optimal Consulting ,204793-101 ,"7,068.24",
DFID,DFID,16/02/2018,Aid Programme - Accountable Grant Payments ,Policy Division ,Motivation Charitable Trust ,203559-162 ,"34,096.66",
DFID,DFID,05/02/2018,Project delivery costs – supplier services ,West and Southern Africa ,Crown Agents Bank Limited ,200469-110 ,"118,575.72",
DFID,DFID,01/02/2018,Project delivery costs – supplier services ,Middle East and North Africa Division ,Crown Agents Bank Limited ,201828-101 ,"52,906.88",
DFID,DFID,08/02/2018,Project delivery costs – supplier services ,Research and Evidence Division ,Crown Agents Bank Limited ,202531-109 ,"172,173.93",
DFID,DFID,08/02/2018,Fund monies to be managed and dispersed by the supplier ,Research and Evidence Division ,Crown Agents Bank Limited ,202531-109 ,"230,333.49",
DFID,DFID,06/02/2018,Fund monies to be managed and dispersed by the supplier ,East and Central Africa ,Crown Agents Bank Limited ,202946-107 ,"274,682.63",
DFID,DFID,21/02/2018,Project delivery costs – supplier services ,East and Central Africa ,Crown Agents Bank Limited ,204057-102 ,"84,506.00",
DFID,DFID,19/02/2018,Fund monies to be managed and dispersed by the supplier ,Research and Evidence Division ,Crown Agents Bank Limited ,204415-103 ,"83,670.00",
DFID,DFID,19/02/2018,Fund monies to be managed and dispersed by the supplier ,Research and Evidence Division ,Crown Agents Bank Limited ,204415-103 ,"57,043.00",
DFID,DFID,19/02/2018,Fund monies to be managed and dispersed by the supplier ,Research and Evidence Division ,Crown Agents Bank Limited ,204415-103 ,"25,000.00",
DFID,DFID,12/02/2018,Bank Charges/Services ,Group Operations ,Crown Agents Bank Limited ,204664-101 ,"3,000.00",
DFID,DFID,28/02/2018,Aid Programme - Joint programme contribution ,East and Central Africa ,Agence Française de Développement - Afrique ,203998-105 ,"2,000,000.00",
DFID,DFID,01/02/2018,Aid Programme - Accountable Grant Payments ,Policy Division ,The Power of Nutrition GBP ,204564-102 ,"187,219.69",
DFID,DFID,06/02/2018,Subscriptions ,Communications Division ,Kantar Media ,100197-101 ,"1,584.41",
DFID,DFID,02/02/2018,Aid Programme - Accountable Grant Payments ,Policy Division ,Amnesty International UK Section Charitable Trust ,203559-129 ,"76,937.47",
DFID,DFID,05/02/2018,Office Supplies ,West and Southern Africa ,SAIDU KOROMA ENTERPRISES ,100214-101 ,"2,610.39",
DFID,DFID,21/02/2018,Aid Programme - Accountable Grant Payments ,Research and Evidence Division ,CLASP ,300111-103 ,"182,999.00",
DFID,DFID,21/02/2018,Project delivery costs – supplier services ,West and Southern Africa ,HAI TELECOMMUNICATIONS LIMITED ,203627-102 ,752.26,
DFID,DFID,23/02/2018,Project delivery costs – supplier services ,West and Southern Africa ,HAI TELECOMMUNICATIONS LIMITED ,203627-102 ,758.79,
DFID,DFID,15/02/2018,Aid Programme - Accountable Grant Payments ,Research and Evidence Division ,Acumen Fund ,204867-109 ,"437,736.00",
DFID,DFID,08/02/2018,Project delivery costs – supplier services ,Business Solutions Division Level ,Empiric Solutions Limited ,200002-239 ,612.08,
DFID,DFID,26/02/2018,Project delivery costs – supplier services ,Business Solutions Division Level ,Empiric Solutions Limited ,200002-239 ,"1,468.64",
DFID,DFID,13/02/2018,Project delivery costs – supplier services ,Business Solutions Division Level ,Empiric Solutions Limited ,200002-239 ,"19,800.00",
DFID,DFID,09/02/2018,Project delivery costs – supplier services ,Business Solutions Division Level ,Empiric Solutions Limited ,200002-239 ,"2,883.71",
DFID,DFID,09/02/2018,Project delivery costs – supplier services ,Business Solutions Division Level ,Empiric Solutions Limited ,200002-239 ,"2,622.46",
DFID,DFID,13/02/2018,Project delivery costs – supplier services ,Policy Division ,SPHEIR - British Council ,203166-103 ,"1,099,670.66",
DFID,DFID,15/02/2018,Fund monies to be managed and dispersed by the supplier ,Middle East and North Africa Division ,Blumont ,300273-101 ,"566,296.50",
DFID,DFID,19/02/2018,Aid Programme - Accountable Grant Payments ,East and Central Africa ,The AECF ,203574-104 ,"176,285.00",
DFID,DFID,21/02/2018,Aid Programme - Accountable Grant Payments ,Economic Development Division ,British Asian Trust ,204722-106 ,"208,755.00",
DFID,DFID,06/02/2018,Project delivery costs – supplier services ,Asia  Caribbean and Overseas Territories ,Gallup BRB ,202491-104 ,"10,720.00",
DFID,DFID,05/02/2018,Project delivery costs – supplier services ,Asia  Caribbean and Overseas Territories ,Deloitte Yousuf Adil  Chartered Accountants ,202488-104 ,"1,924.16",
DFID,DFID,13/02/2018,Project delivery costs – supplier services ,Asia  Caribbean and Overseas Territories ,Deloitte Yousuf Adil  Chartered Accountants ,202488-104 ,"4,527.43",
DFID,DFID,28/02/2018,Auditors Remuneration & Expenses - Cash ,West and Southern Africa ,Audit Consult ,202559-108 ,"16,738.11",
DFID,DFID,07/02/2018,Aid Programme - Accountable Grant Payments ,Asia  Caribbean and Overseas Territories ,BRAC-Pakistan ,300238-101 ,"195,249.66",
DFID,DFID,21/02/2018,Aid Programme - Accountable Grant Payments ,Asia  Caribbean and Overseas Territories ,DMP2 James P Grant School of Public Health  BRAC University ,204079-101 ,"352,452.10",
DFID,DFID,20/02/2018,Data Network - land lines ,Business Solutions Division Level ,RAHA LIMITED (TZS) ,203329-102 ,672.82,
DFID,DFID,28/02/2018,Hotels - Accommodation only ,West and Southern Africa ,Supplier Name withheld ,101622-106 ,501.73,
DFID,DFID,20/02/2018,Data Network - land lines ,Business Solutions Division Level ,SIMBANET (T) LIMITED ,203329-102 ,804.69,
DFID,DFID,12/02/2018,Project delivery costs – supplier services ,Asia  Caribbean and Overseas Territories ,KPMG (Regstd.) ,114293-103 ,"7,546.48",
DFID,DFID,02/02/2018,Aid Programme - Accountable Grant Payments ,Asia  Caribbean and Overseas Territories ,The Competitiveness Company ,300448-103 ,"64,232.26",
DFID,DFID,28/02/2018,Project delivery costs – supplier services ,West and Southern Africa ,Öhrlings PricewaterhouseCoopers AB ,204565-108 ,"31,673.92",
DFID,DFID,21/02/2018,Aid Programme - Accountable Grant Payments ,East and Central Africa ,Armament Policy Support ,205069-108 ,"150,444.12",
DFID,DFID,27/02/2018,Training - Course Fees ,West and Southern Africa ,CLE ,101610-101 ,"5,647.79",
DFID,DFID,22/02/2018,Project delivery costs – supplier services ,West and Southern Africa ,Isaac & Partners ,203000-106 ,"1,603.33",
DFID,DFID,06/02/2018,Project delivery costs – supplier services ,West and Southern Africa ,AA & K CONSULTING SERVICES LIMITED ,204918-101 ,"29,135.40",
DFID,DFID,02/02/2018,Project delivery costs – supplier services ,Asia  Caribbean and Overseas Territories ,BSI Standards Limited ,300110-102 ,"1,316.35",
DFID,DFID,02/02/2018,Project delivery costs – supplier services ,Asia  Caribbean and Overseas Territories ,BSI Standards Limited ,300110-106 ,"2,444.65",
DFID,DFID,27/02/2018,Project delivery costs – supplier services ,West and Southern Africa ,SHAY - SERVICOS E ESTUDOS ,205074-104 ,"15,428.57",
DFID,DFID,19/02/2018,Project delivery costs – supplier services ,Asia  Caribbean and Overseas Territories ,Koan Advisory Group ,202765-104 ,"5,295.46",
DFID,DFID,20/02/2018,Aid Programme - Accountable Grant Payments ,Asia  Caribbean and Overseas Territories ,Accelerator Nepal ,203426-111 ,"14,732.00",
DFID,DFID,02/02/2018,Aid Programme - Accountable Grant Payments ,Asia  Caribbean and Overseas Territories ,Accelerator Nepal ,203426-111 ,"15,492.00",
DFID,DFID,05/02/2018,Project delivery costs – supplier services ,Asia  Caribbean and Overseas Territories ,Sayeman Beach Resort ,205268-110 ,783.83,
DFID,DFID,07/02/2018,Project delivery costs – supplier services ,Asia  Caribbean and Overseas Territories ,Sayeman Beach Resort ,205268-110 ,"1,102.58",
DFID,DFID,26/02/2018,Project delivery costs – supplier services ,East and Central Africa ,Rift Valley Research Ltd ,203986-106 ,"11,006.00",
DFID,DFID,28/02/2018,Project delivery costs – supplier services ,West and Southern Africa ,EVENTZ PRO ,300338-104 ,"3,824.91",
DFID,DFID,15/02/2018,Project delivery costs – supplier services ,West and Southern Africa ,EKAM CAPITAL ,300338-104 ,"3,111.24",
DFID,DFID,15/02/2018,Project delivery costs – supplier services ,West and Southern Africa ,SPELK MICRO CONSULT ,204918-101 ,"1,627.10",
DFID,DFID,15/02/2018,Project delivery costs – supplier services ,West and Southern Africa ,Solgift Consult ,204918-101 ,"1,830.49",
DFID,DFID,13/02/2018,Legal costs ,West and Southern Africa ,Cabinet Amani ,101610-101 ,578.03,
DFID,DFID,16/02/2018,Conferences  Seminars & Meeting/Event Resource ,Economic Development Division ,Chris Stone NYC ,100275-101 ,"1,010.61",
DFID,DFID,19/02/2018,Data Network - land lines ,Business Solutions Division Level ,Liquid Telecom ,203329-102 ,"8,950.09",
DFID,DFID,14/02/2018,Project delivery costs – supplier services ,Economic Development Division ,Advanstar Communications Inc ,205226-107 ,"27,748.86",
DFID,DFID,16/02/2018,Conferences  Seminars & Meeting/Event Resource ,Economic Development Division ,J Githongo ,100275-101 ,914.84,
DFID,DFID,07/02/2018,Project delivery costs – supplier services ,West and Southern Africa ,CITY DRIVE RENT A CAR LTD ,203627-102 ,"2,169.13",
DFID,DFID,02/02/2018,Project delivery costs – supplier services ,Human Resources ,GOVERNMENT LEGAL DEPARTMENT CLIENT MONIES ,100263-101 ,"16,570.00",
DFID,DFID,15/02/2018,Mobile telephones & accessories ,West and Southern Africa ,Zenzi ,101610-101 ,"2,667.63",
DFID,DFID,02/02/2018,Secure Staff Accommodation ,Economic Development Division ,Recipient name withheld ,205081-101 ,"1,507.31",
DFID,DFID,02/02/2018,Secure Staff Accommodation ,Economic Development Division ,Recipient name withheld ,205081-101 ,"1,208.16",
DFID,DFID,06/02/2018,Air fares ,Asia  Caribbean and Overseas Territories ,Recipient name withheld ,101601-110 ,"1,700.00",
DFID,DFID,12/02/2018,Hotels - Accommodation only ,Middle East and North Africa Division ,Recipient name withheld ,204981-101 ,592.80,
DFID,DFID,12/02/2018,Hotels - Accommodation only ,Middle East and North Africa Division ,Recipient name withheld ,204981-101 ,583.30,
DFID,DFID,12/02/2018,Hotels - Accommodation only ,Middle East and North Africa Division ,Recipient name withheld ,204981-101 ,654.00,
DFID,DFID,16/02/2018,Hotels - Accommodation only ,Research and Evidence Division ,Recipient name withheld ,202331-101 ,693.99,
DFID,DFID,19/02/2018,Hotels - Accommodation only ,West and Southern Africa ,Recipient name withheld ,101610-101 ,775.00,
DFID,DFID,22/02/2018,Hotels - Accommodation only ,East and Central Africa ,Recipient name withheld ,101634-101 ,831.84,
DFID,DFID,26/02/2018,Air fares ,Economic Development Division ,Recipient name withheld ,205081-101 ,543.89,
DFID,DFID,15/02/2018,Secure Staff Accommodation ,Middle East and North Africa Division ,Recipient name withheld ,201701-101 ,"4,800.00",
DFID,DFID,28/02/2018,Vehicle Hire Charges ,West and Southern Africa ,Recipient name withheld ,101620-101 ,"1,247.02",
DFID,DFID,21/02/2018,Air fares ,West and Southern Africa ,Supplier Name withheld ,101622-105 ,729.07,
DFID,DFID,14/02/2018,Secure Staff Accommodation ,International Relations Division ,Recipient name withheld ,201723-102 ,"2,307.92",
DFID,DFID,19/02/2018,Hotels - Accommodation only ,Middle East and North Africa Division ,Recipient name withheld ,204055-101 ,"1,039.66",
DFID,DFID,21/02/2018,Hotels - Accommodation only ,Asia  Caribbean and Overseas Territories ,Recipient name withheld ,101624-101 ,558.70,
DFID,DFID,19/02/2018,Mileage claims ,West and Southern Africa ,Recipient name withheld ,101618-101 ,"1,188.30",
DFID,DFID,06/02/2018,Hotels - Accommodation only ,West and Southern Africa ,Recipient name withheld ,101629-101 ,702.97,
DFID,DFID,01/02/2018,Air fares ,Asia  Caribbean and Overseas Territories ,Recipient name withheld ,101601-110 ,"1,443.86",
DFID,DFID,01/02/2018,Air fares ,Asia  Caribbean and Overseas Territories ,Recipient name withheld ,101601-110 ,"1,584.60",
DFID,DFID,01/02/2018,Air fares ,Asia  Caribbean and Overseas Territories ,Recipient name withheld ,101601-110 ,"1,700.00",
DFID,DFID,16/02/2018,Hotels - Accommodation only ,Middle East and North Africa Division ,Recipient name withheld ,204055-101 ,763.83,
DFID,DFID,07/02/2018,Further Education costs ,Research and Evidence Division ,Recipient name withheld ,202392-102 ,"2,362.50",
DFID,DFID,14/02/2018,Air fares ,Asia  Caribbean and Overseas Territories ,Recipient name withheld ,101601-110 ,968.00,
DFID,DFID,21/02/2018,Hotels - Accommodation only ,Asia  Caribbean and Overseas Territories ,Recipient name withheld ,101624-101 ,588.56,
DFID,DFID,12/02/2018,Air fares ,Asia  Caribbean and Overseas Territories ,Recipient name withheld ,101601-110 ,"1,700.00",
DFID,DFID,25/02/2018,Hotels - Accommodation only ,Asia  Caribbean and Overseas Territories ,Recipient name withheld ,101603-102 ,670.18,
DFID,DFID,14/02/2018,Air fares ,East and Central Africa ,Recipient name withheld ,202594-101 ,819.40,
DFID,DFID,14/02/2018,Air fares ,East and Central Africa ,Recipient name withheld ,202594-101 ,"1,599.00",
DFID,DFID,04/02/2018,Air fares ,Asia  Caribbean and Overseas Territories ,Recipient name withheld ,101601-110 ,"1,206.49",
DFID,DFID,05/02/2018,Air fares ,Asia  Caribbean and Overseas Territories ,Recipient name withheld ,101601-110 ,"1,700.00",
DFID,DFID,05/02/2018,Air fares ,Asia  Caribbean and Overseas Territories ,Recipient name withheld ,101601-110 ,"1,700.00",
DFID,DFID,13/02/2018,Travel documentation costs ,West and Southern Africa ,Recipient name withheld ,100214-101 ,560.26,
DFID,DFID,12/02/2018,Hotels - Accommodation only,West and Southern Africa ,Recipient name withheld ,101613-101 ,"1,120.00",
DFID,DFID,20/02/2018,Training - Travel & Subsistence ,West and Southern Africa ,Recipient name withheld ,101610-101 ,606.18,
DFID,DFID,28/02/2018,Hotels - Accommodation only ,Research and Evidence Division ,Recipient name withheld ,202392-113 ,789.08,
DFID,DFID,06/02/2018,Hotels - Accommodation only ,Middle East and North Africa Division ,Recipient name withheld ,300078-101 ,"1,085.69",
DFID,DFID,20/02/2018,Hotels - Accommodation only ,East and Central Africa ,Recipient name withheld ,101612-101 ,565.38,
DFID,DFID,21/02/2018,Hotels - Accommodation only ,West and Southern Africa ,Recipient name withheld ,101613-101 ,"1,170.09",
DFID,DFID,28/02/2018,Air fares ,West and Southern Africa ,Recipient name withheld ,101618-101 ,"1,815.60",
DFID,DFID,13/02/2018,Hotels - Accommodation only ,East and Central Africa ,Recipient name withheld ,101625-112 ,700.84,
DFID,DFID,27/02/2018,Air fares ,Conflict  Humanitarian  Security & Stabilisation Division ,Recipient name withheld ,100049-102 ,645.31,
DFID,DFID,20/02/2018,Hotels - Accommodation only ,West and Southern Africa ,Recipient name withheld ,101610-101 ,512.46,
DFID,DFID,26/02/2018,Hotels - Accommodation only ,Asia  Caribbean and Overseas Territories ,Recipient name withheld ,101605-101 ,813.00,
DFID,DFID,26/02/2018,Air fares ,Asia  Caribbean and Overseas Territories ,Recipient name withheld ,101605-101 ,690.20,
DFID,DFID,21/02/2018,Hotels - Accommodation only ,Middle East and North Africa Division ,Recipient name withheld ,204983-101 ,622.60,
DFID,DFID,21/02/2018,Hotels - Accommodation only ,West and Southern Africa ,Supplier Name withheld ,101622-106 ,602.22,
DFID,DFID,16/02/2018,Air fares ,Asia  Caribbean and Overseas Territories ,Recipient name withheld ,100084-101 ,518.11,
DFID,DFID,20/02/2018,Hotels - Accommodation only ,Research and Evidence Division ,Recipient name withheld ,202331-101 ,796.33,
DFID,DFID,15/02/2018,Hotels - Accommodation only ,Research and Evidence Division ,Recipient name withheld ,202392-113 ,584.91,
